Workbook

Sheet 1. Info
AB1: Alectra Utilities Corporation-Brampton Rate Zone | AC1: 2027 RTSR Workform for Electricity Distributors
AB2: Alectra Utilities Corporation-Enersource Rate Zone | AC2: v 1.0
AB3: Alectra Utilities Corporation-Horizon Utilities Rate Zone
AB4: Alectra Utilities Corporation-PowerStream Rate Zone
AB5: Alectra Utilities Corporation-Guelph Rate Zone
AB6: Algoma Power Inc.
AB7: Atikokan Hydro Inc.
AB8: Bluewater Power Distribution Corporation
AB9: Burlington Hydro Inc.
AB10: Canadian Niagara Power Inc.
AB11: Centre Wellington Hydro Ltd.
AB12: Chapleau Public Utilities Corporation
A13: Drop-down lists are shaded blue; Input cells are shaded green. | AB13: Cooperative Hydro Embrun Inc.
AB14: E.L.K. Energy Inc.
C15: Utility Name | D15: Rideau St. Lawrence Distribution Inc. | AB15: Elexicon Energy Inc.-Whitby Rate Zone
AB16: Elexicon Energy Inc.-Veridian Rate Zone
C17: Assigned EB Number | AB17: Enova Power Corp.-Kitchener-Wilmot Hydro Rate Zone
AB18: Enova Power Corp.-Waterloo North Rate Zone
C19: Name and Title of Contact | AB19: Entegrus Powerlines Inc.-For Entegrus-Main Rate Zone
AB20: Entegrus Powerlines Inc.-For Former St. Thomas Energy Rate Zone
C21: Phone Number | AB21: ENWIN Utilities Ltd.
AB22: EPCOR Electricity Distribution Ontario Inc.
C23: Email Address | AB23: ERTH Power Corporation - ERTH Power Main Rate Zone
AB24: ERTH POWER CORPORATION – GODERICH RATE ZONE
C25: Last COS Re-based Year | AB25: Espanola Regional Hydro Distribution Corporation
AB26: Essex Powerlines Corporation
C27: Test Year | D27: 2027 | AB27: Festival Hydro Inc.
AB28: Fort Frances Power Corporation
AB29: GrandBridge Energy Inc.-Brantford Power Rate Zone
AB30: GrandBridge Energy Inc.-Energy+ Rate Zone
AB31: Greater Sudbury Hydro Inc.
AB32: Grimsby Power Incorporated
AB33: Halton Hills Hydro Inc.
AB34: Hearst Power Distribution Co. Ltd.
AB35: Hydro 2000 Inc.
AB36: Hydro Hawkesbury Inc.
AB37: Hydro One Networks Inc.
AB38: Hydro One Networks Inc.-Former Orillia Power Distribution Corporation Service Area
AB39: Hydro One Networks Inc.-Former Peterborough Distribution Inc. Service Area
AB40: Hydro One Networks Inc.-Former Haldimand County Hydro Inc. Service Area
AB41: Hydro One Networks Inc.-Former Norfolk Power Distribution Inc. Service Area
AB42: Hydro One Networks Inc.-Former Woodstock Hydro Services Inc. Service Area
AB43: Hydro One Remote Communites Inc.
AB44: Hydro Ottawa Limited
AB45: InnPower Corporation
AB46: Kingston Hydro Corporation
AB47: Lakefront Utilities Inc.
AB48: Lakeland Power Distribution Ltd.
AB49: London Hydro Inc.
AB50: Milton Hydro Distribution Inc.
AB51: Newmarket-Tay Power Distribution Ltd.-For Former Midland Power Utility Rate Zone
AB52: Newmarket-Tay Power Distribution Ltd.-For Newmarket-Tay Power Main Rate Zone
AB53: Niagara Peninsula Energy Inc.
AB54: Niagara-on-the-Lake Hydro Inc.
AB55: North Bay Hydro Distribution Limited
AB56: Northern Ontario Wires Inc.
AB57: Oakville Hydro Electricity Distribution Inc.
AB58: Orangeville Hydro Limited
AB59: Oshawa PUC Networks Inc.
AB60: Ottawa River Power Corporation
AB61: PUC Distribution Inc.
AB62: Renfrew Hydro Inc.
AB63: Rideau St. Lawrence Distribution Inc.
AB64: Sioux Lookout Hydro Inc.
AB65: Synergy North Corporation-Kenora Rate Zone
AB66: Synergy North Corporation-Thunder Bay Rate Zone
AB67: Tillsonburg Hydro Inc.
AB68: Toronto Hydro-Electric System Limited
AB69: Wasaga Distribution Inc.
AB70: Welland Hydro-Electric System Corp.
AB71: Wellington North Power Inc.
AB72: Westario Power Inc.

Sheet 2021 List (hidden)
A1: Alectra Utilities Corporation-Brampton Rate Zone | B1: HHPNS717
A2: Alectra Utilities Corporation-Enersource Rate Zone | B2: HHPNS717
A3: Alectra Utilities Corporation-Horizon Utilities Rate Zone | B3: HHPNS717
A4: Alectra Utilities Corporation-PowerStream Rate Zone | B4: HHPNS717
A5: Alectra Utilities Corporation-Guelph Rate Zone | B5: HHPNS717
A6: Algoma Power Inc. | B6: WKBSV849
A7: Atikokan Hydro Inc. | B7: NJYBW716
A8: Bluewater Power Distribution Corporation | B8: GQQHM388
A9: Burlington Hydro Inc. | B9: OARZC118
A10: Canadian Niagara Power Inc. | B10: HJHBH994
A11: Centre Wellington Hydro Ltd. | B11: KQEEH473
A12: Chapleau Public Utilities Corporation | B12: CPEFQ593
A13: Cooperative Hydro Embrun Inc. | B13: QXHJU641
A14: E.L.K. Energy Inc. | B14: AVXSO594
A15: Elexicon Energy Inc.-Whitby Rate Zone | B15: JMNNR431
A16: Elexicon Energy Inc.-Veridian Rate Zone | B16: JMNNR431
A17: Enova Power Corp.-Kitchener-Wilmot Hydro Rate Zone | B17: JMNNR432
A18: Enova Power Corp.-Waterloo North Rate Zone | B18: JMNNR432
A19: Entegrus Powerlines Inc.-For Entegrus-Main Rate Zone | B19: YEOQG654
A20: Entegrus Powerlines Inc.-For Former St. Thomas Energy Rate Zone | B20: YEOQG654
A21: ENWIN Utilities Ltd. | B21: PTLUC812
A22: EPCOR Electricity Distribution Ontario Inc. | B22: ADICB565
A23: ERTH Power Corporation - ERTH Power Main Rate Zone | B23: LRECV427
A24: ERTH POWER CORPORATION – GODERICH RATE ZONE | B24: KTCNY552
A25: Espanola Regional Hydro Distribution Corporation | B25: YEPCI143
A26: Essex Powerlines Corporation | B26: GRHTW113
A27: Festival Hydro Inc. | B27: GMGHU415
A28: Fort Frances Power Corporation | B28: YTPWF351
A29: GrandBridge Energy Inc.-Brantford Power Rate Zone | B29: YTPWF352
A30: GrandBridge Energy Inc.-Energy+ Rate Zone | B30: YTPWF352
A31: Greater Sudbury Hydro Inc. | B31: YCYKQ642
A32: Grimsby Power Incorporated | B32: ADZFM459
A33: Halton Hills Hydro Inc. | B33: RVWKN794
A34: Hearst Power Distribution Co. Ltd. | B34: KESKM585
A35: Hydro 2000 Inc. | B35: MQFNL784
A36: Hydro Hawkesbury Inc. | B36: FNDHH648
A37: Hydro One Networks Inc. | B37: PTREM828
A38: Hydro One Networks Inc.-Former Orillia Power Distribution Corporation Service Area | B38: PTREM829
A39: Hydro One Networks Inc.-Former Peterborough Distribution Inc. Service Area | B39: PTREM829
A40: Hydro One Networks Inc.-Former Haldimand County Hydro Inc. Service Area | B40: PTREM828
A41: Hydro One Networks Inc.-Former Norfolk Power Distribution Inc. Service Area | B41: PTREM828
A42: Hydro One Networks Inc.-Former Woodstock Hydro Services Inc. Service Area | B42: PTREM828
A43: Hydro One Remote Communites Inc. | B43: UBBYF452
A44: Hydro Ottawa Limited | B44: NSBED625
A45: InnPower Corporation | B45: TXKTT167
A46: Kingston Hydro Corporation | B46: ZHKLA874
A47: Lakefront Utilities Inc. | B47: YLCEC559
A48: Lakeland Power Distribution Ltd. | B48: NHKJF259
A49: London Hydro Inc. | B49: SLRXO177
A50: Milton Hydro Distribution Inc. | B50: UIFEM157
A51: Newmarket-Tay Power Distribution Ltd.-For Former Midland Power Utility Rate Zone | B51: RUZIU984
A52: Newmarket-Tay Power Distribution Ltd.-For Newmarket-Tay Power Main Rate Zone | B52: RUZIU984
A53: Niagara Peninsula Energy Inc. | B53: KSUYD122
A54: Niagara-on-the-Lake Hydro Inc. | B54: QHCKN852
A55: North Bay Hydro Distribution Limited | B55: FUIJX538
A56: Northern Ontario Wires Inc. | B56: PWKJP953
A57: Oakville Hydro Electricity Distribution Inc. | B57: JEGGW178
A58: Orangeville Hydro Limited | B58: TVKSH414
A59: Oshawa PUC Networks Inc. | B59: PQZCY963
A60: Ottawa River Power Corporation | B60: GTLBW445
A61: PUC Distribution Inc. | B61: MLWYG784
A62: Renfrew Hydro Inc. | B62: QDKIF127
A63: Rideau St. Lawrence Distribution Inc. | B63: AMZEN437
A64: Sioux Lookout Hydro Inc. | B64: ACEVX242
A65: Synergy North Corporation-Kenora Rate Zone | B65: DSPWZ318
A66: Synergy North Corporation-Thunder Bay Rate Zone | B66: DSPWZ318
A67: Tillsonburg Hydro Inc. | B67: OLIUU862
A68: Toronto Hydro-Electric System Limited | B68: NIOJF461
A69: Wasaga Distribution Inc. | B69: ZYZFO848
A70: Welland Hydro-Electric System Corp. | B70: IOKHC383
A71: Wellington North Power Inc. | B71: SKVKJ649
A72: Westario Power Inc. | B72: TPFNQ593

Sheet Sheet1 (hidden)
A5: 2. Table of Contents | B5: X
A6: 3. RRR Data | B6: X
A7: 4. UTRs and Sub-Transmission | B7: X
A8: 5. Historical Wholesale | B8: X
A9: 6. Current Wholesale | B9: X
A10: 7. Forecast Wholesale | B10: X
A11: 8. RTSR Rates to Forecast | B11: X

Sheet 2. Table of Contents
D20: 1. Info | I20: 5. Historical Wholesale
D22: 2. Table of Contents | I22: 6. Current Wholesale
D24: 3. RRR Data | I24: 7. Forecast Wholesale
D26: 4. UTRs and Sub-Transmission | I26: 8. RTSR Rates to Forecast
I28: 9. LV Rates

Sheet 3. RRR Data
AZ1: 1
B13: Instructions: This tab is to be completed using 2024 data. When entering 2024 data, please enter 2024 load that would currently be expected to qualify for the EV Charging Rates in the EV Charging rows. The main class should exclude the EV load.
B14: EV Multiplier: | C14: 0.17
B15: Rate Class | C15: Rate Description | D15: Unit | E15: Rate | F15: Non-Loss Adjusted Metered kWh | G15: Non-Loss Adjusted Metered kW | H15: Applicable Loss Factor eg: (1.0325) | I15: Loss Adjusted Billed kWh
B17: RESIDENTIAL SERVICE CLASSIFICATION | C17: Retail Transmission Rate - Network Service Rate | D17: $/kWh | E17: 0.0099 | F17: 43764577 | G17: 0 | H17: 1.0853 | I17: =F17*H17 -> 47497695.42
B18: RESIDENTIAL SERVICE CLASSIFICATION | C18: Retail Transmission Rate - Line and Transformation Connection Service Rate | D18: $/kWh | E18: 0.0079 | F18: 43764577 | G18: 0 | H18: 1.0853 | I18: 47497695.42
B19: GENERAL SERVICE LESS THAN 50 KW SERVICE CLASSIFICATION | C19: Retail Transmission Rate - Network Service Rate | D19: $/kWh | E19: 0.009 | F19: 17959848 | G19: 0 | H19: 1.0853 | I19: 19491823.03
B20: GENERAL SERVICE LESS THAN 50 KW SERVICE CLASSIFICATION | C20: Retail Transmission Rate - Line and Transformation Connection Service Rate | D20: $/kWh | E20: 0.0072 | F20: 17959848 | G20: 0 | H20: 1.0853 | I20: 19491823.03
B21: GENERAL SERVICE 50 to 4,999 kW SERVICE CLASSIFICATION | C21: Retail Transmission Rate - Network Service Rate | D21: $/kW | E21: 3.7321 | F21: 37956669 | G21: 116000 | H21: 1.0853 | I21: 41194372.87
B22: GENERAL SERVICE 50 to 4,999 kW SERVICE CLASSIFICATION | C22: Retail Transmission Rate - Line and Transformation Connection Service Rate | D22: $/kW | E22: 2.9176 | F22: 37956669 | G22: 116000 | H22: 1.0853 | I22: 41194372.87
B23: GENERAL SERVICE 50 to 4,999 kW SERVICE CLASSIFICATION | C23: Retail Transmission Rate - Network Service Rate - EV CHARGING | D23: $/kW | E23: =E21*$C$14 -> 0.634457 | H23: 1.0853 | I23: 0
B24: GENERAL SERVICE 50 to 4,999 kW SERVICE CLASSIFICATION | C24: Retail Transmission Rate - Line and Transformation Connection Service Rate - EV CHARGING | D24: $/kW | E24: =E22*$C$14 -> 0.495992 | H24: 1.0853 | I24: 0
B25: GENERAL SERVICE 50 to 4,999 kW SERVICE CLASSIFICATION | C25: Retail Transmission Rate - Network Service Rate - Interval Metered | D25: $/kW | E25: 4.1699 | F25: 0 | G25: 116000 | H25: 1.0853 | I25: 0
B26: GENERAL SERVICE 50 to 4,999 kW SERVICE CLASSIFICATION | C26: Retail Transmission Rate - Line and Transformation Connection Service Rate - Interval Metered | D26: $/kW | E26: 3.252 | F26: 0 | G26: 116000 | H26: 1.0853 | I26: 0
B27: UNMETERED SCATTERED LOAD SERVICE CLASSIFICATION | C27: Retail Transmission Rate - Network Service Rate | D27: $/kWh | E27: 0.009 | F27: 485235 | G27: 0 | H27: 1.0853 | I27: 526625.5455
B28: UNMETERED SCATTERED LOAD SERVICE CLASSIFICATION | C28: Retail Transmission Rate - Line and Transformation Connection Service Rate | D28: $/kWh | E28: 0.0072 | F28: 485235 | G28: 0 | H28: 1.0853 | I28: 526625.5455
B29: SENTINEL LIGHTING SERVICE CLASSIFICATION | C29: Retail Transmission Rate - Network Service Rate | D29: $/kW | E29: 2.8289 | F29: 79207 | G29: 171 | H29: 1.0853 | I29: 85963.3571
B30: SENTINEL LIGHTING SERVICE CLASSIFICATION | C30: Retail Transmission Rate - Line and Transformation Connection Service Rate | D30: $/kW | E30: 2.3024 | F30: 79207 | G30: 171 | H30: 1.0853 | I30: 85963.3571
B31: STREET LIGHTING SERVICE CLASSIFICATION | C31: Retail Transmission Rate - Network Service Rate | D31: $/kW | E31: 2.8145 | F31: 579945 | G31: 1736 | H31: 1.0853 | I31: 629414.3085
B32: STREET LIGHTING SERVICE CLASSIFICATION | C32: Retail Transmission Rate - Line and Transformation Connection Service Rate | D32: $/kW | E32: 2.2559 | F32: 579945 | G32: 1736 | H32: 1.0853 | I32: 629414.3085

Sheet 4. UTRs and Sub-Transmission
B18: Uniform Transmission Rates | C18: Unit | E18: 2025 Jan to Jun | G18: 2025 Jul to Dec | I18: 2026 Jan to Jun | J18: 2026 Jul to Dec | L18: 2027
B20: Rate Description | E20: Rate | I20: Rate | L20: Rate
B22: Network Service Rate | C22: kW | E22: 6.25 | G22: 6.25 | I22: 6.42 | J22: 6.42 | L22: =J22 -> 6.42
B24: Line Connection Service Rate | C24: kW | E24: 1 | G24: 1 | I24: 1.02 | J24: 1.02 | L24: =J24 -> 1.02
B26: Transformation Connection Service Rate | C26: kW | E26: 3.39 | G26: 3.39 | I26: 3.47 | J26: 3.47 | L26: =J26 -> 3.47
B29: Hydro One Sub-Transmission Rates | C29: Unit | E29: 2025 | I29: 2026 | L29: 2027
B33: Rate Description | E33: Rate | I33: Rate | L33: Rate
B35: Network Service Rate | C35: kW | E35: 5.2172 | I35: 5.4282 | L35: =I35 -> 5.4282
B37: Line Connection Service Rate | C37: kW | E37: 0.6537 | I37: 0.6896 | L37: =I37 -> 0.6896
B39: Transformation Connection Service Rate | C39: kW | E39: 3.3041 | I39: 3.4965 | L39: =I39 -> 3.4965
B41: Both Line and Transformation Connection Service Rate | C41: kW | E41: =E37+E39 -> 3.9578 | I41: 4.1861 | L41: =L37+L39 -> 4.1861
B44: If needed, add extra host here. (I) | C44: Unit | E44: 2025 | I44: 2026 | L44: 2027
B48: Rate Description | E48: Rate | H48: Rate | L48: Rate
B50: Network Service Rate | C50: kW
B52: Line Connection Service Rate | C52: kW
B54: Transformation Connection Service Rate | C54: kW
B56: Both Line and Transformation Connection Service Rate | C56: kW | E56: =E54+E52 -> 0 | I56: =J54+J52 -> 0 | L56: =L54+L52 -> 0
B59: If needed, add extra host here. (II) | C59: Unit | E59: 2025 | I59: 2026 | L59: 2027
B63: Rate Description | E63: Rate | H63: Rate | L63: Rate
B65: Network Service Rate | C65: kW
B67: Line Connection Service Rate | C67: kW
B69: Transformation Connection Service Rate | C69: kW
B71: Both Line and Transformation Connection Service Rate | C71: kW | E71: =E69+E67 -> 0 | I71: =J69+J67 -> 0 | L71: =L69+L67 -> 0
E73: Historical 2025 | I73: Current 2026 | L73: Forecast 2027
B74: Low Voltage Switchgear Credit (if applicable, enter as a negative value) | C74: $

Sheet 5. Historical Wholesale
B21: IESO | D21: Network | H21: Line Connection | L21: Transformation Connection | P21: Total Connection
B22: Month | D22: Units Billed | E22: Rate | F22: Amount | H22: Units Billed | I22: Rate | J22: Amount | L22: Units Billed | M22: Rate | N22: Amount | P22: Amount
B24: January | E24: =IF(D24<>0,F24/D24,0) -> 0 | I24: =IF(H24<>0,J24/H24,0) -> 0 | M24: =IF(L24<>0,N24/L24,0) -> 0 | P24: =J24+N24 -> 0
B25: February | E25: 0 | I25: 0 | M25: 0 | P25: 0
B26: March | E26: 0 | I26: 0 | M26: 0 | P26: 0
B27: April | E27: 0 | I27: 0 | M27: 0 | P27: 0
B28: May | E28: 0 | I28: 0 | M28: 0 | P28: 0
B29: June | E29: 0 | I29: 0 | M29: 0 | P29: 0
B30: July | E30: 0 | I30: 0 | M30: 0 | P30: 0
B31: August | E31: 0 | I31: 0 | M31: 0 | P31: 0
B32: September | E32: 0 | I32: 0 | M32: 0 | P32: 0
B33: October | E33: 0 | I33: 0 | M33: 0 | P33: 0
B34: November | E34: 0 | I34: 0 | M34: 0 | P34: 0
B35: December | E35: 0 | I35: 0 | M35: 0 | P35: 0
B37: Total | D37: =SUM(D24:D35) -> 0 | E37: =IF(D37<>0,F37/D37,0) -> 0 | F37: =SUM(F24:F35) -> 0 | H37: =SUM(H24:H35) -> 0 | I37: =IF(H37<>0,J37/H37,0) -> 0 | J37: =SUM(J24:J35) -> 0 | L37: =SUM(L24:L35) -> 0 | M37: =IF(L37<>0,N37/L37,0) -> 0 | N37: =SUM(N24:N35) -> 0 | P37: =SUM(P24:P35) -> 0
B39: Hydro One | D39: Network | H39: Line Connection | L39: Transformation Connection | P39: Total Connection
B41: Month | D41: Units Billed | E41: Rate | F41: Amount | H41: Units Billed | I41: Rate | J41: Amount | L41: Units Billed | M41: Rate | N41: Amount | P41: Amount
B43: January | D43: 20507 | E43: 5.2172 | F43: =D43*E43 -> 106989.1204 | H43: 20507.15 | I43: =ROUND(IF(H43<>0,J43/H43,0),4) -> 0.6537 | J43: 13405.52396 | L43: 20507.15 | M43: =ROUND(IF(L43<>0,N43/L43,0),4) -> 3.3041 | N43: 67757.67432 | P43: =J43+N43 -> 81163.19827
B44: February | D44: 20125 | E44: 5.2172 | F44: =D44*E43 -> 104996.15 | H44: 29435.66 | I44: =ROUND(IF(H44<>0,J44/H44,0),4) -> 0.6537 | J44: 19242.09094 | L44: 29435.66 | M44: =ROUND(IF(L44<>0,N44/L44,0),4) -> 3.3041 | N44: 97258.36421 | P44: 116500.4551
B45: March | D45: 18445 | E45: 5.2172 | F45: 96231.30617 | H45: 9677.89 | I45: 0.6537 | J45: 6326.436693 | L45: 9677.89 | M45: 3.3041 | N45: 31976.71635 | P45: 38303.15304
B46: April | D46: 16881 | E46: 5.2172 | F46: 88073.17053 | H46: 16881.31 | I46: 0.6537 | J46: 11035.31235 | L46: 16881.31 | M46: 3.3041 | N46: 55777.53637 | P46: 66812.84872
B47: May | D47: 14785 | E47: 5.2172 | F47: 77137.39761 | H47: 14785.21 | I47: 0.6537 | J47: 9665.091777 | L47: 14785.21 | M47: 3.3041 | N47: 48851.81236 | P47: 58516.90414
B48: June | D48: 22505 | E48: 5.2172 | F48: 117411.573 | H48: 22504.71 | I48: 0.6537 | J48: 14711.32893 | L48: 22504.71 | M48: 3.3041 | N48: 74357.81231 | P48: 89069.14124
B49: July | D49: 21156 | E49: 5.2172 | F49: 110375.1875 | H49: 21156.02 | I49: 0.6537 | J49: 13829.69027 | L49: 21156.02 | M49: 3.3041 | N49: 69901.60568 | P49: 83731.29596
B50: August | D50: 21521 | E50: 5.2172 | F50: 112279.2569 | H50: 21520.98 | I50: 0.6537 | J50: 14068.26463 | L50: 21520.98 | M50: 3.3041 | N50: 71107.47002 | P50: 85175.73464
B51: September | D51: 17430 | E51: 5.2172 | F51: 90937.41333 | H51: 28943.19 | I51: 0.6537 | J51: 18920.1633 | L51: 28943.19 | M51: 3.3041 | N51: 95631.19408 | P51: 114551.3574
B52: October | D52: 16259 | E52: 5.2172 | F52: 84828.95906 | H52: 16259.48 | I52: 0.6537 | J52: 10628.82208 | L52: 16259.48 | M52: 3.3041 | N52: 53722.94787 | P52: 64351.76994
B53: November | D53: 18182 | E53: 5.2172 | F53: 94859.75646 | H53: 18355.52 | I53: 0.6537 | J53: 11999.00342 | L53: 18355.52 | M53: 3.3041 | N53: 60648.47363 | P53: 72647.47706
B54: December | D54: 20731 | E54: 5.2172 | F54: 108159.234 | H54: 20731.28 | I54: 0.6537 | J54: 13552.03774 | L54: 20731.28 | M54: 3.3041 | N54: 68498.22225 | P54: 82050.25998
B56: Total | D56: =SUM(D43:D54) -> 228527 | E56: =IF(D56<>0,F56/D56,0) -> 5.217232646 | F56: =SUM(F43:F54) -> 1192278.525 | H56: =SUM(H43:H54) -> 240758.4 | I56: =IF(H56<>0,J56/H56,0) -> 0.6537 | J56: =SUM(J43:J54) -> 157383.7661 | L56: =SUM(L43:L54) -> 240758.4 | M56: =IF(L56<>0,N56/L56,0) -> 3.3041 | N56: =SUM(N43:N54) -> 795489.8294 | P56: =SUM(P43:P54) -> 952873.5955
B58: Add Extra Host Here (I) | D58: Network | H58: Line Connection | L58: Transformation Connection | P58: Total Connection
B59: (if needed)
B60: Month | D60: Units Billed | E60: Rate | F60: Amount | H60: Units Billed | I60: Rate | J60: Amount | L60: Units Billed | M60: Rate | N60: Amount | P60: Amount
B62: January | E62: =IF(D62<>0,F62/D62,0) -> 0 | I62: =IF(H62<>0,J62/H62,0) -> 0 | M62: =IF(L62<>0,N62/L62,0) -> 0 | P62: =J62+N62 -> 0
B63: February | E63: 0 | I63: 0 | M63: 0 | P63: 0
B64: March | E64: 0 | I64: 0 | M64: 0 | P64: 0
B65: April | E65: 0 | I65: 0 | M65: 0 | P65: 0
B66: May | E66: 0 | I66: 0 | M66: 0 | P66: 0
B67: June | E67: 0 | I67: 0 | M67: 0 | P67: 0
B68: July | E68: 0 | I68: 0 | M68: 0 | P68: 0
B69: August | E69: 0 | I69: 0 | M69: 0 | P69: 0
B70: September | E70: 0 | I70: 0 | M70: 0 | P70: 0
B71: October | E71: 0 | I71: 0 | M71: 0 | P71: 0
B72: November | E72: 0 | I72: 0 | M72: 0 | P72: 0
B73: December | E73: 0 | I73: 0 | M73: 0 | P73: 0
B75: Total | D75: =SUM(D62:D73) -> 0 | E75: =IF(D75<>0,F75/D75,0) -> 0 | F75: =SUM(F62:F73) -> 0 | H75: =SUM(H62:H73) -> 0 | I75: =IF(H75<>0,J75/H75,0) -> 0 | J75: =SUM(J62:J73) -> 0 | L75: =SUM(L62:L73) -> 0 | M75: =IF(L75<>0,N75/L75,0) -> 0 | N75: =SUM(N62:N73) -> 0 | P75: =SUM(P62:P73) -> 0
B77: Add Extra Host Here (II) | D77: Network | H77: Line Connection | L77: Transformation Connection | P77: Total Connection
B78: (if needed)
B79: Month | D79: Units Billed | E79: Rate | F79: Amount | H79: Units Billed | I79: Rate | J79: Amount | L79: Units Billed | M79: Rate | N79: Amount | P79: Amount
B81: January | E81: =IF(D81<>0,F81/D81,0) -> 0 | I81: =IF(H81<>0,J81/H81,0) -> 0 | M81: =IF(L81<>0,N81/L81,0) -> 0 | P81: =J81+N81 -> 0
B82: February | E82: 0 | I82: 0 | M82: 0 | P82: 0
B83: March | E83: 0 | I83: 0 | M83: 0 | P83: 0
B84: April | E84: 0 | I84: 0 | M84: 0 | P84: 0
B85: May | E85: 0 | I85: 0 | M85: 0 | P85: 0
B86: June | E86: 0 | I86: 0 | M86: 0 | P86: 0
B87: July | E87: 0 | I87: 0 | M87: 0 | P87: 0
B88: August | E88: 0 | I88: 0 | M88: 0 | P88: 0
B89: September | E89: 0 | I89: 0 | M89: 0 | P89: 0
B90: October | E90: 0 | I90: 0 | M90: 0 | P90: 0
B91: November | E91: 0 | I91: 0 | M91: 0 | P91: 0
B92: December | E92: 0 | I92: 0 | M92: 0 | P92: 0
B94: Total | D94: =SUM(D81:D92) -> 0 | E94: =IF(D94<>0,F94/D94,0) -> 0 | F94: =SUM(F81:F92) -> 0 | H94: =SUM(H81:H92) -> 0 | I94: =IF(H94<>0,J94/H94,0) -> 0 | J94: =SUM(J81:J92) -> 0 | L94: =SUM(L81:L92) -> 0 | M94: =IF(L94<>0,N94/L94,0) -> 0 | N94: =SUM(N81:N92) -> 0 | P94: =SUM(P81:P92) -> 0
B96: Total | D96: Network | H96: Line Connection | L96: Transformation Connection | P96: Total Connection
B98: Month | D98: Units Billed | E98: Rate | F98: Amount | H98: Units Billed | I98: Rate | J98: Amount | L98: Units Billed | M98: Rate | N98: Amount | P98: Amount
B100: January | D100: =D24+D43+D62+D81 -> 20507 | E100: =IF(D100<>0,F100/D100,0) -> 5.2172 | F100: =F24+F43+F62+F81 -> 106989.1204 | H100: =H24+H43+H62+H81 -> 20507.15 | I100: =IF(H100<>0,J100/H100,0) -> 0.6537 | J100: =J24+J43+J62+J81 -> 13405.52396 | L100: =L24+L43+L62+L81 -> 20507.15 | M100: =IF(L100<>0,N100/L100,0) -> 3.3041 | N100: =N24+N43+N62+N81 -> 67757.67432 | P100: =J100+N100 -> 81163.19827
B101: February | D101: =D25+D44+D63+D82 -> 20125 | E101: 5.2172 | F101: =F25+F44+F63+F82 -> 104996.15 | H101: =H25+H44+H63+H82 -> 29435.66 | I101: 0.6537 | J101: =J25+J44+J63+J82 -> 19242.09094 | L101: =L25+L44+L63+L82 -> 29435.66 | M101: 3.3041 | N101: =N25+N44+N63+N82 -> 97258.36421 | P101: 116500.4551
B102: March | D102: 18445 | E102: 5.217202829 | F102: 96231.30617 | H102: 9677.89 | I102: 0.6537 | J102: 6326.436693 | L102: 9677.89 | M102: 3.3041 | N102: 31976.71635 | P102: 38303.15304
B103: April | D103: 16881 | E103: 5.217295808 | F103: 88073.17053 | H103: 16881.31 | I103: 0.6537 | J103: 11035.31235 | L103: 16881.31 | M103: 3.3041 | N103: 55777.53637 | P103: 66812.84872
B104: May | D104: 14785 | E104: 5.217274103 | F104: 77137.39761 | H104: 14785.21 | I104: 0.6537 | J104: 9665.091777 | L104: 14785.21 | M104: 3.3041 | N104: 48851.81236 | P104: 58516.90414
B105: June | D105: 22505 | E105: 5.217132771 | F105: 117411.573 | H105: 22504.71 | I105: 0.6537 | J105: 14711.32893 | L105: 22504.71 | M105: 3.3041 | N105: 74357.81231 | P105: 89069.14124
B106: July | D106: 21156 | E106: 5.217204932 | F106: 110375.1875 | H106: 21156.02 | I106: 0.6537 | J106: 13829.69027 | L106: 21156.02 | M106: 3.3041 | N106: 69901.60568 | P106: 83731.29596
B107: August | D107: 21521 | E107: 5.217195152 | F107: 112279.2569 | H107: 21520.98 | I107: 0.6537 | J107: 14068.26463 | L107: 21520.98 | M107: 3.3041 | N107: 71107.47002 | P107: 85175.73464
B108: September | D108: 17430 | E108: 5.21729279 | F108: 90937.41333 | H108: 28943.19 | I108: 0.6537 | J108: 18920.1633 | L108: 28943.19 | M108: 3.3041 | N108: 95631.19408 | P108: 114551.3574
B109: October | D109: 16259 | E109: 5.217354023 | F109: 84828.95906 | H109: 16259.48 | I109: 0.6537 | J109: 10628.82208 | L109: 16259.48 | M109: 3.3041 | N109: 53722.94787 | P109: 64351.76994
B110: November | D110: 18182 | E110: 5.217234433 | F110: 94859.75646 | H110: 18355.52 | I110: 0.6537 | J110: 11999.00342 | L110: 18355.52 | M110: 3.3041 | N110: 60648.47363 | P110: 72647.47706
B111: December | D111: 20731 | E111: 5.217270465 | F111: 108159.234 | H111: 20731.28 | I111: 0.6537 | J111: 13552.03774 | L111: 20731.28 | M111: 3.3041 | N111: 68498.22225 | P111: 82050.25998
B113: Total | D113: =SUM(D100:D111) -> 228527 | E113: =IF(D113<>0,F113/D113,0) -> 5.217232646 | F113: =SUM(F100:F111) -> 1192278.525 | H113: =SUM(H100:H111) -> 240758.4 | I113: =IF(H113<>0,J113/H113,0) -> 0.6537 | J113: =SUM(J100:J111) -> 157383.7661 | L113: =SUM(L100:L111) -> 240758.4 | M113: =IF(L113<>0,N113/L113,0) -> 3.3041 | N113: =SUM(N100:N111) -> 795489.8294 | P113: =SUM(P100:P111) -> 952873.5955
N115: Low Voltage Switchgear Credit (if applicable) | P115: ='4. UTRs and Sub-Transmission'!E76 -> 0
N117: Total including deduction for Low Voltage Switchgear Credit | P117: =P113+P115 -> 952873.5955

Sheet 6. Current Wholesale
B13: The purpose of this sheet is to calculate the expected billing when current 2026 Uniform Transmission Rates and Hydro One Sub-transmission Rates are applied against historical 2025 transmission units.
B20: IESO | D20: Network | H20: Line Connection | L20: Transformation Connection | P20: Total Connection
B22: Month | D22: Units Billed | E22: Rate | F22: Amount | H22: Units Billed | I22: Rate | J22: Amount | L22: Units Billed | M22: Rate | N22: Amount | P22: Amount
B24: January | D24: ='5. Historical Wholesale'!D24 -> 0 | E24: ='4. UTRs and Sub-Transmission'!I22 -> 6.42 | F24: =D24*E24 -> 0 | H24: ='5. Historical Wholesale'!H24 -> 0 | I24: ='4. UTRs and Sub-Transmission'!I24 -> 1.02 | J24: =H24*I24 -> 0 | L24: ='5. Historical Wholesale'!L24 -> 0 | M24: ='4. UTRs and Sub-Transmission'!I26 -> 3.47 | N24: =L24*M24 -> 0 | P24: =J24+N24 -> 0
B25: February | D25: ='5. Historical Wholesale'!D25 -> 0 | E25: =E24 -> 6.42 | F25: =D25*E25 -> 0 | H25: ='5. Historical Wholesale'!H25 -> 0 | I25: =I24 -> 1.02 | J25: =H25*I25 -> 0 | L25: ='5. Historical Wholesale'!L25 -> 0 | M25: =M24 -> 3.47 | N25: =L25*M25 -> 0 | P25: 0
B26: March | D26: ='5. Historical Wholesale'!D26 -> 0 | E26: =E25 -> 6.42 | F26: 0 | H26: ='5. Historical Wholesale'!H26 -> 0 | I26: =I25 -> 1.02 | J26: 0 | L26: ='5. Historical Wholesale'!L26 -> 0 | M26: =M25 -> 3.47 | N26: 0 | P26: 0
B27: April | D27: ='5. Historical Wholesale'!D27 -> 0 | E27: 6.42 | F27: 0 | H27: ='5. Historical Wholesale'!H27 -> 0 | I27: 1.02 | J27: 0 | L27: ='5. Historical Wholesale'!L27 -> 0 | M27: 3.47 | N27: 0 | P27: 0
B28: May | D28: ='5. Historical Wholesale'!D28 -> 0 | E28: 6.42 | F28: 0 | H28: ='5. Historical Wholesale'!H28 -> 0 | I28: 1.02 | J28: 0 | L28: ='5. Historical Wholesale'!L28 -> 0 | M28: 3.47 | N28: 0 | P28: 0
B29: June | D29: ='5. Historical Wholesale'!D29 -> 0 | E29: 6.42 | F29: 0 | H29: ='5. Historical Wholesale'!H29 -> 0 | I29: 1.02 | J29: 0 | L29: ='5. Historical Wholesale'!L29 -> 0 | M29: 3.47 | N29: 0 | P29: 0
B30: July | D30: ='5. Historical Wholesale'!D30 -> 0 | E30: ='4. UTRs and Sub-Transmission'!J22 -> 6.42 | F30: 0 | H30: ='5. Historical Wholesale'!H30 -> 0 | I30: ='4. UTRs and Sub-Transmission'!J24 -> 1.02 | J30: 0 | L30: ='5. Historical Wholesale'!L30 -> 0 | M30: ='4. UTRs and Sub-Transmission'!J26 -> 3.47 | N30: 0 | P30: 0
B31: August | D31: ='5. Historical Wholesale'!D31 -> 0 | E31: 6.42 | F31: 0 | H31: ='5. Historical Wholesale'!H31 -> 0 | I31: 1.02 | J31: 0 | L31: ='5. Historical Wholesale'!L31 -> 0 | M31: 3.47 | N31: 0 | P31: 0
B32: September | D32: ='5. Historical Wholesale'!D32 -> 0 | E32: 6.42 | F32: 0 | H32: ='5. Historical Wholesale'!H32 -> 0 | I32: 1.02 | J32: 0 | L32: ='5. Historical Wholesale'!L32 -> 0 | M32: 3.47 | N32: 0 | P32: 0
B33: October | D33: ='5. Historical Wholesale'!D33 -> 0 | E33: 6.42 | F33: 0 | H33: ='5. Historical Wholesale'!H33 -> 0 | I33: 1.02 | J33: 0 | L33: ='5. Historical Wholesale'!L33 -> 0 | M33: 3.47 | N33: 0 | P33: 0
B34: November | D34: ='5. Historical Wholesale'!D34 -> 0 | E34: 6.42 | F34: 0 | H34: ='5. Historical Wholesale'!H34 -> 0 | I34: 1.02 | J34: 0 | L34: ='5. Historical Wholesale'!L34 -> 0 | M34: 3.47 | N34: 0 | P34: 0
B35: December | D35: ='5. Historical Wholesale'!D35 -> 0 | E35: 6.42 | F35: 0 | H35: ='5. Historical Wholesale'!H35 -> 0 | I35: 1.02 | J35: 0 | L35: ='5. Historical Wholesale'!L35 -> 0 | M35: 3.47 | N35: 0 | P35: 0
B37: Total | D37: =SUM(D24:D35) -> 0 | E37: =IF(D37<>0,F37/D37,0) -> 0 | F37: =SUM(F24:F35) -> 0 | H37: =SUM(H24:H35) -> 0 | I37: =IF(H37<>0,J37/H37,0) -> 0 | J37: =SUM(J24:J35) -> 0 | L37: =SUM(L24:L35) -> 0 | M37: =IF(L37<>0,N37/L37,0) -> 0 | N37: =SUM(N24:N35) -> 0 | P37: =SUM(P24:P35) -> 0
B39: Hydro One | D39: Network | H39: Line Connection | L39: Transformation Connection | P39: Total Connection
B41: Month | D41: Units Billed | E41: Rate | F41: Amount | H41: Units Billed | I41: Rate | J41: Amount | L41: Units Billed | M41: Rate | N41: Amount | P41: Amount
B43: January | D43: ='5. Historical Wholesale'!D43 -> 20507 | E43: ='4. UTRs and Sub-Transmission'!I35 -> 5.4282 | F43: =D43*E43 -> 111316.0974 | H43: ='5. Historical Wholesale'!H43 -> 20507.15 | I43: ='4. UTRs and Sub-Transmission'!I37 -> 0.6896 | J43: =H43*I43 -> 14141.73064 | L43: ='5. Historical Wholesale'!L43 -> 20507.15 | M43: ='4. UTRs and Sub-Transmission'!I39 -> 3.4965 | N43: =L43*M43 -> 71703.24998 | P43: =J43+N43 -> 85844.98062
B44: February | D44: ='5. Historical Wholesale'!D44 -> 20125 | E44: =E43 -> 5.4282 | F44: =D44*E44 -> 109242.525 | H44: ='5. Historical Wholesale'!H44 -> 29435.66 | I44: =I43 -> 0.6896 | J44: =H44*I44 -> 20298.83114 | L44: ='5. Historical Wholesale'!L44 -> 29435.66 | M44: =M43 -> 3.4965 | N44: =L44*M44 -> 102921.7852 | P44: 123220.6163
B45: March | D45: ='5. Historical Wholesale'!D45 -> 18445 | E45: 5.4282 | F45: 100123.149 | H45: ='5. Historical Wholesale'!H45 -> 9677.89 | I45: 0.6896 | J45: 6673.872944 | L45: ='5. Historical Wholesale'!L45 -> 9677.89 | M45: =M44 -> 3.4965 | N45: 33838.74238 | P45: 40512.61533
B46: April | D46: ='5. Historical Wholesale'!D46 -> 16881 | E46: 5.4282 | F46: 91633.4442 | H46: ='5. Historical Wholesale'!H46 -> 16881.31 | I46: 0.6896 | J46: 11641.35138 | L46: ='5. Historical Wholesale'!L46 -> 16881.31 | M46: =M45 -> 3.4965 | N46: 59025.50041 | P46: 70666.85179
B47: May | D47: ='5. Historical Wholesale'!D47 -> 14785 | E47: 5.4282 | F47: 80255.937 | H47: ='5. Historical Wholesale'!H47 -> 14785.21 | I47: 0.6896 | J47: 10195.88082 | L47: ='5. Historical Wholesale'!L47 -> 14785.21 | M47: 3.4965 | N47: 51696.48677 | P47: 61892.36758
B48: June | D48: ='5. Historical Wholesale'!D48 -> 22505 | E48: 5.4282 | F48: 122161.641 | H48: ='5. Historical Wholesale'!H48 -> 22504.71 | I48: 0.6896 | J48: 15519.24802 | L48: ='5. Historical Wholesale'!L48 -> 22504.71 | M48: 3.4965 | N48: 78687.71852 | P48: 94206.96653
B49: July | D49: ='5. Historical Wholesale'!D49 -> 21156 | E49: 5.4282 | F49: 114838.9992 | H49: ='5. Historical Wholesale'!H49 -> 21156.02 | I49: 0.6896 | J49: 14589.19139 | L49: ='5. Historical Wholesale'!L49 -> 21156.02 | M49: 3.4965 | N49: 73972.02393 | P49: 88561.21532
B50: August | D50: ='5. Historical Wholesale'!D50 -> 21521 | E50: 5.4282 | F50: 116820.2922 | H50: ='5. Historical Wholesale'!H50 -> 21520.98 | I50: 0.6896 | J50: 14840.86781 | L50: ='5. Historical Wholesale'!L50 -> 21520.98 | M50: 3.4965 | N50: 75248.10657 | P50: 90088.97438
B51: September | D51: ='5. Historical Wholesale'!D51 -> 17430 | E51: 5.4282 | F51: 94613.526 | H51: ='5. Historical Wholesale'!H51 -> 28943.19 | I51: 0.6896 | J51: 19959.22382 | L51: ='5. Historical Wholesale'!L51 -> 28943.19 | M51: 3.4965 | N51: 101199.8638 | P51: 121159.0877
B52: October | D52: ='5. Historical Wholesale'!D52 -> 16259 | E52: 5.4282 | F52: 88257.1038 | H52: ='5. Historical Wholesale'!H52 -> 16259.48 | I52: 0.6896 | J52: 11212.53741 | L52: ='5. Historical Wholesale'!L52 -> 16259.48 | M52: 3.4965 | N52: 56851.27182 | P52: 68063.80923
B53: November | D53: ='5. Historical Wholesale'!D53 -> 18182 | E53: 5.4282 | F53: 98695.5324 | H53: ='5. Historical Wholesale'!H53 -> 18355.52 | I53: 0.6896 | J53: 12657.96659 | L53: ='5. Historical Wholesale'!L53 -> 18355.52 | M53: 3.4965 | N53: 64180.07568 | P53: 76838.04227
B54: December | D54: ='5. Historical Wholesale'!D54 -> 20731 | E54: 5.4282 | F54: 112532.0142 | H54: ='5. Historical Wholesale'!H54 -> 20731.28 | I54: 0.6896 | J54: 14296.29069 | L54: ='5. Historical Wholesale'!L54 -> 20731.28 | M54: 3.4965 | N54: 72486.92052 | P54: 86783.21121
B56: Total | D56: =SUM(D43:D54) -> 228527 | E56: =IF(D56<>0,F56/D56,0) -> 5.4282 | F56: =SUM(F43:F54) -> 1240490.261 | H56: =SUM(H43:H54) -> 240758.4 | I56: =IF(H56<>0,J56/H56,0) -> 0.6896 | J56: =SUM(J43:J54) -> 166026.9926 | L56: =SUM(L43:L54) -> 240758.4 | M56: =IF(L56<>0,N56/L56,0) -> 3.4965 | N56: =SUM(N43:N54) -> 841811.7456 | P56: =SUM(P43:P54) -> 1007838.738
B58: ='5. Historical Wholesale'!B58 -> Add Extra Host Here (I) | D58: Network | H58: Line Connection | L58: Transformation Connection | P58: Total Connection
B60: Month | D60: Units Billed | E60: Rate | F60: Amount | H60: Units Billed | I60: Rate | J60: Amount | L60: Units Billed | M60: Rate | N60: Amount | P60: Amount
B62: January | D62: ='5. Historical Wholesale'!D62 -> 0 | E62: ='4. UTRs and Sub-Transmission'!H52 -> 0 | F62: =D62*E62 -> 0 | H62: ='5. Historical Wholesale'!H62 -> 0 | I62: ='4. UTRs and Sub-Transmission'!H54 -> 0 | J62: =H62*I62 -> 0 | L62: ='5. Historical Wholesale'!L62 -> 0 | M62: ='4. UTRs and Sub-Transmission'!H56 -> 0 | N62: =L62*M62 -> 0 | P62: =J62+N62 -> 0
B63: February | D63: ='5. Historical Wholesale'!D63 -> 0 | E63: =E62 -> 0 | F63: =D63*E63 -> 0 | H63: ='5. Historical Wholesale'!H63 -> 0 | I63: =I62 -> 0 | J63: =H63*I63 -> 0 | L63: ='5. Historical Wholesale'!L63 -> 0 | M63: =M62 -> 0 | N63: =L63*M63 -> 0 | P63: 0
B64: March | D64: ='5. Historical Wholesale'!D64 -> 0 | E64: =E63 -> 0 | F64: 0 | H64: ='5. Historical Wholesale'!H64 -> 0 | I64: =I63 -> 0 | J64: 0 | L64: ='5. Historical Wholesale'!L64 -> 0 | M64: =M63 -> 0 | N64: 0 | P64: 0
B65: April | D65: ='5. Historical Wholesale'!D65 -> 0 | E65: 0 | F65: 0 | H65: ='5. Historical Wholesale'!H65 -> 0 | I65: 0 | J65: 0 | L65: ='5. Historical Wholesale'!L65 -> 0 | M65: =M64 -> 0 | N65: 0 | P65: 0
B66: May | D66: ='5. Historical Wholesale'!D66 -> 0 | E66: 0 | F66: 0 | H66: ='5. Historical Wholesale'!H66 -> 0 | I66: 0 | J66: 0 | L66: ='5. Historical Wholesale'!L66 -> 0 | M66: 0 | N66: 0 | P66: 0
B67: June | D67: ='5. Historical Wholesale'!D67 -> 0 | E67: 0 | F67: 0 | H67: ='5. Historical Wholesale'!H67 -> 0 | I67: 0 | J67: 0 | L67: ='5. Historical Wholesale'!L67 -> 0 | M67: 0 | N67: 0 | P67: 0
B68: July | D68: ='5. Historical Wholesale'!D68 -> 0 | E68: 0 | F68: 0 | H68: ='5. Historical Wholesale'!H68 -> 0 | I68: 0 | J68: 0 | L68: ='5. Historical Wholesale'!L68 -> 0 | M68: 0 | N68: 0 | P68: 0
B69: August | D69: ='5. Historical Wholesale'!D69 -> 0 | E69: 0 | F69: 0 | H69: ='5. Historical Wholesale'!H69 -> 0 | I69: 0 | J69: 0 | L69: ='5. Historical Wholesale'!L69 -> 0 | M69: 0 | N69: 0 | P69: 0
B70: September | D70: ='5. Historical Wholesale'!D70 -> 0 | E70: 0 | F70: 0 | H70: ='5. Historical Wholesale'!H70 -> 0 | I70: 0 | J70: 0 | L70: ='5. Historical Wholesale'!L70 -> 0 | M70: 0 | N70: 0 | P70: 0
B71: October | D71: ='5. Historical Wholesale'!D71 -> 0 | E71: 0 | F71: 0 | H71: ='5. Historical Wholesale'!H71 -> 0 | I71: 0 | J71: 0 | L71: ='5. Historical Wholesale'!L71 -> 0 | M71: 0 | N71: 0 | P71: 0
B72: November | D72: ='5. Historical Wholesale'!D72 -> 0 | E72: 0 | F72: 0 | H72: ='5. Historical Wholesale'!H72 -> 0 | I72: 0 | J72: 0 | L72: ='5. Historical Wholesale'!L72 -> 0 | M72: 0 | N72: 0 | P72: 0
B73: December | D73: ='5. Historical Wholesale'!D73 -> 0 | E73: 0 | F73: 0 | H73: ='5. Historical Wholesale'!H73 -> 0 | I73: 0 | J73: 0 | L73: ='5. Historical Wholesale'!L73 -> 0 | M73: 0 | N73: 0 | P73: 0
B75: Total | D75: =SUM(D62:D73) -> 0 | E75: =IF(D75<>0,F75/D75,0) -> 0 | F75: =SUM(F62:F73) -> 0 | H75: =SUM(H62:H73) -> 0 | I75: =IF(H75<>0,J75/H75,0) -> 0 | J75: =SUM(J62:J73) -> 0 | L75: =SUM(L62:L73) -> 0 | M75: =IF(L75<>0,N75/L75,0) -> 0 | N75: =SUM(N62:N73) -> 0 | P75: =SUM(P62:P73) -> 0
B77: ='5. Historical Wholesale'!B77 -> Add Extra Host Here (II) | D77: Network | H77: Line Connection | L77: Transformation Connection | P77: Total Connection
B79: Month | D79: Units Billed | E79: Rate | F79: Amount | H79: Units Billed | I79: Rate | J79: Amount | L79: Units Billed | M79: Rate | N79: Amount | P79: Amount
B81: January | D81: ='5. Historical Wholesale'!D81 -> 0 | E81: ='4. UTRs and Sub-Transmission'!H67 -> 0 | F81: =D81*E81 -> 0 | H81: ='5. Historical Wholesale'!H81 -> 0 | I81: ='4. UTRs and Sub-Transmission'!H69 -> 0 | J81: =H81*I81 -> 0 | L81: ='5. Historical Wholesale'!L81 -> 0 | M81: ='4. UTRs and Sub-Transmission'!H71 -> 0 | N81: =L81*M81 -> 0 | P81: =J81+N81 -> 0
B82: February | D82: ='5. Historical Wholesale'!D82 -> 0 | E82: =E81 -> 0 | F82: =D82*E82 -> 0 | H82: ='5. Historical Wholesale'!H82 -> 0 | I82: =I81 -> 0 | J82: =H82*I82 -> 0 | L82: ='5. Historical Wholesale'!L82 -> 0 | M82: =M81 -> 0 | N82: =L82*M82 -> 0 | P82: 0
B83: March | D83: ='5. Historical Wholesale'!D83 -> 0 | E83: =E82 -> 0 | F83: 0 | H83: ='5. Historical Wholesale'!H83 -> 0 | I83: =I82 -> 0 | J83: 0 | L83: ='5. Historical Wholesale'!L83 -> 0 | M83: =M82 -> 0 | N83: 0 | P83: 0
B84: April | D84: ='5. Historical Wholesale'!D84 -> 0 | E84: 0 | F84: 0 | H84: ='5. Historical Wholesale'!H84 -> 0 | I84: 0 | J84: 0 | L84: ='5. Historical Wholesale'!L84 -> 0 | M84: =M83 -> 0 | N84: 0 | P84: 0
B85: May | D85: ='5. Historical Wholesale'!D85 -> 0 | E85: 0 | F85: 0 | H85: ='5. Historical Wholesale'!H85 -> 0 | I85: 0 | J85: 0 | L85: ='5. Historical Wholesale'!L85 -> 0 | M85: 0 | N85: 0 | P85: 0
B86: June | D86: ='5. Historical Wholesale'!D86 -> 0 | E86: 0 | F86: 0 | H86: ='5. Historical Wholesale'!H86 -> 0 | I86: 0 | J86: 0 | L86: ='5. Historical Wholesale'!L86 -> 0 | M86: 0 | N86: 0 | P86: 0
B87: July | D87: ='5. Historical Wholesale'!D87 -> 0 | E87: 0 | F87: 0 | H87: ='5. Historical Wholesale'!H87 -> 0 | I87: 0 | J87: 0 | L87: ='5. Historical Wholesale'!L87 -> 0 | M87: 0 | N87: 0 | P87: 0
B88: August | D88: ='5. Historical Wholesale'!D88 -> 0 | E88: 0 | F88: 0 | H88: ='5. Historical Wholesale'!H88 -> 0 | I88: 0 | J88: 0 | L88: ='5. Historical Wholesale'!L88 -> 0 | M88: 0 | N88: 0 | P88: 0
B89: September | D89: ='5. Historical Wholesale'!D89 -> 0 | E89: 0 | F89: 0 | H89: ='5. Historical Wholesale'!H89 -> 0 | I89: 0 | J89: 0 | L89: ='5. Historical Wholesale'!L89 -> 0 | M89: 0 | N89: 0 | P89: 0
B90: October | D90: ='5. Historical Wholesale'!D90 -> 0 | E90: 0 | F90: 0 | H90: ='5. Historical Wholesale'!H90 -> 0 | I90: 0 | J90: 0 | L90: ='5. Historical Wholesale'!L90 -> 0 | M90: 0 | N90: 0 | P90: 0
B91: November | D91: ='5. Historical Wholesale'!D91 -> 0 | E91: 0 | F91: 0 | H91: ='5. Historical Wholesale'!H91 -> 0 | I91: 0 | J91: 0 | L91: ='5. Historical Wholesale'!L91 -> 0 | M91: 0 | N91: 0 | P91: 0
B92: December | D92: ='5. Historical Wholesale'!D92 -> 0 | E92: 0 | F92: 0 | H92: ='5. Historical Wholesale'!H92 -> 0 | I92: 0 | J92: 0 | L92: ='5. Historical Wholesale'!L92 -> 0 | M92: 0 | N92: 0 | P92: 0
B94: Total | D94: =SUM(D81:D92) -> 0 | E94: =IF(D94<>0,F94/D94,0) -> 0 | F94: =SUM(F81:F92) -> 0 | H94: =SUM(H81:H92) -> 0 | I94: =IF(H94<>0,J94/H94,0) -> 0 | J94: =SUM(J81:J92) -> 0 | L94: =SUM(L81:L92) -> 0 | M94: =IF(L94<>0,N94/L94,0) -> 0 | N94: =SUM(N81:N92) -> 0 | P94: =SUM(P81:P92) -> 0
B96: Total | D96: Network | H96: Line Connection | L96: Transformation Connection | P96: Total Connection
B98: Month | D98: Units Billed | E98: Rate | F98: Amount | H98: Units Billed | I98: Rate | J98: Amount | L98: Units Billed | M98: Rate | N98: Amount | P98: Amount
B100: January | D100: =D24+D43+D62+D81 -> 20507 | E100: =IF(D100<>0,F100/D100,0) -> 5.4282 | F100: =F24+F43+F62+F81 -> 111316.0974 | H100: =H24+H43+H62+H81 -> 20507.15 | I100: =IF(H100<>0,J100/H100,0) -> 0.6896 | J100: =J24+J43+J62+J81 -> 14141.73064 | L100: =L24+L43+L62+L81 -> 20507.15 | M100: =IF(L100<>0,N100/L100,0) -> 3.4965 | N100: =N24+N43+N62+N81 -> 71703.24998 | P100: =J100+N100 -> 85844.98062
B101: February | D101: =D25+D44+D63+D82 -> 20125 | E101: 5.4282 | F101: =F25+F44+F63+F82 -> 109242.525 | H101: =H25+H44+H63+H82 -> 29435.66 | I101: 0.6896 | J101: =J25+J44+J63+J82 -> 20298.83114 | L101: =L25+L44+L63+L82 -> 29435.66 | M101: 3.4965 | N101: =N25+N44+N63+N82 -> 102921.7852 | P101: 123220.6163
B102: March | D102: 18445 | E102: 5.4282 | F102: 100123.149 | H102: 9677.89 | I102: 0.6896 | J102: 6673.872944 | L102: 9677.89 | M102: 3.4965 | N102: 33838.74238 | P102: 40512.61533
B103: April | D103: 16881 | E103: 5.4282 | F103: 91633.4442 | H103: 16881.31 | I103: 0.6896 | J103: 11641.35138 | L103: 16881.31 | M103: 3.4965 | N103: 59025.50041 | P103: 70666.85179
B104: May | D104: 14785 | E104: 5.4282 | F104: 80255.937 | H104: 14785.21 | I104: 0.6896 | J104: 10195.88082 | L104: 14785.21 | M104: 3.4965 | N104: 51696.48677 | P104: 61892.36758
B105: June | D105: 22505 | E105: 5.4282 | F105: 122161.641 | H105: 22504.71 | I105: 0.6896 | J105: 15519.24802 | L105: 22504.71 | M105: 3.4965 | N105: 78687.71852 | P105: 94206.96653
B106: July | D106: 21156 | E106: 5.4282 | F106: 114838.9992 | H106: 21156.02 | I106: 0.6896 | J106: 14589.19139 | L106: 21156.02 | M106: 3.4965 | N106: 73972.02393 | P106: 88561.21532
B107: August | D107: 21521 | E107: 5.4282 | F107: 116820.2922 | H107: 21520.98 | I107: 0.6896 | J107: 14840.86781 | L107: 21520.98 | M107: 3.4965 | N107: 75248.10657 | P107: 90088.97438
B108: September | D108: 17430 | E108: 5.4282 | F108: 94613.526 | H108: 28943.19 | I108: 0.6896 | J108: 19959.22382 | L108: 28943.19 | M108: 3.4965 | N108: 101199.8638 | P108: 121159.0877
B109: October | D109: 16259 | E109: 5.4282 | F109: 88257.1038 | H109: 16259.48 | I109: 0.6896 | J109: 11212.53741 | L109: 16259.48 | M109: 3.4965 | N109: 56851.27182 | P109: 68063.80923
B110: November | D110: 18182 | E110: 5.4282 | F110: 98695.5324 | H110: 18355.52 | I110: 0.6896 | J110: 12657.96659 | L110: 18355.52 | M110: 3.4965 | N110: 64180.07568 | P110: 76838.04227
B111: December | D111: 20731 | E111: 5.4282 | F111: 112532.0142 | H111: 20731.28 | I111: 0.6896 | J111: 14296.29069 | L111: 20731.28 | M111: 3.4965 | N111: 72486.92052 | P111: 86783.21121
B113: Total | D113: =SUM(D100:D111) -> 228527 | E113: =IF(D113<>0,F113/D113,0) -> 5.4282 | F113: =SUM(F100:F111) -> 1240490.261 | H113: =SUM(H100:H111) -> 240758.4 | I113: =IF(H113<>0,J113/H113,0) -> 0.6896 | J113: =SUM(J100:J111) -> 166026.9926 | L113: =SUM(L100:L111) -> 240758.4 | M113: =IF(L113<>0,N113/L113,0) -> 3.4965 | N113: =SUM(N100:N111) -> 841811.7456 | P113: =SUM(P100:P111) -> 1007838.738
N115: Low Voltage Switchgear Credit (if applicable) | P115: ='4. UTRs and Sub-Transmission'!J76 -> 0
N117: Total including deduction for Low Voltage Switchgear Credit | P117: =P113+P115 -> 1007838.738

Sheet 7. Forecast Wholesale
B13: The purpose of this sheet is to calculate the expected billing when forecasted 2027 Uniform Transmission Rates and Hydro One Sub-transmission Rates are applied against historical 2025 transmission units.
B20: IESO | D20: Network | H20: Line Connection | L20: Transformation Connection | P20: Total Connection
B22: Month | D22: Units Billed | E22: Rate | F22: Amount | H22: Units Billed | I22: Rate | J22: Amount | L22: Units Billed | M22: Rate | N22: Amount | P22: Amount
B24: January | D24: ='5. Historical Wholesale'!D24 -> 0 | E24: ='4. UTRs and Sub-Transmission'!L22 -> 6.42 | F24: =D24*E24 -> 0 | H24: ='5. Historical Wholesale'!H24 -> 0 | I24: ='4. UTRs and Sub-Transmission'!L24 -> 1.02 | J24: =H24*I24 -> 0 | L24: ='5. Historical Wholesale'!L24 -> 0 | M24: ='4. UTRs and Sub-Transmission'!L26 -> 3.47 | N24: =L24*M24 -> 0 | P24: =J24+N24 -> 0
B25: February | D25: ='5. Historical Wholesale'!D25 -> 0 | E25: =E24 -> 6.42 | F25: 0 | H25: ='5. Historical Wholesale'!H25 -> 0 | I25: =I24 -> 1.02 | J25: 0 | L25: ='5. Historical Wholesale'!L25 -> 0 | M25: =M24 -> 3.47 | N25: 0 | P25: 0
B26: March | D26: ='5. Historical Wholesale'!D26 -> 0 | E26: 6.42 | F26: 0 | H26: ='5. Historical Wholesale'!H26 -> 0 | I26: 1.02 | J26: 0 | L26: ='5. Historical Wholesale'!L26 -> 0 | M26: 3.47 | N26: 0 | P26: 0
B27: April | D27: ='5. Historical Wholesale'!D27 -> 0 | E27: 6.42 | F27: 0 | H27: ='5. Historical Wholesale'!H27 -> 0 | I27: 1.02 | J27: 0 | L27: ='5. Historical Wholesale'!L27 -> 0 | M27: 3.47 | N27: 0 | P27: 0
B28: May | D28: ='5. Historical Wholesale'!D28 -> 0 | E28: 6.42 | F28: 0 | H28: ='5. Historical Wholesale'!H28 -> 0 | I28: 1.02 | J28: 0 | L28: ='5. Historical Wholesale'!L28 -> 0 | M28: 3.47 | N28: 0 | P28: 0
B29: June | D29: ='5. Historical Wholesale'!D29 -> 0 | E29: 6.42 | F29: 0 | H29: ='5. Historical Wholesale'!H29 -> 0 | I29: 1.02 | J29: 0 | L29: ='5. Historical Wholesale'!L29 -> 0 | M29: 3.47 | N29: 0 | P29: 0
B30: July | D30: ='5. Historical Wholesale'!D30 -> 0 | E30: 6.42 | F30: 0 | H30: ='5. Historical Wholesale'!H30 -> 0 | I30: 1.02 | J30: 0 | L30: ='5. Historical Wholesale'!L30 -> 0 | M30: 3.47 | N30: 0 | P30: 0
B31: August | D31: ='5. Historical Wholesale'!D31 -> 0 | E31: 6.42 | F31: 0 | H31: ='5. Historical Wholesale'!H31 -> 0 | I31: 1.02 | J31: 0 | L31: ='5. Historical Wholesale'!L31 -> 0 | M31: 3.47 | N31: 0 | P31: 0
B32: September | D32: ='5. Historical Wholesale'!D32 -> 0 | E32: 6.42 | F32: 0 | H32: ='5. Historical Wholesale'!H32 -> 0 | I32: 1.02 | J32: 0 | L32: ='5. Historical Wholesale'!L32 -> 0 | M32: 3.47 | N32: 0 | P32: 0
B33: October | D33: ='5. Historical Wholesale'!D33 -> 0 | E33: 6.42 | F33: 0 | H33: ='5. Historical Wholesale'!H33 -> 0 | I33: 1.02 | J33: 0 | L33: ='5. Historical Wholesale'!L33 -> 0 | M33: 3.47 | N33: 0 | P33: 0
B34: November | D34: ='5. Historical Wholesale'!D34 -> 0 | E34: 6.42 | F34: 0 | H34: ='5. Historical Wholesale'!H34 -> 0 | I34: 1.02 | J34: 0 | L34: ='5. Historical Wholesale'!L34 -> 0 | M34: 3.47 | N34: 0 | P34: 0
B35: December | D35: ='5. Historical Wholesale'!D35 -> 0 | E35: 6.42 | F35: 0 | H35: ='5. Historical Wholesale'!H35 -> 0 | I35: 1.02 | J35: 0 | L35: ='5. Historical Wholesale'!L35 -> 0 | M35: 3.47 | N35: 0 | P35: 0
B37: Total | D37: =SUM(D24:D35) -> 0 | E37: =IF(D37<>0,F37/D37,0) -> 0 | F37: =SUM(F24:F35) -> 0 | H37: =SUM(H24:H35) -> 0 | I37: =IF(H37<>0,J37/H37,0) -> 0 | J37: =SUM(J24:J35) -> 0 | L37: =SUM(L24:L35) -> 0 | M37: =IF(L37<>0,N37/L37,0) -> 0 | N37: =SUM(N24:N35) -> 0 | P37: =SUM(P24:P35) -> 0
B39: Hydro One | D39: Network | H39: Line Connection | L39: Transformation Connection | P39: Total Connection
B41: Month | D41: Units Billed | E41: Rate | F41: Amount | H41: Units Billed | I41: Rate | J41: Amount | L41: Units Billed | M41: Rate | N41: Amount | P41: Amount
B43: January | D43: ='5. Historical Wholesale'!D43 -> 20507 | E43: ='4. UTRs and Sub-Transmission'!L35 -> 5.4282 | F43: =D43*E43 -> 111316.0974 | H43: ='5. Historical Wholesale'!H43 -> 20507.15 | I43: ='4. UTRs and Sub-Transmission'!L37 -> 0.6896 | J43: =H43*I43 -> 14141.73064 | L43: ='5. Historical Wholesale'!L43 -> 20507.15 | M43: ='4. UTRs and Sub-Transmission'!L39 -> 3.4965 | N43: =L43*M43 -> 71703.24998 | P43: =J43+N43 -> 85844.98062
B44: February | D44: ='5. Historical Wholesale'!D44 -> 20125 | E44: =E43 -> 5.4282 | F44: 109242.525 | H44: ='5. Historical Wholesale'!H44 -> 29435.66 | I44: =I43 -> 0.6896 | J44: 20298.83114 | L44: ='5. Historical Wholesale'!L44 -> 29435.66 | M44: =M43 -> 3.4965 | N44: 102921.7852 | P44: 123220.6163
B45: March | D45: ='5. Historical Wholesale'!D45 -> 18445 | E45: 5.4282 | F45: 100123.149 | H45: ='5. Historical Wholesale'!H45 -> 9677.89 | I45: 0.6896 | J45: 6673.872944 | L45: ='5. Historical Wholesale'!L45 -> 9677.89 | M45: 3.4965 | N45: 33838.74238 | P45: 40512.61533
B46: April | D46: ='5. Historical Wholesale'!D46 -> 16881 | E46: 5.4282 | F46: 91633.4442 | H46: ='5. Historical Wholesale'!H46 -> 16881.31 | I46: 0.6896 | J46: 11641.35138 | L46: ='5. Historical Wholesale'!L46 -> 16881.31 | M46: 3.4965 | N46: 59025.50041 | P46: 70666.85179
B47: May | D47: ='5. Historical Wholesale'!D47 -> 14785 | E47: 5.4282 | F47: 80255.937 | H47: ='5. Historical Wholesale'!H47 -> 14785.21 | I47: 0.6896 | J47: 10195.88082 | L47: ='5. Historical Wholesale'!L47 -> 14785.21 | M47: 3.4965 | N47: 51696.48677 | P47: 61892.36758
B48: June | D48: ='5. Historical Wholesale'!D48 -> 22505 | E48: 5.4282 | F48: 122161.641 | H48: ='5. Historical Wholesale'!H48 -> 22504.71 | I48: 0.6896 | J48: 15519.24802 | L48: ='5. Historical Wholesale'!L48 -> 22504.71 | M48: 3.4965 | N48: 78687.71852 | P48: 94206.96653
B49: July | D49: ='5. Historical Wholesale'!D49 -> 21156 | E49: 5.4282 | F49: 114838.9992 | H49: ='5. Historical Wholesale'!H49 -> 21156.02 | I49: 0.6896 | J49: 14589.19139 | L49: ='5. Historical Wholesale'!L49 -> 21156.02 | M49: 3.4965 | N49: 73972.02393 | P49: 88561.21532
B50: August | D50: ='5. Historical Wholesale'!D50 -> 21521 | E50: 5.4282 | F50: 116820.2922 | H50: ='5. Historical Wholesale'!H50 -> 21520.98 | I50: 0.6896 | J50: 14840.86781 | L50: ='5. Historical Wholesale'!L50 -> 21520.98 | M50: 3.4965 | N50: 75248.10657 | P50: 90088.97438
B51: September | D51: ='5. Historical Wholesale'!D51 -> 17430 | E51: 5.4282 | F51: 94613.526 | H51: ='5. Historical Wholesale'!H51 -> 28943.19 | I51: 0.6896 | J51: 19959.22382 | L51: ='5. Historical Wholesale'!L51 -> 28943.19 | M51: 3.4965 | N51: 101199.8638 | P51: 121159.0877
B52: October | D52: ='5. Historical Wholesale'!D52 -> 16259 | E52: 5.4282 | F52: 88257.1038 | H52: ='5. Historical Wholesale'!H52 -> 16259.48 | I52: 0.6896 | J52: 11212.53741 | L52: ='5. Historical Wholesale'!L52 -> 16259.48 | M52: 3.4965 | N52: 56851.27182 | P52: 68063.80923
B53: November | D53: ='5. Historical Wholesale'!D53 -> 18182 | E53: 5.4282 | F53: 98695.5324 | H53: ='5. Historical Wholesale'!H53 -> 18355.52 | I53: 0.6896 | J53: 12657.96659 | L53: ='5. Historical Wholesale'!L53 -> 18355.52 | M53: 3.4965 | N53: 64180.07568 | P53: 76838.04227
B54: December | D54: ='5. Historical Wholesale'!D54 -> 20731 | E54: 5.4282 | F54: 112532.0142 | H54: ='5. Historical Wholesale'!H54 -> 20731.28 | I54: 0.6896 | J54: 14296.29069 | L54: ='5. Historical Wholesale'!L54 -> 20731.28 | M54: 3.4965 | N54: 72486.92052 | P54: 86783.21121
B56: Total | D56: =SUM(D43:D54) -> 228527 | E56: =IF(D56<>0,F56/D56,0) -> 5.4282 | F56: =SUM(F43:F54) -> 1240490.261 | H56: =SUM(H43:H54) -> 240758.4 | I56: =IF(H56<>0,J56/H56,0) -> 0.6896 | J56: =SUM(J43:J54) -> 166026.9926 | L56: =SUM(L43:L54) -> 240758.4 | M56: =IF(L56<>0,N56/L56,0) -> 3.4965 | N56: =SUM(N43:N54) -> 841811.7456 | P56: =SUM(P43:P54) -> 1007838.738
B58: ='5. Historical Wholesale'!B58 -> Add Extra Host Here (I) | D58: Network | H58: Line Connection | L58: Transformation Connection | P58: Total Connection
B60: Month | D60: Units Billed | E60: Rate | F60: Amount | H60: Units Billed | I60: Rate | J60: Amount | L60: Units Billed | M60: Rate | N60: Amount | P60: Amount
B62: January | D62: ='5. Historical Wholesale'!D62 -> 0 | E62: ='4. UTRs and Sub-Transmission'!L52 -> 0 | F62: =D62*E62 -> 0 | H62: ='5. Historical Wholesale'!H62 -> 0 | I62: ='4. UTRs and Sub-Transmission'!L54 -> 0 | J62: =H62*I62 -> 0 | L62: ='5. Historical Wholesale'!L62 -> 0 | M62: ='4. UTRs and Sub-Transmission'!L56 -> 0 | N62: =L62*M62 -> 0 | P62: =J62+N62 -> 0
B63: February | D63: ='5. Historical Wholesale'!D63 -> 0 | E63: =E62 -> 0 | F63: 0 | H63: ='5. Historical Wholesale'!H63 -> 0 | I63: =I62 -> 0 | J63: 0 | L63: ='5. Historical Wholesale'!L63 -> 0 | M63: =M62 -> 0 | N63: 0 | P63: 0
B64: March | D64: ='5. Historical Wholesale'!D64 -> 0 | E64: 0 | F64: 0 | H64: ='5. Historical Wholesale'!H64 -> 0 | I64: 0 | J64: 0 | L64: ='5. Historical Wholesale'!L64 -> 0 | M64: 0 | N64: 0 | P64: 0
B65: April | D65: ='5. Historical Wholesale'!D65 -> 0 | E65: 0 | F65: 0 | H65: ='5. Historical Wholesale'!H65 -> 0 | I65: 0 | J65: 0 | L65: ='5. Historical Wholesale'!L65 -> 0 | M65: 0 | N65: 0 | P65: 0
B66: May | D66: ='5. Historical Wholesale'!D66 -> 0 | E66: 0 | F66: 0 | H66: ='5. Historical Wholesale'!H66 -> 0 | I66: 0 | J66: 0 | L66: ='5. Historical Wholesale'!L66 -> 0 | M66: 0 | N66: 0 | P66: 0
B67: June | D67: ='5. Historical Wholesale'!D67 -> 0 | E67: 0 | F67: 0 | H67: ='5. Historical Wholesale'!H67 -> 0 | I67: 0 | J67: 0 | L67: ='5. Historical Wholesale'!L67 -> 0 | M67: 0 | N67: 0 | P67: 0
B68: July | D68: ='5. Historical Wholesale'!D68 -> 0 | E68: 0 | F68: 0 | H68: ='5. Historical Wholesale'!H68 -> 0 | I68: 0 | J68: 0 | L68: ='5. Historical Wholesale'!L68 -> 0 | M68: 0 | N68: 0 | P68: 0
B69: August | D69: ='5. Historical Wholesale'!D69 -> 0 | E69: 0 | F69: 0 | H69: ='5. Historical Wholesale'!H69 -> 0 | I69: 0 | J69: 0 | L69: ='5. Historical Wholesale'!L69 -> 0 | M69: 0 | N69: 0 | P69: 0
B70: September | D70: ='5. Historical Wholesale'!D70 -> 0 | E70: 0 | F70: 0 | H70: ='5. Historical Wholesale'!H70 -> 0 | I70: 0 | J70: 0 | L70: ='5. Historical Wholesale'!L70 -> 0 | M70: 0 | N70: 0 | P70: 0
B71: October | D71: ='5. Historical Wholesale'!D71 -> 0 | E71: 0 | F71: 0 | H71: ='5. Historical Wholesale'!H71 -> 0 | I71: 0 | J71: 0 | L71: ='5. Historical Wholesale'!L71 -> 0 | M71: 0 | N71: 0 | P71: 0
B72: November | D72: ='5. Historical Wholesale'!D72 -> 0 | E72: 0 | F72: 0 | H72: ='5. Historical Wholesale'!H72 -> 0 | I72: 0 | J72: 0 | L72: ='5. Historical Wholesale'!L72 -> 0 | M72: 0 | N72: 0 | P72: 0
B73: December | D73: ='5. Historical Wholesale'!D73 -> 0 | E73: 0 | F73: 0 | H73: ='5. Historical Wholesale'!H73 -> 0 | I73: 0 | J73: 0 | L73: ='5. Historical Wholesale'!L73 -> 0 | M73: 0 | N73: 0 | P73: 0
B75: Total | D75: =SUM(D62:D73) -> 0 | E75: =IF(D75<>0,F75/D75,0) -> 0 | F75: =SUM(F62:F73) -> 0 | H75: =SUM(H62:H73) -> 0 | I75: =IF(H75<>0,J75/H75,0) -> 0 | J75: =SUM(J62:J73) -> 0 | L75: =SUM(L62:L73) -> 0 | M75: =IF(L75<>0,N75/L75,0) -> 0 | N75: =SUM(N62:N73) -> 0 | P75: =SUM(P62:P73) -> 0
B77: ='5. Historical Wholesale'!B77 -> Add Extra Host Here (II) | D77: Network | H77: Line Connection | L77: Transformation Connection | P77: Total Connection
B79: Month | D79: Units Billed | E79: Rate | F79: Amount | H79: Units Billed | I79: Rate | J79: Amount | L79: Units Billed | M79: Rate | N79: Amount | P79: Amount
B81: January | D81: ='5. Historical Wholesale'!D81 -> 0 | E81: ='4. UTRs and Sub-Transmission'!L67 -> 0 | F81: =D81*E81 -> 0 | H81: ='5. Historical Wholesale'!H81 -> 0 | I81: ='4. UTRs and Sub-Transmission'!L69 -> 0 | J81: =H81*I81 -> 0 | L81: ='5. Historical Wholesale'!L81 -> 0 | M81: ='4. UTRs and Sub-Transmission'!L71 -> 0 | N81: =L81*M81 -> 0 | P81: =J81+N81 -> 0
B82: February | D82: ='5. Historical Wholesale'!D82 -> 0 | E82: =E81 -> 0 | F82: 0 | H82: ='5. Historical Wholesale'!H82 -> 0 | I82: =I81 -> 0 | J82: 0 | L82: ='5. Historical Wholesale'!L82 -> 0 | M82: =M81 -> 0 | N82: 0 | P82: 0
B83: March | D83: ='5. Historical Wholesale'!D83 -> 0 | E83: 0 | F83: 0 | H83: ='5. Historical Wholesale'!H83 -> 0 | I83: 0 | J83: 0 | L83: ='5. Historical Wholesale'!L83 -> 0 | M83: 0 | N83: 0 | P83: 0
B84: April | D84: ='5. Historical Wholesale'!D84 -> 0 | E84: 0 | F84: 0 | H84: ='5. Historical Wholesale'!H84 -> 0 | I84: 0 | J84: 0 | L84: ='5. Historical Wholesale'!L84 -> 0 | M84: 0 | N84: 0 | P84: 0
B85: May | D85: ='5. Historical Wholesale'!D85 -> 0 | E85: 0 | F85: 0 | H85: ='5. Historical Wholesale'!H85 -> 0 | I85: 0 | J85: 0 | L85: ='5. Historical Wholesale'!L85 -> 0 | M85: 0 | N85: 0 | P85: 0
B86: June | D86: ='5. Historical Wholesale'!D86 -> 0 | E86: 0 | F86: 0 | H86: ='5. Historical Wholesale'!H86 -> 0 | I86: 0 | J86: 0 | L86: ='5. Historical Wholesale'!L86 -> 0 | M86: 0 | N86: 0 | P86: 0
B87: July | D87: ='5. Historical Wholesale'!D87 -> 0 | E87: 0 | F87: 0 | H87: ='5. Historical Wholesale'!H87 -> 0 | I87: 0 | J87: 0 | L87: ='5. Historical Wholesale'!L87 -> 0 | M87: 0 | N87: 0 | P87: 0
B88: August | D88: ='5. Historical Wholesale'!D88 -> 0 | E88: 0 | F88: 0 | H88: ='5. Historical Wholesale'!H88 -> 0 | I88: 0 | J88: 0 | L88: ='5. Historical Wholesale'!L88 -> 0 | M88: 0 | N88: 0 | P88: 0
B89: September | D89: ='5. Historical Wholesale'!D89 -> 0 | E89: 0 | F89: 0 | H89: ='5. Historical Wholesale'!H89 -> 0 | I89: 0 | J89: 0 | L89: ='5. Historical Wholesale'!L89 -> 0 | M89: 0 | N89: 0 | P89: 0
B90: October | D90: ='5. Historical Wholesale'!D90 -> 0 | E90: 0 | F90: 0 | H90: ='5. Historical Wholesale'!H90 -> 0 | I90: 0 | J90: 0 | L90: ='5. Historical Wholesale'!L90 -> 0 | M90: 0 | N90: 0 | P90: 0
B91: November | D91: ='5. Historical Wholesale'!D91 -> 0 | E91: 0 | F91: 0 | H91: ='5. Historical Wholesale'!H91 -> 0 | I91: 0 | J91: 0 | L91: ='5. Historical Wholesale'!L91 -> 0 | M91: 0 | N91: 0 | P91: 0
B92: December | D92: ='5. Historical Wholesale'!D92 -> 0 | E92: 0 | F92: 0 | H92: ='5. Historical Wholesale'!H92 -> 0 | I92: 0 | J92: 0 | L92: ='5. Historical Wholesale'!L92 -> 0 | M92: 0 | N92: 0 | P92: 0
B94: Total | D94: =SUM(D81:D92) -> 0 | E94: =IF(D94<>0,F94/D94,0) -> 0 | F94: =SUM(F81:F92) -> 0 | H94: =SUM(H81:H92) -> 0 | I94: =IF(H94<>0,J94/H94,0) -> 0 | J94: =SUM(J81:J92) -> 0 | L94: =SUM(L81:L92) -> 0 | M94: =IF(L94<>0,N94/L94,0) -> 0 | N94: =SUM(N81:N92) -> 0 | P94: =SUM(P81:P92) -> 0
B96: Total | D96: Network | H96: Line Connection | L96: Transformation Connection | P96: Total Connection
B98: Month | D98: Units Billed | E98: Rate | F98: Amount | H98: Units Billed | I98: Rate | J98: Amount | L98: Units Billed | M98: Rate | N98: Amount | P98: Amount
B100: January | D100: =D24+D43+D62+D81 -> 20507 | E100: =IF(D100<>0,F100/D100,0) -> 5.4282 | F100: =F24+F43+F62+F81 -> 111316.0974 | H100: =H24+H43+H62+H81 -> 20507.15 | I100: =IF(H100<>0,J100/H100,0) -> 0.6896 | J100: =J24+J43+J62+J81 -> 14141.73064 | L100: =L24+L43+L62+L81 -> 20507.15 | M100: =IF(L100<>0,N100/L100,0) -> 3.4965 | N100: =N24+N43+N62+N81 -> 71703.24998 | P100: =J100+N100 -> 85844.98062
B101: February | D101: =D25+D44+D63+D82 -> 20125 | E101: 5.4282 | F101: 109242.525 | H101: =H25+H44+H63+H82 -> 29435.66 | I101: 0.6896 | J101: =J25+J44+J63+J82 -> 20298.83114 | L101: =L25+L44+L63+L82 -> 29435.66 | M101: 3.4965 | N101: =N25+N44+N63+N82 -> 102921.7852 | P101: 123220.6163
B102: March | D102: 18445 | E102: 5.4282 | F102: 100123.149 | H102: =H26+H45+H64+H83 -> 9677.89 | I102: 0.6896 | J102: =J26+J45+J64+J83 -> 6673.872944 | L102: =L26+L45+L64+L83 -> 9677.89 | M102: 3.4965 | N102: =N26+N45+N64+N83 -> 33838.74238 | P102: 40512.61533
B103: April | D103: 16881 | E103: 5.4282 | F103: 91633.4442 | H103: =H27+H46+H65+H84 -> 16881.31 | I103: 0.6896 | J103: =J27+J46+J65+J84 -> 11641.35138 | L103: =L27+L46+L65+L84 -> 16881.31 | M103: 3.4965 | N103: =N27+N46+N65+N84 -> 59025.50041 | P103: 70666.85179
B104: May | D104: 14785 | E104: 5.4282 | F104: 80255.937 | H104: =H28+H47+H66+H85 -> 14785.21 | I104: 0.6896 | J104: =J28+J47+J66+J85 -> 10195.88082 | L104: =L28+L47+L66+L85 -> 14785.21 | M104: 3.4965 | N104: =N28+N47+N66+N85 -> 51696.48677 | P104: 61892.36758
B105: June | D105: 22505 | E105: 5.4282 | F105: 122161.641 | H105: =H29+H48+H67+H86 -> 22504.71 | I105: 0.6896 | J105: =J29+J48+J67+J86 -> 15519.24802 | L105: =L29+L48+L67+L86 -> 22504.71 | M105: 3.4965 | N105: =N29+N48+N67+N86 -> 78687.71852 | P105: 94206.96653
B106: July | D106: 21156 | E106: 5.4282 | F106: 114838.9992 | H106: =H30+H49+H68+H87 -> 21156.02 | I106: 0.6896 | J106: =J30+J49+J68+J87 -> 14589.19139 | L106: =L30+L49+L68+L87 -> 21156.02 | M106: 3.4965 | N106: =N30+N49+N68+N87 -> 73972.02393 | P106: 88561.21532
B107: August | D107: 21521 | E107: 5.4282 | F107: 116820.2922 | H107: =H31+H50+H69+H88 -> 21520.98 | I107: 0.6896 | J107: =J31+J50+J69+J88 -> 14840.86781 | L107: =L31+L50+L69+L88 -> 21520.98 | M107: 3.4965 | N107: =N31+N50+N69+N88 -> 75248.10657 | P107: 90088.97438
B108: September | D108: 17430 | E108: 5.4282 | F108: 94613.526 | H108: =H32+H51+H70+H89 -> 28943.19 | I108: 0.6896 | J108: =J32+J51+J70+J89 -> 19959.22382 | L108: =L32+L51+L70+L89 -> 28943.19 | M108: 3.4965 | N108: =N32+N51+N70+N89 -> 101199.8638 | P108: 121159.0877
B109: October | D109: 16259 | E109: 5.4282 | F109: 88257.1038 | H109: =H33+H52+H71+H90 -> 16259.48 | I109: 0.6896 | J109: =J33+J52+J71+J90 -> 11212.53741 | L109: =L33+L52+L71+L90 -> 16259.48 | M109: 3.4965 | N109: =N33+N52+N71+N90 -> 56851.27182 | P109: 68063.80923
B110: November | D110: 18182 | E110: 5.4282 | F110: 98695.5324 | H110: =H34+H53+H72+H91 -> 18355.52 | I110: 0.6896 | J110: =J34+J53+J72+J91 -> 12657.96659 | L110: =L34+L53+L72+L91 -> 18355.52 | M110: 3.4965 | N110: =N34+N53+N72+N91 -> 64180.07568 | P110: 76838.04227
B111: December | D111: 20731 | E111: 5.4282 | F111: 112532.0142 | H111: =H35+H54+H73+H92 -> 20731.28 | I111: 0.6896 | J111: =J35+J54+J73+J92 -> 14296.29069 | L111: =L35+L54+L73+L92 -> 20731.28 | M111: 3.4965 | N111: =N35+N54+N73+N92 -> 72486.92052 | P111: 86783.21121
B113: Total | D113: =SUM(D100:D111) -> 228527 | E113: =IF(D113<>0,F113/D113,0) -> 5.4282 | F113: =SUM(F100:F111) -> 1240490.261 | H113: =SUM(H100:H111) -> 240758.4 | I113: =IF(H113<>0,J113/H113,0) -> 0.6896 | J113: =SUM(J100:J111) -> 166026.9926 | L113: =SUM(L100:L111) -> 240758.4 | M113: =IF(L113<>0,N113/L113,0) -> 3.4965 | N113: =SUM(N100:N111) -> 841811.7456 | P113: =SUM(P100:P111) -> 1007838.738
N115: Low Voltage Switchgear Credit (if applicable) | P115: ='4. UTRs and Sub-Transmission'!L76 -> 0
N117: Total including deduction for Low Voltage Switchgear Credit | P117: =P113+P115 -> 1007838.738

Sheet 8. RTSR Rates to Forecast
A13: The purpose of this sheet is to re-align the current RTS Network Rates to recover current wholesale network costs.
A15: Rate Class | B15: Rate Description | C15: Unit | D15: Current RTSR-Network | E15: Loss Adjusted Billed kWh | F15: Billed kW | G15: Billed Amount | H15: Billed Amount % | I15: Current Wholesale Billing | J15: Adjusted RTSR Network
A17: RESIDENTIAL SERVICE CLASSIFICATION | B17: Retail Transmission Rate - Network Service Rate | C17: $/kWh | D17: 0.0099 | E17: 47497695.42 | F17: 0 | G17: =ROUND(D17*E17, 2) -> 470227.18 | H17: =G17/1572394.93 -> 0.2990515748 | I17: =H17*total_current_wholesale_network -> 370970.5662 | J17: =IF(ISERROR(I17/E17), 0, I17/E17) -> 0.007810285592
A18: GENERAL SERVICE LESS THAN 50 KW SERVICE CLASSIFICATION | B18: Retail Transmission Rate - Network Service Rate | C18: $/kWh | D18: 0.009 | E18: 19491823.03 | F18: 0 | G18: =ROUND(D18*E18, 2) -> 175426.41 | H18: =G18/1572394.93 -> 0.1115663798 | I18: =H18*total_current_wholesale_network -> 138397.0077 | J18: =IF(ISERROR(I18/E18), 0, I18/E18) -> 0.007100259808
A19: GENERAL SERVICE 50 to 4,999 kW SERVICE CLASSIFICATION | B19: Retail Transmission Rate - Network Service Rate | C19: $/kW | D19: 3.7321 | E19: 41194372.87 | F19: 116000 | G19: =ROUND(D19*F19, 2) -> 432923.6 | H19: =G19/1572394.93 -> 0.2753275222 | I19: =H19*total_current_wholesale_network -> 341541.11 | J19: =IF(ISERROR(I19/F19), 0, I19/F19) -> 2.944319914
A20: GENERAL SERVICE 50 to 4,999 kW SERVICE CLASSIFICATION | B20: Retail Transmission Rate - Network Service Rate - EV CHARGING | C20: $/kW | D20: 0.634457 | E20: 0 | G20: =ROUND(D20*F20, 2) -> 0 | H20: =G20/1572394.93 -> 0 | I20: =H20*total_current_wholesale_network -> 0 | J20: =J19*0.17 -> 0.5005343853
A21: GENERAL SERVICE 50 to 4,999 kW SERVICE CLASSIFICATION | B21: Retail Transmission Rate - Network Service Rate - Interval Metered | C21: $/kW | D21: 4.1699 | E21: 0 | F21: 116000 | G21: =ROUND(D21*F21, 2) -> 483708.4 | H21: =G21/1572394.93 -> 0.3076252605 | I21: =H21*total_current_wholesale_network -> 381606.1399 | J21: =IF(ISERROR(I21/F21), 0, I21/F21) -> 3.289708102
A22: UNMETERED SCATTERED LOAD SERVICE CLASSIFICATION | B22: Retail Transmission Rate - Network Service Rate | C22: $/kWh | D22: 0.009 | E22: 526625.5455 | F22: 0 | G22: =ROUND(D22*E22, 2) -> 4739.63 | H22: =G22/1572394.93 -> 0.003014274537 | I22: =H22*total_current_wholesale_network -> 3739.178209 | J22: =IF(ISERROR(I22/E22), 0, I22/E22) -> 0.007100259835
A23: SENTINEL LIGHTING SERVICE CLASSIFICATION | B23: Retail Transmission Rate - Network Service Rate | C23: $/kW | D23: 2.8289 | E23: 85963.3571 | F23: 171 | G23: =ROUND(D23*F23, 2) -> 483.74 | H23: =G23/1572394.93 -> 0.0003076453573 | I23: =H23*total_current_wholesale_network -> 381.6310697 | J23: =IF(ISERROR(I23/F23), 0, I23/F23) -> 2.231760641
A24: STREET LIGHTING SERVICE CLASSIFICATION | B24: Retail Transmission Rate - Network Service Rate | C24: $/kW | D24: 2.8145 | E24: 629414.3085 | F24: 1736 | G24: =ROUND(D24*F24, 2) -> 4885.97 | H24: =G24/1572394.93 -> 0.003107342759 | I24: =H24*total_current_wholesale_network -> 3854.628431 | J24: =IF(ISERROR(I24/F24), 0, I24/F24) -> 2.220408083
A26: The purpose of this table is to re-align the current RTS Connection Rates to recover current wholesale connection costs.
A27: Rate Class | B27: Rate Description | C27: Unit | D27: Current RTSR-Connection | E27: Loss Adjusted Billed kWh | F27: Billed kW | G27: Billed Amount | H27: Billed Amount % | I27: Current Wholesale Billing | J27: Adjusted RTSR-Connection
A29: RESIDENTIAL SERVICE CLASSIFICATION | B29: Retail Transmission Rate - Line and Transformation Connection Service Rate | C29: $/kWh | D29: 0.0079 | E29: 47497695.42 | F29: 0 | G29: =ROUND(D29*E29, 2) -> 375231.79 | H29: =G29/1239348.17 -> 0.3027654368 | I29: =H29*Total_Current_Wholesale_Lineplus -> 305138.7358 | J29: =IF(ISERROR(I29/E29), 0, I29/E29) -> 0.006424285075
A30: GENERAL SERVICE LESS THAN 50 KW SERVICE CLASSIFICATION | B30: Retail Transmission Rate - Line and Transformation Connection Service Rate | C30: $/kWh | D30: 0.0072 | E30: 19491823.03 | F30: 0 | G30: =ROUND(D30*E30, 2) -> 140341.13 | H30: =G30/1239348.17 -> 0.1132378563 | I30: =H30*Total_Current_Wholesale_Lineplus -> 114125.4982 | J30: =IF(ISERROR(I30/E30), 0, I30/E30) -> 0.005855044858
A31: GENERAL SERVICE 50 to 4,999 kW SERVICE CLASSIFICATION | B31: Retail Transmission Rate - Line and Transformation Connection Service Rate | C31: $/kW | D31: 2.9176 | E31: 41194372.87 | F31: 116000 | G31: =ROUND(D31*F31, 2) -> 338441.6 | H31: =G31/1239348.17 -> 0.2730803242 | I31: =H31*Total_Current_Wholesale_Lineplus -> 275220.9293 | J31: =IF(ISERROR(I31/F31), 0, I31/F31) -> 2.372594218
A32: GENERAL SERVICE 50 to 4,999 kW SERVICE CLASSIFICATION | B32: Retail Transmission Rate - Line and Transformation Connection Service Rate - EV CHARGING | C32: $/kW | D32: 0.495992 | E32: 0 | G32: =ROUND(D32*F32, 2) -> 0 | H32: =G32/1239348.17 -> 0 | I32: =H32*Total_Current_Wholesale_Lineplus -> 0 | J32: =J31*0.17 -> 0.4033410171
A33: GENERAL SERVICE 50 to 4,999 kW SERVICE CLASSIFICATION | B33: Retail Transmission Rate - Line and Transformation Connection Service Rate - Interval Metered | C33: $/kW | D33: 3.252 | E33: 0 | F33: 116000 | G33: =ROUND(D33*F33, 2) -> 377232 | H33: =G33/1239348.17 -> 0.3043793577 | I33: =H33*Total_Current_Wholesale_Lineplus -> 306765.3079 | J33: =IF(ISERROR(I33/F33), 0, I33/F33) -> 2.644528516
A34: UNMETERED SCATTERED LOAD SERVICE CLASSIFICATION | B34: Retail Transmission Rate - Line and Transformation Connection Service Rate | C34: $/kWh | D34: 0.0072 | E34: 526625.5455 | F34: 0 | G34: =ROUND(D34*E34, 2) -> 3791.7 | H34: =G34/1239348.17 -> 0.00305943083 | I34: =H34*Total_Current_Wholesale_Lineplus -> 3083.412907 | J34: =IF(ISERROR(I34/E34), 0, I34/E34) -> 0.00585503862
A35: SENTINEL LIGHTING SERVICE CLASSIFICATION | B35: Retail Transmission Rate - Line and Transformation Connection Service Rate | C35: $/kW | D35: 2.3024 | E35: 85963.3571 | F35: 171 | G35: =ROUND(D35*F35, 2) -> 393.71 | H35: =G35/1239348.17 -> 0.0003176750566 | I35: =H35*Total_Current_Wholesale_Lineplus -> 320.1652282 | J35: =IF(ISERROR(I35/F35), 0, I35/F35) -> 1.872311276
A36: STREET LIGHTING SERVICE CLASSIFICATION | B36: Retail Transmission Rate - Line and Transformation Connection Service Rate | C36: $/kW | D36: 2.2559 | E36: 629414.3085 | F36: 1736 | G36: =ROUND(D36*F36, 2) -> 3916.24 | H36: =G36/1239348.17 -> 0.003159919137 | I36: =H36*Total_Current_Wholesale_Lineplus -> 3184.688916 | J36: =IF(ISERROR(I36/F36), 0, I36/F36) -> 1.834498224
A38: The purpose of this table is to update the re-aligned RTS Network Rates to recover future wholesale network costs.
A39: Rate Class | B39: Rate Description | C39: Unit | D39: Adjusted RTSR-Network | E39: Loss Adjusted Billed kWh | F39: Billed kW | G39: Billed Amount | H39: Billed Amount % | I39: Forecast Wholesale Billing | J39: Proposed RTSR-Network
A41: RESIDENTIAL SERVICE CLASSIFICATION | B41: Retail Transmission Rate - Network Service Rate | C41: $/kWh | D41: 0.007810285592 | E41: 47497695.42 | F41: 0 | G41: =IF(ISERROR(D41*E41), 0, ROUND(D41*E41, 2)) -> 370970.57 | H41: =G41/1240490.27 -> 0.2990515758 | I41: =H41*forecast_wholesale_network -> 370970.5674 | J41: =IF(ISERROR(I41/E41), 0, I41/E41) -> 0.007810285618
A42: GENERAL SERVICE LESS THAN 50 KW SERVICE CLASSIFICATION | B42: Retail Transmission Rate - Network Service Rate | C42: $/kWh | D42: 0.007100259808 | E42: 19491823.03 | F42: 0 | G42: =IF(ISERROR(D42*E42), 0, ROUND(D42*E42, 2)) -> 138397.01 | H42: =G42/1240490.27 -> 0.1115663809 | I42: =H42*forecast_wholesale_network -> 138397.009 | J42: =IF(ISERROR(I42/E42), 0, I42/E42) -> 0.007100259878
A43: GENERAL SERVICE 50 to 4,999 kW SERVICE CLASSIFICATION | B43: Retail Transmission Rate - Network Service Rate | C43: $/kW | D43: 2.944319914 | E43: 41194372.87 | F43: 116000 | G43: =ROUND(D43*F43, 2) -> 341541.11 | H43: =G43/1240490.27 -> 0.2753275203 | I43: =H43*forecast_wholesale_network -> 341541.1076 | J43: =IF(ISERROR(I43/F43), 0, I43/F43) -> 2.944319893
A44: GENERAL SERVICE 50 to 4,999 kW SERVICE CLASSIFICATION | B44: Retail Transmission Rate - Network Service Rate - EV CHARGING | C44: $/kW | D44: 0.5005343853 | E44: 0 | G44: =ROUND(D44*F44, 2) -> 0 | H44: =G44/1240490.27 -> 0 | I44: =H44*forecast_wholesale_network -> 0 | J44: =J43*0.17 -> 0.5005343819
A45: GENERAL SERVICE 50 to 4,999 kW SERVICE CLASSIFICATION | B45: Retail Transmission Rate - Network Service Rate - Interval Metered | C45: $/kW | D45: 3.289708102 | E45: 0 | F45: 116000 | G45: =ROUND(D45*F45, 2) -> 381606.14 | H45: =G45/1240490.27 -> 0.3076252585 | I45: =H45*forecast_wholesale_network -> 381606.1374 | J45: =IF(ISERROR(I45/F45), 0, I45/F45) -> 3.289708081
A46: UNMETERED SCATTERED LOAD SERVICE CLASSIFICATION | B46: Retail Transmission Rate - Network Service Rate | C46: $/kWh | D46: 0.007100259835 | E46: 526625.5455 | F46: 0 | G46: =IF(ISERROR(D46*E46), 0, ROUND(D46*E46, 2)) -> 3739.18 | H46: =G46/1240490.27 -> 0.00301427596 | I46: =H46*forecast_wholesale_network -> 3739.179974 | J46: =IF(ISERROR(I46/E46), 0, I46/E46) -> 0.007100263187
A47: SENTINEL LIGHTING SERVICE CLASSIFICATION | B47: Retail Transmission Rate - Network Service Rate | C47: $/kW | D47: 2.231760641 | E47: 85963.3571 | F47: 171 | G47: =ROUND(D47*F47, 2) -> 381.63 | H47: =G47/1240490.27 -> 0.0003076444929 | I47: =H47*forecast_wholesale_network -> 381.6299974 | J47: =IF(ISERROR(I47/F47), 0, I47/F47) -> 2.23175437
A48: STREET LIGHTING SERVICE CLASSIFICATION | B48: Retail Transmission Rate - Network Service Rate | C48: $/kW | D48: 2.220408083 | E48: 629414.3085 | F48: 1736 | G48: =ROUND(D48*F48, 2) -> 3854.63 | H48: =G48/1240490.27 -> 0.003107344002 | I48: =H48*forecast_wholesale_network -> 3854.629973 | J48: =IF(ISERROR(I48/F48), 0, I48/F48) -> 2.220408971
A50: The purpose of this table is to update the re-aligned RTS Connection Rates to recover future wholesale connection costs.
A51: Rate Class | B51: Rate Description | C51: Unit | D51: Adjusted RTSR-Connection | E51: Loss Adjusted Billed kWh | F51: Billed kW | G51: Billed Amount | H51: Billed Amount % | I51: Forecast Wholesale Billing | J51: Proposed RTSR-Connection
A53: RESIDENTIAL SERVICE CLASSIFICATION | B53: Retail Transmission Rate - Line and Transformation Connection Service Rate | C53: $/kWh | D53: 0.006424285075 | E53: 47497695.42 | F53: 0 | G53: =ROUND(D53*E53, 2) -> 305138.74 | H53: =G53/1007838.75 -> 0.3027654374 | I53: =H53*forecast_wholesale_lineplus -> 305138.7364 | J53: =IF(ISERROR(I53/E53), 0, I53/E53) -> 0.006424285089
A54: GENERAL SERVICE LESS THAN 50 KW SERVICE CLASSIFICATION | B54: Retail Transmission Rate - Line and Transformation Connection Service Rate | C54: $/kWh | D54: 0.005855044858 | E54: 19491823.03 | F54: 0 | G54: =ROUND(D54*E54, 2) -> 114125.5 | H54: =G54/1007838.75 -> 0.1132378568 | I54: =H54*forecast_wholesale_lineplus -> 114125.4987 | J54: =IF(ISERROR(I54/E54), 0, I54/E54) -> 0.00585504488
A55: GENERAL SERVICE 50 to 4,999 kW SERVICE CLASSIFICATION | B55: Retail Transmission Rate - Line and Transformation Connection Service Rate | C55: $/kW | D55: 2.372594218 | E55: 41194372.87 | F55: 116000 | G55: =ROUND(D55*F55, 2) -> 275220.93 | H55: =G55/1007838.75 -> 0.2730803216 | I55: =H55*forecast_wholesale_lineplus -> 275220.9268 | J55: =IF(ISERROR(I55/F55), 0, I55/F55) -> 2.372594196
A56: GENERAL SERVICE 50 to 4,999 kW SERVICE CLASSIFICATION | B56: Retail Transmission Rate - Line and Transformation Connection Service Rate - EV CHARGING | C56: $/kW | D56: 0.4033410171 | E56: 0 | G56: =ROUND(D56*F56, 2) -> 0 | H56: =G56/1007838.75 -> 0 | I56: =H56*forecast_wholesale_lineplus -> 0 | J56: =J55*0.17 -> 0.4033410134
A57: GENERAL SERVICE 50 to 4,999 kW SERVICE CLASSIFICATION | B57: Retail Transmission Rate - Line and Transformation Connection Service Rate - Interval Metered | C57: $/kW | D57: 2.644528516 | E57: 0 | F57: 116000 | G57: =ROUND(D57*F57, 2) -> 306765.31 | H57: =G57/1007838.75 -> 0.3043793563 | I57: =H57*forecast_wholesale_lineplus -> 306765.3064 | J57: =IF(ISERROR(I57/F57), 0, I57/F57) -> 2.644528504
A58: UNMETERED SCATTERED LOAD SERVICE CLASSIFICATION | B58: Retail Transmission Rate - Line and Transformation Connection Service Rate | C58: $/kWh | D58: 0.00585503862 | E58: 526625.5455 | F58: 0 | G58: =ROUND(D58*E58, 2) -> 3083.41 | H58: =G58/1007838.75 -> 0.003059427909 | I58: =H58*forecast_wholesale_lineplus -> 3083.409964 | J58: =IF(ISERROR(I58/E58), 0, I58/E58) -> 0.005855033031
A59: SENTINEL LIGHTING SERVICE CLASSIFICATION | B59: Retail Transmission Rate - Line and Transformation Connection Service Rate | C59: $/kW | D59: 1.872311276 | E59: 85963.3571 | F59: 171 | G59: =ROUND(D59*F59, 2) -> 320.17 | H59: =G59/1007838.75 -> 0.0003176797876 | I59: =H59*forecast_wholesale_lineplus -> 320.1699963 | J59: =IF(ISERROR(I59/F59), 0, I59/F59) -> 1.872339159
A60: STREET LIGHTING SERVICE CLASSIFICATION | B60: Retail Transmission Rate - Line and Transformation Connection Service Rate | C60: $/kW | D60: 1.834498224 | E60: 629414.3085 | F60: 1736 | G60: =ROUND(D60*F60, 2) -> 3184.69 | H60: =G60/1007838.75 -> 0.003159920176 | I60: =H60*forecast_wholesale_lineplus -> 3184.689963 | J60: =IF(ISERROR(I60/F60), 0, I60/F60) -> 1.834498827

Sheet 9. LV Rates
A13: The purpose of this sheet is to calculate Low Voltage service rates based on a forecasted host distribution expense.
B15: Low Voltage Charges | D15: Bridge Year | E15: Forecast
B17: Host I:
D18: =TestYear-5 -> 2022 | E18: =D18+1 -> 2023 | F18: 2024 | G18: 2025 | H18: =G18+1&" " &E15 -> 2026 Forecast | I18: =G18+2&" Forecast" -> 2027 Forecast | J18: Forecast Methodology
B19: Host Volume | D19: 874885.1109 | E19: 778270.0774 | F19: 940673.7695 | G19: 808883.3398 | H19: 833149.84 | I19: 833149.84 | J19: Last Actual at current H1 rates
B20: Host Charges | D20: 474487.57 | E20: 422089.11 | F20: 510167.57 | G20: 438691.99 | H20: 451852.7497 | I20: 430806.52
B22: Host II:
D23: =D18 -> 2022 | E23: 2023 | F23: 2024 | G23: 2025 | H23: 2026 Forecast | I23: 2027 Forecast | J23: Forecast Methodology
B24: Host Volume
B25: Host Charges
B27: Instructions: The methodology of the test year forecast for host charges is at the distributor's discretion. Please ensure that the value for Host Charges in the test year is completed. All other entries are optional, and may be used to support the derivation.
B28: Regardless of methodology chosen, please provide a brief descrioptor of the methdology used, and a complated description with rationale in the filed evidence.
B30: Low Voltage Rates
B32: Proposed Loss Factor | C32: 1.044856844
B34: Instructions: Please enter the rate class volumes consistent with the proposed load forecast, and proposed loss factor.
B35: If Low Voltage charges are applied based on volumes uplifted for losses, please select Loss Adjusted Volume in cell J37
J36: Select Loss adjusted or Delivered
B37: Rate Class | C37: Unit | D37: =TestYear&" Forecasted Volume" -> 2027 Forecasted Volume | E37: RTSR Connection Rate | F37: Loss Adjusted Volume | G37: RTSR Connection Revenue | H37: Allocation | I37: Allocated Low Voltage Charges | J37: Delivered Volume | K37: Low Voltage Rates
B39: RESIDENTIAL SERVICE CLASSIFICATION | C39: $/kWh | D39: 50042036.12 | E39: 0.006424285089 | F39: =IF(C39="$/kWh",D39*C$32,D39) -> 52286763.92 | G39: =F39*E39 -> 335905.0778 | H39: =G39/$G47 -> 0.4357062744 | I39: =H39*(I20+I25) -> 187705.1038 | J39: =IF(J$37="Loss Adjusted Volume",F39,D39) -> 50042036.12 | K39: =IFERROR(I39/J39,0) -> 0.00375094857
B40: GENERAL SERVICE LESS THAN 50 KW SERVICE CLASSIFICATION | C40: $/kWh | D40: 22686576.89 | E40: 0.00585504488 | F40: =IF(C40="$/kWh",D40*C$32,D40) -> 23704225.13 | G40: =F40*E40 -> 138789.302 | H40: =G40/$G47 -> 0.1800251729 | I40: =H40*(I20+I25) -> 77556.01824 | J40: =IF(J$37="Loss Adjusted Volume",F40,D40) -> 22686576.89 | K40: =IFERROR(I40/J40,0) -> 0.00341858618
B41: GENERAL SERVICE 50 to 4,999 kW SERVICE CLASSIFICATION | C41: $/kW | D41: 121843.8868 | E41: 2.372594196 | F41: =IF(C41="$/kWh",D41*C$32,D41) -> 121843.8868 | G41: =F41*E41 -> 289086.0987 | H41: =G41/$G47 -> 0.3749768472 | I41: =H41*(I20+I25) -> 161542.4706 | J41: =IF(J$37="Loss Adjusted Volume",F41,D41) -> 121843.8868 | K41: =IFERROR(I41/J41,0) -> 1.325815147
B42: GENERAL SERVICE 50 to 4,999 kW SERVICE CLASSIFICATION | C42: $/kW | E42: 2.644528504 | F42: =IF(C42="$/kWh",D42*C$32,D42) -> 0 | G42: =F42*E42 -> 0 | H42: =G42/$G47 -> 0 | I42: =H42*(I20+I25) -> 0 | J42: =IF(J$37="Loss Adjusted Volume",F42,D42) -> 0 | K42: =IFERROR(I42/J42,0) -> 0
B43: UNMETERED SCATTERED LOAD SERVICE CLASSIFICATION | C43: $/kWh | D43: 638256.9192 | E43: 0.005855033031 | F43: =IF(C43="$/kWh",D43*C$32,D43) -> 666887.1102 | G43: =F43*E43 -> 3904.646059 | H43: =G43/$G47 -> 0.005064760552 | I43: =H43*(I20+I25) -> 2181.931868 | J43: =IF(J$37="Loss Adjusted Volume",F43,D43) -> 638256.9192 | K43: =IFERROR(I43/J43,0) -> 0.003418579262
B44: SENTINEL LIGHTING SERVICE CLASSIFICATION | C44: $/kW | D44: 152.3950293 | E44: 1.872339159 | F44: =IF(C44="$/kWh",D44*C$32,D44) -> 152.3950293 | G44: =F44*E44 -> 285.3351812 | H44: =G44/$G47 -> 0.0003701114897 | I44: =H44*(I20+I25) -> 159.4464429 | J44: =IF(J$37="Loss Adjusted Volume",F44,D44) -> 152.3950293 | K44: =IFERROR(I44/J44,0) -> 1.046270627
B45: STREET LIGHTING SERVICE CLASSIFICATION | C45: $/kW | D45: 1620.825263 | E45: 1.834498827 | F45: =IF(C45="$/kWh",D45*C$32,D45) -> 1620.825263 | G45: =F45*E45 -> 2973.402042 | H45: =G45/$G47 -> 0.003856833409 | I45: =H45*(I20+I25) -> 1661.548979 | J45: =IF(J$37="Loss Adjusted Volume",F45,D45) -> 1620.825263 | K45: =IFERROR(I45/J45,0) -> 1.025125297
B47: TOTAL | G47: =SUM(G39:G45) -> 770943.8618 | H47: =SUM(H39:H45) -> 1 | I47: =I20+I25 -> 430806.52

Sheet RateClasses (hidden)
A1: 1 | B1: 2 | C1: 3 | D1: 4 | E1: 5 | F1: 6 | G1: 7 | H1: 8 | I1: 9 | J1: 10 | K1: 11
A2: Alectra Utilities Corporation-Brampton Rate Zone | B2: RESIDENTIAL SERVICE CLASSIFICATION~Retail Transmission Rate - Network Service Rate | C2: RESIDENTIAL SERVICE CLASSIFICATION~Retail Transmission Rate - Line and Transformation Connection Service Rate | D2: GENERAL SERVICE LESS THAN 50 KW SERVICE CLASSIFICATION~Retail Transmission Rate - Network Service Rate | E2: GENERAL SERVICE LESS THAN 50 KW SERVICE CLASSIFICATION~Retail Transmission Rate - Line and Transformation Connection Service Rate | F2: GENERAL SERVICE 50 TO 699 KW SERVICE CLASSIFICATION~Retail Transmission Rate - Network Service Rate | G2: GENERAL SERVICE 50 TO 699 KW SERVICE CLASSIFICATION~Retail Transmission Rate - Line and Transformation Connection Service Rate | H2: GENERAL SERVICE 50 TO 699 KW SERVICE CLASSIFICATION~Retail Transmission Rate - Network Service Rate - EV CHARGING | I2: GENERAL SERVICE 50 TO 699 KW SERVICE CLASSIFICATION~Retail Transmission Rate - Line and Transformation Connection Service Rate - EV CHARGING | J2: GENERAL SERVICE 700 TO 4,999 KW SERVICE CLASSIFICATION~Retail Transmission Rate - Network Service Rate | K2: GENERAL SERVICE 700 TO 4,999 KW SERVICE CLASSIFICATION~Retail Transmission Rate - Line and Transformation Connection Service Rate | L2: GENERAL SERVICE 700 TO 4,999 KW SERVICE CLASSIFICATION~Retail Transmission Rate - Network Service Rate - EV CHARGING | M2: GENERAL SERVICE 700 TO 4,999 KW SERVICE CLASSIFICATION~Retail Transmission Rate - Line and Transformation Connection Service Rate - EV CHARGING | N2: LARGE USE SERVICE CLASSIFICATION~Retail Transmission Rate - Network Service Rate | O2: LARGE USE SERVICE CLASSIFICATION~Retail Transmission Rate - Line and Transformation Connection Service Rate | P2: UNMETERED SCATTERED LOAD SERVICE CLASSIFICATION~Retail Transmission Rate - Network Service Rate | Q2: UNMETERED SCATTERED LOAD SERVICE CLASSIFICATION~Retail Transmission Rate - Line and Transformation Connection Service Rate | R2: STREET LIGHTING SERVICE CLASSIFICATION~Retail Transmission Rate - Network Service Rate | S2: STREET LIGHTING SERVICE CLASSIFICATION~Retail Transmission Rate - Line and Transformation Connection Service Rate | T2: EMBEDDED DISTRIBUTOR SERVICE CLASSIFICATION~Retail Transmission Rate - Network Service Rate | U2: EMBEDDED DISTRIBUTOR SERVICE CLASSIFICATION~Retail Transmission Rate - Line and Transformation Connection Service Rate | V2: DISTRIBUTED GENERATION [DGEN] SERVICE CLASSIFICATION~Retail Transmission Rate - Network Service Rate | W2: DISTRIBUTED GENERATION [DGEN] SERVICE CLASSIFICATION~Retail Transmission Rate - Line and Transformation Connection Service Rate
A3: Alectra Utilities Corporation-Enersource Rate Zone | B3: RESIDENTIAL SERVICE CLASSIFICATION~Retail Transmission Rate - Network Service Rate | C3: RESIDENTIAL SERVICE CLASSIFICATION~Retail Transmission Rate - Line and Transformation Connection Service Rate | D3: GENERAL SERVICE LESS THAN 50 KW SERVICE CLASSIFICATION~Retail Transmission Rate - Network Service Rate | E3: GENERAL SERVICE LESS THAN 50 KW SERVICE CLASSIFICATION~Retail Transmission Rate - Line and Transformation Connection Service Rate | F3: GENERAL SERVICE 50 TO 499 KW SERVICE CLASSIFICATION~Retail Transmission Rate - Network Service Rate | G3: GENERAL SERVICE 50 TO 499 KW SERVICE CLASSIFICATION~Retail Transmission Rate - Line and Transformation Connection Service Rate | H3: GENERAL SERVICE 50 TO 499 KW SERVICE CLASSIFICATION~Retail Transmission Rate - Network Service Rate -EV CHARGING | I3: GENERAL SERVICE 50 TO 499 KW SERVICE CLASSIFICATION~Retail Transmission Rate - Line and Transformation Connection Service Rate - EV CHARGING | J3: GENERAL SERVICE 500 TO 4,999 KW SERVICE CLASSIFICATION~Retail Transmission Rate - Network Service Rate | K3: GENERAL SERVICE 500 TO 4,999 KW SERVICE CLASSIFICATION~Retail Transmission Rate - Line and Transformation Connection Service Rate | L3: GENERAL SERVICE 500 TO 4,999 KW SERVICE CLASSIFICATION~Retail Transmission Rate - Network Service Rate - EV CHARGING | M3: GENERAL SERVICE 500 TO 4,999 KW SERVICE CLASSIFICATION~Retail Transmission Rate - Line and Transformation Connection Service Rate - EV CHARGING | N3: LARGE USE SERVICE CLASSIFICATION~Retail Transmission Rate - Network Service Rate – Interval Metered | O3: LARGE USE SERVICE CLASSIFICATION~Retail Transmission Rate - Line and Transformation Connection Service Rate – Interval Metered | P3: UNMETERED SCATTERED LOAD SERVICE CLASSIFICATION~Retail Transmission Rate - Network Service Rate | Q3: UNMETERED SCATTERED LOAD SERVICE CLASSIFICATION~Retail Transmission Rate - Line and Transformation Connection Service Rate | R3: STREET LIGHTING SERVICE CLASSIFICATION~Retail Transmission Rate - Network Service Rate | S3: STREET LIGHTING SERVICE CLASSIFICATION~Retail Transmission Rate - Line and Transformation Connection Service Rate
A4: Alectra Utilities Corporation-Horizon Utilities Rate Zone | B4: RESIDENTIAL SERVICE CLASSIFICATION~Retail Transmission Rate - Network Service Rate | C4: RESIDENTIAL SERVICE CLASSIFICATION~Retail Transmission Rate - Line and Transformation Connection Service Rate | D4: GENERAL SERVICE LESS THAN 50 KW SERVICE CLASSIFICATION~Retail Transmission Rate - Network Service Rate | E4: GENERAL SERVICE LESS THAN 50 KW SERVICE CLASSIFICATION~Retail Transmission Rate - Line and Transformation Connection Service Rate | F4: GENERAL SERVICE 50 to 4,999 kW SERVICE CLASSIFICATION~Retail Transmission Rate - Network Service Rate | G4: GENERAL SERVICE 50 to 4,999 kW SERVICE CLASSIFICATION~Retail Transmission Rate - Line and Transformation Connection Service Rate | H4: GENERAL SERVICE 50 to 4,999 kW SERVICE CLASSIFICATION~Retail Transmission Rate - Network Service Rate - EV CHARGING | I4: GENERAL SERVICE 50 to 4,999 kW SERVICE CLASSIFICATION~Retail Transmission Rate - Line and Transformation Connection Service Rate - EV CHARGING | J4: LARGE USE SERVICE CLASSIFICATION~Retail Transmission Rate - Network Service Rate | K4: LARGE USE SERVICE CLASSIFICATION~Retail Transmission Rate - Line and Transformation Connection Service Rate | L4: LARGE USE WITH DEDICATED ASSETS SERVICE CLASSIFICATION~Retail Transmission Rate - Network Service Rate | M4: LARGE USE WITH DEDICATED ASSETS SERVICE CLASSIFICATION~Retail Transmission Rate - Line and Transformation Connection Service Rate | N4: UNMETERED SCATTERED LOAD SERVICE CLASSIFICATION~Retail Transmission Rate - Network Service Rate | O4: UNMETERED SCATTERED LOAD SERVICE CLASSIFICATION~Retail Transmission Rate - Line and Transformation Connection Service Rate | P4: SENTINEL LIGHTING SERVICE CLASSIFICATION~Retail Transmission Rate - Network Service Rate | Q4: SENTINEL LIGHTING SERVICE CLASSIFICATION~Retail Transmission Rate - Line and Transformation Connection Service Rate | R4: STREET LIGHTING SERVICE CLASSIFICATION~Retail Transmission Rate - Network Service Rate | S4: STREET LIGHTING SERVICE CLASSIFICATION~Retail Transmission Rate - Line and Transformation Connection Service Rate
A5: Alectra Utilities Corporation-PowerStream Rate Zone | B5: RESIDENTIAL SERVICE CLASSIFICATION~Retail Transmission Rate - Network Service Rate | C5: RESIDENTIAL SERVICE CLASSIFICATION~Retail Transmission Rate - Line and Transformation Connection Service Rate | D5: GENERAL SERVICE LESS THAN 50 KW SERVICE CLASSIFICATION~Retail Transmission Rate - Network Service Rate | E5: GENERAL SERVICE LESS THAN 50 KW SERVICE CLASSIFICATION~Retail Transmission Rate - Line and Transformation Connection Service Rate | F5: GENERAL SERVICE 50 to 4,999 kW SERVICE CLASSIFICATION~Retail Transmission Rate - Network Service Rate | G5: GENERAL SERVICE 50 to 4,999 kW SERVICE CLASSIFICATION~Retail Transmission Rate - Line and Transformation Connection Service Rate | H5: GENERAL SERVICE 50 to 4,999 kW SERVICE CLASSIFICATION~Retail Transmission Rate - Network Service Rate - EV CHARGING | I5: GENERAL SERVICE 50 to 4,999 kW SERVICE CLASSIFICATION~Retail Transmission Rate - Line and Transformation Connection Service Rate - EV CHARGING | J5: GENERAL SERVICE 50 to 4,999 kW SERVICE CLASSIFICATION~Retail Transmission Rate - Network Service Rate – Interval Metered | K5: GENERAL SERVICE 50 to 4,999 kW SERVICE CLASSIFICATION~Retail Transmission Rate - Line and Transformation Connection Service Rate – Interval Metered | L5: LARGE USE SERVICE CLASSIFICATION~Retail Transmission Rate - Network Service Rate | M5: LARGE USE SERVICE CLASSIFICATION~Retail Transmission Rate - Line and Transformation Connection Service Rate | N5: UNMETERED SCATTERED LOAD SERVICE CLASSIFICATION~Retail Transmission Rate - Network Service Rate | O5: UNMETERED SCATTERED LOAD SERVICE CLASSIFICATION~Retail Transmission Rate - Line and Transformation Connection Service Rate | P5: SENTINEL LIGHTING SERVICE CLASSIFICATION~Retail Transmission Rate - Network Service Rate | Q5: SENTINEL LIGHTING SERVICE CLASSIFICATION~Retail Transmission Rate - Line and Transformation Connection Service Rate | R5: STREET LIGHTING SERVICE CLASSIFICATION~Retail Transmission Rate - Network Service Rate | S5: STREET LIGHTING SERVICE CLASSIFICATION~Retail Transmission Rate - Line and Transformation Connection Service Rate
A6: Algoma Power Inc. | B6: RESIDENTIAL R1 SERVICE CLASSIFICATION~Retail Transmission Rate - Network Service Rate | C6: RESIDENTIAL R1 SERVICE CLASSIFICATION~Retail Transmission Rate - Line and Transformation Connection Service Rate | D6: RESIDENTIAL R2 SERVICE CLASSIFICATION~Retail Transmission Rate - Network Service Rate | E6: RESIDENTIAL R2 SERVICE CLASSIFICATION~Retail Transmission Rate - Line and Transformation Connection Service Rate | F6: SEASONAL CUSTOMERS SERVICE CLASSIFICATION~Retail Transmission Rate - Network Service Rate | G6: SEASONAL CUSTOMERS SERVICE CLASSIFICATION~Retail Transmission Rate - Line and Transformation Connection Service Rate | H6: STREET LIGHTING SERVICE CLASSIFICATION~Retail Transmission Rate - Network Service Rate | I6: STREET LIGHTING SERVICE CLASSIFICATION~Retail Transmission Rate - Line and Transformation Connection Service Rate
A7: Centre Wellington Hydro Ltd. | B7: RESIDENTIAL SERVICE CLASSIFICATION~Retail Transmission Rate - Network Service Rate | C7: RESIDENTIAL SERVICE CLASSIFICATION~Retail Transmission Rate - Line and Transformation Connection Service Rate | D7: GENERAL SERVICE LESS THAN 50 KW SERVICE CLASSIFICATION~Retail Transmission Rate - Network Service Rate | E7: GENERAL SERVICE LESS THAN 50 KW SERVICE CLASSIFICATION~Retail Transmission Rate - Line and Transformation Connection Service Rate | F7: GENERAL SERVICE 50 TO 2,999 KW SERVICE CLASSIFICATION~Retail Transmission Rate - Network Service Rate | G7: GENERAL SERVICE 50 TO 2,999 KW SERVICE CLASSIFICATION~Retail Transmission Rate - Line and Transformation Connection Service Rate | H7: GENERAL SERVICE 50 TO 2,999 KW SERVICE CLASSIFICATION~Retail Transmission Rate - Network Service Rate - EV CHARGING | I7: GENERAL SERVICE 50 TO 2,999 KW SERVICE CLASSIFICATION~Retail Transmission Rate - Line and Transformation Connection Service Rate - EV CHARGING | J7: GENERAL SERVICE 3,000 TO 4,999 KW SERVICE CLASSIFICATION~Retail Transmission Rate - Network Service Rate | K7: GENERAL SERVICE 3,000 TO 4,999 KW SERVICE CLASSIFICATION~Retail Transmission Rate - Line and Transformation Connection Service Rate | L7: GENERAL SERVICE 3,000 TO 4,999 KW SERVICE CLASSIFICATION~Retail Transmission Rate - Network Service Rate - EV CHARGING | M7: GENERAL SERVICE 3,000 TO 4,999 KW SERVICE CLASSIFICATION~Retail Transmission Rate - Line and Transformation Connection Service Rate - EV CHARGING | N7: UNMETERED SCATTERED LOAD SERVICE CLASSIFICATION~Retail Transmission Rate - Network Service Rate | O7: UNMETERED SCATTERED LOAD SERVICE CLASSIFICATION~Retail Transmission Rate - Line and Transformation Connection Service Rate | P7: SENTINEL LIGHTING SERVICE CLASSIFICATION~Retail Transmission Rate - Network Service Rate | Q7: SENTINEL LIGHTING SERVICE CLASSIFICATION~Retail Transmission Rate - Line and Transformation Connection Service Rate | R7: STREET LIGHTING SERVICE CLASSIFICATION~Retail Transmission Rate - Network Service Rate | S7: STREET LIGHTING SERVICE CLASSIFICATION~Retail Transmission Rate - Line and Transformation Connection Service Rate
A8: Canadian Niagara Power Inc. | B8: RESIDENTIAL SERVICE CLASSIFICATION~Retail Transmission Rate - Network Service Rate | C8: RESIDENTIAL SERVICE CLASSIFICATION~Retail Transmission Rate - Line and Transformation Connection Service Rate | D8: GENERAL SERVICE LESS THAN 50 KW SERVICE CLASSIFICATION~Retail Transmission Rate - Network Service Rate | E8: GENERAL SERVICE LESS THAN 50 KW SERVICE CLASSIFICATION~Retail Transmission Rate - Line and Transformation Connection Service Rate | F8: GENERAL SERVICE 50 to 4,999 kW SERVICE CLASSIFICATION~Retail Transmission Rate - Network Service Rate | G8: GENERAL SERVICE 50 to 4,999 kW SERVICE CLASSIFICATION~Retail Transmission Rate - Line and Transformation Connection Service Rate | H8: GENERAL SERVICE 50 to 4,999 kW SERVICE CLASSIFICATION~Retail Transmission Rate - Network Service Rate - EV CHARGING | I8: GENERAL SERVICE 50 to 4,999 kW SERVICE CLASSIFICATION~Retail Transmission Rate - Line and Transformation Connection Service Rate - EV CHARGING | J8: EMBEDDED DISTRIBUTOR SERVICE CLASSIFICATION~Retail Transmission Rate - Network Service Rate | K8: EMBEDDED DISTRIBUTOR SERVICE CLASSIFICATION~Retail Transmission Rate - Line and Transformation Connection Service Rate | L8: UNMETERED SCATTERED LOAD SERVICE CLASSIFICATION~Retail Transmission Rate - Network Service Rate | M8: UNMETERED SCATTERED LOAD SERVICE CLASSIFICATION~Retail Transmission Rate - Line and Transformation Connection Service Rate | N8: SENTINEL LIGHTING SERVICE CLASSIFICATION~Retail Transmission Rate - Network Service Rate | O8: SENTINEL LIGHTING SERVICE CLASSIFICATION~Retail Transmission Rate - Line and Transformation Connection Service Rate | P8: STREET LIGHTING SERVICE CLASSIFICATION~Retail Transmission Rate - Network Service Rate | Q8: STREET LIGHTING SERVICE CLASSIFICATION~Retail Transmission Rate - Line and Transformation Connection Service Rate
A9: Entegrus Powerlines Inc. | B9: RESIDENTIAL SERVICE CLASSIFICATION~Retail Transmission Rate - Network Service Rate | C9: RESIDENTIAL SERVICE CLASSIFICATION~Retail Transmission Rate - Line and Transformation Connection Service Rate | D9: GENERAL SERVICE LESS THAN 50 KW SERVICE CLASSIFICATION~Retail Transmission Rate - Network Service Rate | E9: GENERAL SERVICE LESS THAN 50 KW SERVICE CLASSIFICATION~Retail Transmission Rate - Line and Transformation Connection Service Rate | F9: GENERAL SERVICE 50 to 4,999 kW SERVICE CLASSIFICATION~Retail Transmission Rate - Network Service Rate | G9: GENERAL SERVICE 50 to 4,999 kW SERVICE CLASSIFICATION~Retail Transmission Rate - Line and Transformation Connection Service Rate (see Note 1) | H9: GENERAL SERVICE 50 to 4,999 kW SERVICE CLASSIFICATION~Retail Transmission Rate - Network Service Rate - EV CHARGING | I9: GENERAL SERVICE 50 to 4,999 kW SERVICE CLASSIFICATION~Retail Transmission Rate - Line and Transformation Connection Service Rate (see Note 1) - EV CHARGING | J9: LARGE USE SERVICE CLASSIFICATION~Retail Transmission Rate - Network Service Rate | K9: LARGE USE SERVICE CLASSIFICATION~Retail Transmission Rate - Line and Transformation Connection Service Rate (see Note 1) | L9: UNMETERED SCATTERED LOAD SERVICE CLASSIFICATION~Retail Transmission Rate - Network Service Rate | M9: UNMETERED SCATTERED LOAD SERVICE CLASSIFICATION~Retail Transmission Rate - Line and Transformation Connection Service Rate | N9: SENTINEL LIGHTING SERVICE CLASSIFICATION~Retail Transmission Rate - Network Service Rate | O9: SENTINEL LIGHTING SERVICE CLASSIFICATION~Retail Transmission Rate - Line and Transformation Connection Service Rate | P9: STREET LIGHTING SERVICE CLASSIFICATION~Retail Transmission Rate - Network Service Rate | Q9: STREET LIGHTING SERVICE CLASSIFICATION~Retail Transmission Rate - Line and Transformation Connection Service Rate | R9: EMBEDDED DISTRIBUTOR SERVICE CLASSIFICATION~Retail Transmission Rate - Network Service Rate | S9: EMBEDDED DISTRIBUTOR SERVICE CLASSIFICATION~Retail Transmission Rate - Line and Transformation Connection Service Rate
A10: Entegrus Powerlines Inc.-For Former St. Thomas Energy Rate Zone | B10: RESIDENTIAL SERVICE CLASSIFICATION~Retail Transmission Rate - Network Service Rate | C10: RESIDENTIAL SERVICE CLASSIFICATION~Retail Transmission Rate - Line and Transformation Connection Service Rate | D10: GENERAL SERVICE LESS THAN 50 KW SERVICE CLASSIFICATION~Retail Transmission Rate - Network Service Rate | E10: GENERAL SERVICE LESS THAN 50 KW SERVICE CLASSIFICATION~Retail Transmission Rate - Line and Transformation Connection Service Rate | F10: GENERAL SERVICE 50 to 4,999 kW SERVICE CLASSIFICATION~Retail Transmission Rate - Network Service Rate | G10: GENERAL SERVICE 50 to 4,999 kW SERVICE CLASSIFICATION~Retail Transmission Rate - Line and Transformation Connection Service Rate | H10: GENERAL SERVICE 50 to 4,999 kW SERVICE CLASSIFICATION~Retail Transmission Rate - Network Service Rate - EV CHARGING | I10: GENERAL SERVICE 50 to 4,999 kW SERVICE CLASSIFICATION~Retail Transmission Rate - Line and Transformation Connection Service Rate - EV CHARGING | J10: SENTINEL LIGHTING SERVICE CLASSIFICATION~Retail Transmission Rate - Network Service Rate | K10: SENTINEL LIGHTING SERVICE CLASSIFICATION~Retail Transmission Rate - Line and Transformation Connection Service Rate | L10: STREET LIGHTING SERVICE CLASSIFICATION~Retail Transmission Rate - Network Service Rate | M10: STREET LIGHTING SERVICE CLASSIFICATION~Retail Transmission Rate - Line and Transformation Connection Service Rate
A11: Festival Hydro Inc. | B11: RESIDENTIAL SERVICE CLASSIFICATION~Retail Transmission Rate - Network Service Rate | C11: RESIDENTIAL SERVICE CLASSIFICATION~Retail Transmission Rate - Line and Transformation Connection Service Rate | D11: GENERAL SERVICE LESS THAN 50 KW SERVICE CLASSIFICATION~Retail Transmission Rate - Network Service Rate | E11: GENERAL SERVICE LESS THAN 50 KW SERVICE CLASSIFICATION~Retail Transmission Rate - Line and Transformation Connection Service Rate | F11: GENERAL SERVICE 50 to 4,999 kW SERVICE CLASSIFICATION~Retail Transmission Rate - Network Service Rate | G11: GENERAL SERVICE 50 to 4,999 kW SERVICE CLASSIFICATION~Retail Transmission Rate - Line and Transformation Connection Service Rate | H11: GENERAL SERVICE 50 to 4,999 kW SERVICE CLASSIFICATION~Retail Transmission Rate - Network Service Rate - EV CHARGING | I11: GENERAL SERVICE 50 to 4,999 kW SERVICE CLASSIFICATION~Retail Transmission Rate - Line and Transformation Connection Service Rate - EV CHARGING | J11: GENERAL SERVICE 50 to 4,999 kW SERVICE CLASSIFICATION~Retail Transmission Rate - Network Service Rate - Interval Metered | K11: GENERAL SERVICE 50 to 4,999 kW SERVICE CLASSIFICATION~Retail Transmission Rate - Line and Transformation Connection Service Rate - Interval Metered | L11: LARGE USE SERVICE CLASSIFICATION~Retail Transmission Rate - Network Service Rate - Interval Metered | M11: LARGE USE SERVICE CLASSIFICATION~Retail Transmission Rate - Line and Transformation Connection Service Rate - Interval Metered | N11: UNMETERED SCATTERED LOAD SERVICE CLASSIFICATION~Retail Transmission Rate - Network Service Rate | O11: UNMETERED SCATTERED LOAD SERVICE CLASSIFICATION~Retail Transmission Rate - Line and Transformation Connection Service Rate | P11: SENTINEL LIGHTING SERVICE CLASSIFICATION~Retail Transmission Rate - Network Service Rate | Q11: SENTINEL LIGHTING SERVICE CLASSIFICATION~Retail Transmission Rate - Line and Transformation Connection Service Rate | R11: STREET LIGHTING SERVICE CLASSIFICATION~Retail Transmission Rate - Network Service Rate | S11: STREET LIGHTING SERVICE CLASSIFICATION~Retail Transmission Rate - Line and Transformation Connection Service Rate
A12: Grimsby Power Incorporated | B12: RESIDENTIAL SERVICE CLASSIFICATION~Retail Transmission Rate - Network Service Rate | C12: RESIDENTIAL SERVICE CLASSIFICATION~Retail Transmission Rate - Line and Transformation Connection Service Rate | D12: GENERAL SERVICE LESS THAN 50 KW SERVICE CLASSIFICATION~Retail Transmission Rate - Network Service Rate | E12: GENERAL SERVICE LESS THAN 50 KW SERVICE CLASSIFICATION~Retail Transmission Rate - Line and Transformation Connection Service Rate | F12: GENERAL SERVICE 50 to 4,999 kW SERVICE CLASSIFICATION~Retail Transmission Rate - Network Service Rate | G12: GENERAL SERVICE 50 to 4,999 kW SERVICE CLASSIFICATION~Retail Transmission Rate - Line and Transformation Connection Service Rate | H12: GENERAL SERVICE 50 to 4,999 kW SERVICE CLASSIFICATION~Retail Transmission Rate - Network Service Rate - EV CHARGING | I12: GENERAL SERVICE 50 to 4,999 kW SERVICE CLASSIFICATION~Retail Transmission Rate - Line and Transformation Connection Service Rate - EV CHARGING | J12: GENERAL SERVICE 50 to 4,999 kW SERVICE CLASSIFICATION~Retail Transmission Rate - Network Service Rate - Interval Metered | K12: GENERAL SERVICE 50 to 4,999 kW SERVICE CLASSIFICATION~Retail Transmission Rate - Line and Transformation Connection Service Rate - Interval Metered | L12: UNMETERED SCATTERED LOAD SERVICE CLASSIFICATION~Retail Transmission Rate - Network Service Rate | M12: UNMETERED SCATTERED LOAD SERVICE CLASSIFICATION~Retail Transmission Rate - Line and Transformation Connection Service Rate | N12: STREET LIGHTING SERVICE CLASSIFICATION~Retail Transmission Rate - Network Service Rate | O12: STREET LIGHTING SERVICE CLASSIFICATION~Retail Transmission Rate - Line and Transformation Connection Service Rate | P12: EMBEDDED DISTRIBUTOR SERVICE CLASSIFICATION~Retail Transmission Rate - Network Service Rate | Q12: EMBEDDED DISTRIBUTOR SERVICE CLASSIFICATION~Retail Transmission Rate - Line and Transformation Connection Service Rate
A13: Alectra Utilities Corporation-Guelph Rate Zone | B13: RESIDENTIAL SERVICE CLASSIFICATION~Retail Transmission Rate - Network Service Rate | C13: RESIDENTIAL SERVICE CLASSIFICATION~Retail Transmission Rate - Line and Transformation Connection Service Rate | D13: GENERAL SERVICE LESS THAN 50 KW SERVICE CLASSIFICATION~Retail Transmission Rate - Network Service Rate | E13: GENERAL SERVICE LESS THAN 50 KW SERVICE CLASSIFICATION~Retail Transmission Rate - Line and Transformation Connection Service Rate | F13: GENERAL SERVICE 50 TO 999 KW SERVICE CLASSIFICATION~Retail Transmission Rate - Network Service Rate | G13: GENERAL SERVICE 50 TO 999 KW SERVICE CLASSIFICATION~Retail Transmission Rate - Network Service Rate - Interval Metered | H13: GENERAL SERVICE 50 TO 999 KW SERVICE CLASSIFICATION~Retail Transmission Rate - Line and Transformation Connection Service Rate | I13: GENERAL SERVICE 50 TO 999 KW SERVICE CLASSIFICATION~Retail Transmission Rate - Network Service Rate - EV CHARGING | J13: GENERAL SERVICE 50 TO 999 KW SERVICE CLASSIFICATION~Retail Transmission Rate - Line and Transformation Connection Service Rate - EV CHARGING | K13: GENERAL SERVICE 50 TO 999 KW SERVICE CLASSIFICATION~Retail Transmission Rate - Line and Transformation Connection Service Rate - Interval Metered | L13: GENERAL SERVICE 1,000 TO 4,999 KW SERVICE CLASSIFICATION~Retail Transmission Rate - Network Service Rate - Interval Metered | M13: GENERAL SERVICE 1,000 TO 4,999 KW SERVICE CLASSIFICATION~Retail Transmission Rate - Line and Transformation Connection Service Rate - Interval Metered | N13: GENERAL SERVICE 1,000 TO 4,999 KW SERVICE CLASSIFICATION~Retail Transmission Rate - Network Service Rate - EV CHARGING | O13: GENERAL SERVICE 1,000 TO 4,999 KW SERVICE CLASSIFICATION~Retail Transmission Rate - Line and Transformation Connection Service Rate - EV CHARGING | P13: LARGE USE SERVICE CLASSIFICATION~Retail Transmission Rate - Network Service Rate - Interval Metered | Q13: LARGE USE SERVICE CLASSIFICATION~Retail Transmission Rate - Line and Transformation Connection Service Rate - Interval Metered | R13: UNMETERED SCATTERED LOAD SERVICE CLASSIFICATION~Retail Transmission Rate - Network Service Rate | S13: UNMETERED SCATTERED LOAD SERVICE CLASSIFICATION~Retail Transmission Rate - Line and Transformation Connection Service Rate | T13: SENTINEL LIGHTING SERVICE CLASSIFICATION~Retail Transmission Rate - Network Service Rate | U13: SENTINEL LIGHTING SERVICE CLASSIFICATION~Retail Transmission Rate - Line and Transformation Connection Service Rate | V13: STREET LIGHTING SERVICE CLASSIFICATION~Retail Transmission Rate - Network Service Rate | W13: STREET LIGHTING SERVICE CLASSIFICATION~Retail Transmission Rate - Line and Transformation Connection Service Rate
A14: Hydro Hawkesbury Inc. | B14: RESIDENTIAL SERVICE CLASSIFICATION~Retail Transmission Rate - Network Service Rate | C14: RESIDENTIAL SERVICE CLASSIFICATION~Retail Transmission Rate - Line and Transformation Connection Service Rate | D14: GENERAL SERVICE LESS THAN 50 KW SERVICE CLASSIFICATION~Retail Transmission Rate - Network Service Rate | E14: GENERAL SERVICE LESS THAN 50 KW SERVICE CLASSIFICATION~Retail Transmission Rate - Line and Transformation Connection Service Rate | F14: GENERAL SERVICE 50 to 4,999 kW SERVICE CLASSIFICATION~Retail Transmission Rate - Network Service Rate | G14: GENERAL SERVICE 50 to 4,999 kW SERVICE CLASSIFICATION~Retail Transmission Rate - Line and Transformation Connection Service Rate | H14: GENERAL SERVICE 50 to 4,999 kW SERVICE CLASSIFICATION~Retail Transmission Rate - Network Service Rate - EV CHARGING | I14: GENERAL SERVICE 50 to 4,999 kW SERVICE CLASSIFICATION~Retail Transmission Rate - Line and Transformation Connection Service Rate - EV CHARGING | J14: UNMETERED SCATTERED LOAD SERVICE CLASSIFICATION~Retail Transmission Rate - Network Service Rate | K14: UNMETERED SCATTERED LOAD SERVICE CLASSIFICATION~Retail Transmission Rate - Line and Transformation Connection Service Rate | L14: SENTINEL LIGHTING SERVICE CLASSIFICATION~Retail Transmission Rate - Network Service Rate | M14: SENTINEL LIGHTING SERVICE CLASSIFICATION~Retail Transmission Rate - Line and Transformation Connection Service Rate | N14: STREET LIGHTING SERVICE CLASSIFICATION~Retail Transmission Rate - Network Service Rate | O14: STREET LIGHTING SERVICE CLASSIFICATION~Retail Transmission Rate - Line and Transformation Connection Service Rate
A15: Hydro Ottawa Limited | B15: RESIDENTIAL SERVICE CLASSIFICATION~Retail Transmission Rate - Network Service Rate | C15: RESIDENTIAL SERVICE CLASSIFICATION~Retail Transmission Rate - Line and Transformation Connection Service Rate | D15: GENERAL SERVICE LESS THAN 50 KW SERVICE CLASSIFICATION~Retail Transmission Rate - Network Service Rate | E15: GENERAL SERVICE LESS THAN 50 KW SERVICE CLASSIFICATION~Retail Transmission Rate - Line and Transformation Connection Service Rate | F15: GENERAL SERVICE 50 TO 1,499 KW SERVICE CLASSIFICATION~Retail Transmission Rate - Network Service Rate | G15: GENERAL SERVICE 50 TO 1,499 KW SERVICE CLASSIFICATION~Retail Transmission Rate - Line and Transformation Connection Service Rate | H15: GENERAL SERVICE 50 TO 1,499 KW SERVICE CLASSIFICATION~Retail Transmission Rate - Network Service Rate - EV CHARGING | I15: GENERAL SERVICE 50 TO 1,499 KW SERVICE CLASSIFICATION~Retail Transmission Rate - Line and Transformation Connection Service Rate - EV CHARGING | J15: GENERAL SERVICE 1,500 TO 4,999 KW SERVICE CLASSIFICATION~Retail Transmission Rate - Network Service Rate | K15: GENERAL SERVICE 1,500 TO 4,999 KW SERVICE CLASSIFICATION~Retail Transmission Rate - Line and Transformation Connection Service Rate | L15: GENERAL SERVICE 1,500 TO 4,999 KW SERVICE CLASSIFICATION~Retail Transmission Rate - Network Service Rate - EV CHARGING | M15: GENERAL SERVICE 1,500 TO 4,999 KW SERVICE CLASSIFICATION~Retail Transmission Rate - Line and Transformation Connection Service Rate - EV CHARGING | N15: LARGE USE SERVICE CLASSIFICATION~Retail Transmission Rate - Network Service Rate | O15: LARGE USE SERVICE CLASSIFICATION~Retail Transmission Rate - Line and Transformation Connection Service Rate | P15: UNMETERED SCATTERED LOAD SERVICE CLASSIFICATION~Retail Transmission Rate - Network Service Rate | Q15: UNMETERED SCATTERED LOAD SERVICE CLASSIFICATION~Retail Transmission Rate - Line and Transformation Connection Service Rate | R15: SENTINEL LIGHTING SERVICE CLASSIFICATION~Retail Transmission Rate - Network Service Rate | S15: SENTINEL LIGHTING SERVICE CLASSIFICATION~Retail Transmission Rate - Line and Transformation Connection Service Rate | T15: STREET LIGHTING SERVICE CLASSIFICATION~Retail Transmission Rate - Network Service Rate | U15: STREET LIGHTING SERVICE CLASSIFICATION~Retail Transmission Rate - Line and Transformation Connection Service Rate
A16: InnPower Corporation | B16: RESIDENTIAL SERVICE CLASSIFICATION~Retail Transmission Rate - Network Service Rate | C16: RESIDENTIAL SERVICE CLASSIFICATION~Retail Transmission Rate - Line and Transformation Connection Service Rate | D16: GENERAL SERVICE LESS THAN 50 KW SERVICE CLASSIFICATION~Retail Transmission Rate - Network Service Rate | E16: GENERAL SERVICE LESS THAN 50 KW SERVICE CLASSIFICATION~Retail Transmission Rate - Line and Transformation Connection Service Rate | F16: GENERAL SERVICE 50 to 4,999 kW SERVICE CLASSIFICATION~Retail Transmission Rate - Network Service Rate | G16: GENERAL SERVICE 50 to 4,999 kW SERVICE CLASSIFICATION~Retail Transmission Rate - Line and Transformation Connection Service Rate | H16: GENERAL SERVICE 50 to 4,999 kW SERVICE CLASSIFICATION~Retail Transmission Rate - Network Service Rate - EV CHARGING | I16: GENERAL SERVICE 50 to 4,999 kW SERVICE CLASSIFICATION~Retail Transmission Rate - Line and Transformation Connection Service Rate - EV CHARGING | J16: GENERAL SERVICE 50 to 4,999 kW SERVICE CLASSIFICATION~Retail Transmission Rate - Network Service Rate - Interval Metered | K16: GENERAL SERVICE 50 to 4,999 kW SERVICE CLASSIFICATION~Retail Transmission Rate - Line and Transformation Connection Service Rate - Interval Metered | L16: UNMETERED SCATTERED LOAD SERVICE CLASSIFICATION~Retail Transmission Rate - Network Service Rate | M16: UNMETERED SCATTERED LOAD SERVICE CLASSIFICATION~Retail Transmission Rate - Line and Transformation Connection Service Rate | N16: SENTINEL LIGHTING SERVICE CLASSIFICATION~Retail Transmission Rate - Network Service Rate | O16: SENTINEL LIGHTING SERVICE CLASSIFICATION~Retail Transmission Rate - Line and Transformation Connection Service Rate | P16: STREET LIGHTING SERVICE CLASSIFICATION~Retail Transmission Rate - Network Service Rate | Q16: STREET LIGHTING SERVICE CLASSIFICATION~Retail Transmission Rate - Line and Transformation Connection Service Rate
A17: Kingston Hydro Corporation | B17: RESIDENTIAL SERVICE CLASSIFICATION~Retail Transmission Rate - Network Service Rate | C17: RESIDENTIAL SERVICE CLASSIFICATION~Retail Transmission Rate - Line and Transformation Connection Service Rate | D17: GENERAL SERVICE LESS THAN 50 KW SERVICE CLASSIFICATION~Retail Transmission Rate - Network Service Rate | E17: GENERAL SERVICE LESS THAN 50 KW SERVICE CLASSIFICATION~Retail Transmission Rate - Line and Transformation Connection Service Rate | F17: GENERAL SERVICE 50 to 4,999 kW SERVICE CLASSIFICATION~Retail Transmission Rate - Network Service Rate | G17: GENERAL SERVICE 50 to 4,999 kW SERVICE CLASSIFICATION~Retail Transmission Rate - Line and Transformation Connection Service Rate | H17: GENERAL SERVICE 50 to 4,999 kW SERVICE CLASSIFICATION~Retail Transmission Rate - Network Service Rate - EV CHARGING | I17: GENERAL SERVICE 50 to 4,999 kW SERVICE CLASSIFICATION~Retail Transmission Rate - Line and Transformation Connection Service Rate - EV CHARGING | J17: LARGE USE SERVICE CLASSIFICATION~Retail Transmission Rate - Network Service Rate | K17: LARGE USE SERVICE CLASSIFICATION~Retail Transmission Rate - Line and Transformation Connection Service Rate | L17: UNMETERED SCATTERED LOAD SERVICE CLASSIFICATION~Retail Transmission Rate - Network Service Rate | M17: UNMETERED SCATTERED LOAD SERVICE CLASSIFICATION~Retail Transmission Rate - Line and Transformation Connection Service Rate | N17: STREET LIGHTING SERVICE CLASSIFICATION~Retail Transmission Rate - Network Service Rate | O17: STREET LIGHTING SERVICE CLASSIFICATION~Retail Transmission Rate - Line and Transformation Connection Service Rate
A18: Renfrew Hydro Inc. | B18: RESIDENTIAL SERVICE CLASSIFICATION~Retail Transmission Rate - Network Service Rate | C18: RESIDENTIAL SERVICE CLASSIFICATION~Retail Transmission Rate - Line and Transformation Connection Service Rate | D18: GENERAL SERVICE LESS THAN 50 KW SERVICE CLASSIFICATION~Retail Transmission Rate - Network Service Rate | E18: GENERAL SERVICE LESS THAN 50 KW SERVICE CLASSIFICATION~Retail Transmission Rate - Line and Transformation Connection Service Rate | F18: GENERAL SERVICE 50 to 4,999 kW SERVICE CLASSIFICATION~Retail Transmission Rate - Network Service Rate | G18: GENERAL SERVICE 50 to 4,999 kW SERVICE CLASSIFICATION~Retail Transmission Rate - Line and Transformation Connection Service Rate | H18: GENERAL SERVICE 50 to 4,999 kW SERVICE CLASSIFICATION~Retail Transmission Rate - Network Service Rate - EV CHARGING | I18: GENERAL SERVICE 50 to 4,999 kW SERVICE CLASSIFICATION~Retail Transmission Rate - Line and Transformation Connection Service Rate - EV CHARGING | J18: UNMETERED SCATTERED LOAD SERVICE CLASSIFICATION~Retail Transmission Rate - Network Service Rate | K18: UNMETERED SCATTERED LOAD SERVICE CLASSIFICATION~Retail Transmission Rate - Line and Transformation Connection Service Rate | L18: STREET LIGHTING SERVICE CLASSIFICATION~Retail Transmission Rate - Network Service Rate | M18: STREET LIGHTING SERVICE CLASSIFICATION~Retail Transmission Rate - Line and Transformation Connection Service Rate
A19: Cooperative Hydro Embrun Inc. | B19: RESIDENTIAL SERVICE CLASSIFICATION~Retail Transmission Rate - Network Service Rate | C19: RESIDENTIAL SERVICE CLASSIFICATION~Retail Transmission Rate - Line and Transformation Connection Service Rate | D19: GENERAL SERVICE LESS THAN 50 KW SERVICE CLASSIFICATION~Retail Transmission Rate - Network Service Rate | E19: GENERAL SERVICE LESS THAN 50 KW SERVICE CLASSIFICATION~Retail Transmission Rate - Line and Transformation Connection Service Rate | F19: GENERAL SERVICE 50 to 4,999 kW SERVICE CLASSIFICATION~Retail Transmission Rate - Network Service Rate | G19: GENERAL SERVICE 50 to 4,999 kW SERVICE CLASSIFICATION~Retail Transmission Rate - Line and Transformation Connection Service Rate | H19: GENERAL SERVICE 50 to 4,999 kW SERVICE CLASSIFICATION~Retail Transmission Rate - Network Service Rate - EV CHARGING | I19: GENERAL SERVICE 50 to 4,999 kW SERVICE CLASSIFICATION~Retail Transmission Rate - Line and Transformation Connection Service Rate - EV CHARGING | J19: UNMETERED SCATTERED LOAD SERVICE CLASSIFICATION~Retail Transmission Rate - Network Service Rate | K19: UNMETERED SCATTERED LOAD SERVICE CLASSIFICATION~Retail Transmission Rate - Line and Transformation Connection Service Rate | L19: STREET LIGHTING SERVICE CLASSIFICATION~Retail Transmission Rate - Network Service Rate | M19: STREET LIGHTING SERVICE CLASSIFICATION~Retail Transmission Rate - Line and Transformation Connection Service Rate
A20: Lakefront Utilities Inc. | B20: RESIDENTIAL SERVICE CLASSIFICATION~Retail Transmission Rate - Network Service Rate | C20: RESIDENTIAL SERVICE CLASSIFICATION~Retail Transmission Rate - Line and Transformation Connection Service Rate | D20: GENERAL SERVICE LESS THAN 50 KW SERVICE CLASSIFICATION~Retail Transmission Rate - Network Service Rate | E20: GENERAL SERVICE LESS THAN 50 KW SERVICE CLASSIFICATION~Retail Transmission Rate - Line and Transformation Connection Service Rate | F20: GENERAL SERVICE 50 TO 2,999 KW SERVICE CLASSIFICATION~Retail Transmission Rate - Network Service Rate | G20: GENERAL SERVICE 50 TO 2,999 KW SERVICE CLASSIFICATION~Retail Transmission Rate - Line and Transformation Connection Service Rate | H20: GENERAL SERVICE 50 TO 2,999 KW SERVICE CLASSIFICATION~Retail Transmission Rate - Network Service Rate - EV CHARGING | I20: GENERAL SERVICE 50 TO 2,999 KW SERVICE CLASSIFICATION~Retail Transmission Rate - Line and Transformation Connection Service Rate - EV CHARGING | J20: GENERAL SERVICE 3,000 TO 4,999 KW SERVICE CLASSIFICATION~Retail Transmission Rate - Network Service Rate | K20: GENERAL SERVICE 3,000 TO 4,999 KW SERVICE CLASSIFICATION~Retail Transmission Rate - Line and Transformation Connection Service Rate | L20: GENERAL SERVICE 3,000 TO 4,999 KW SERVICE CLASSIFICATION~Retail Transmission Rate - Network Service Rate - EV CHARGING | M20: GENERAL SERVICE 3,000 TO 4,999 KW SERVICE CLASSIFICATION~Retail Transmission Rate - Line and Transformation Connection Service Rate - EV CHARGING | N20: UNMETERED SCATTERED LOAD SERVICE CLASSIFICATION~Retail Transmission Rate - Network Service Rate | O20: UNMETERED SCATTERED LOAD SERVICE CLASSIFICATION~Retail Transmission Rate - Line and Transformation Connection Service Rate | P20: SENTINEL LIGHTING SERVICE CLASSIFICATION~Retail Transmission Rate - Network Service Rate | Q20: SENTINEL LIGHTING SERVICE CLASSIFICATION~Retail Transmission Rate - Line and Transformation Connection Service Rate | R20: STREET LIGHTING SERVICE CLASSIFICATION~Retail Transmission Rate - Network Service Rate | S20: STREET LIGHTING SERVICE CLASSIFICATION~Retail Transmission Rate - Line and Transformation Connection Service Rate
A21: Toronto Hydro-Electric System Limited | B21: RESIDENTIAL SERVICE CLASSIFICATION~Retail Transmission Rate - Network Service Rate | C21: RESIDENTIAL SERVICE CLASSIFICATION~Retail Transmission Rate - Line and Transformation Connection Service Rate | D21: COMPETITIVE SECTOR MULTI-UNIT RESIDENTIAL SERVICE CLASSIFICATION~Retail Transmission Rate - Network Service Rate | E21: COMPETITIVE SECTOR MULTI-UNIT RESIDENTIAL SERVICE CLASSIFICATION~Retail Transmission Rate - Line and Transformation Connection Service Rate | F21: GENERAL SERVICE LESS THAN 50 KW SERVICE CLASSIFICATION~Retail Transmission Rate - Network Service Rate | G21: GENERAL SERVICE LESS THAN 50 KW SERVICE CLASSIFICATION~Retail Transmission Rate - Line and Transformation Connection Service Rate | H21: GENERAL SERVICE 50 TO 999 KW SERVICE CLASSIFICATION~Retail Transmission Rate - Network Service Rate | I21: GENERAL SERVICE LESS THAN 50 KW SERVICE CLASSIFICATION~Retail Transmission Rate - Line and Transformation Connection Service Rate - EV CHARGING | J21: GENERAL SERVICE 50 TO 999 KW SERVICE CLASSIFICATION~Retail Transmission Rate - Network Service Rate - EV CHARGING | K21: GENERAL SERVICE 50 TO 999 KW SERVICE CLASSIFICATION~Retail Transmission Rate - Line and Transformation Connection Service Rate | L21: GENERAL SERVICE 1,000 TO 4,999 KW SERVICE CLASSIFICATION~Retail Transmission Rate - Network Service Rate | M21: GENERAL SERVICE 1,000 TO 4,999 KW SERVICE CLASSIFICATION~Retail Transmission Rate - Line and Transformation Connection Service Rate | N21: GENERAL SERVICE 1,000 TO 4,999 KW SERVICE CLASSIFICATION~Retail Transmission Rate - Network Service Rate - EV CHARGING | O21: GENERAL SERVICE 1,000 TO 4,999 KW SERVICE CLASSIFICATION~Retail Transmission Rate - Line and Transformation Connection Service Rate - EV CHARGING | P21: LARGE USE SERVICE CLASSIFICATION~Retail Transmission Rate - Network Service Rate | Q21: LARGE USE SERVICE CLASSIFICATION~Retail Transmission Rate - Line and Transformation Connection Service Rate | R21: UNMETERED SCATTERED LOAD SERVICE CLASSIFICATION~Retail Transmission Rate - Network Service Rate | S21: UNMETERED SCATTERED LOAD SERVICE CLASSIFICATION~Retail Transmission Rate - Line and Transformation Connection Service Rate | T21: STREET LIGHTING SERVICE CLASSIFICATION~Retail Transmission Rate - Network Service Rate | U21: STREET LIGHTING SERVICE CLASSIFICATION~Retail Transmission Rate - Line and Transformation Connection Service Rate
A22: Westario Power Inc. | B22: RESIDENTIAL SERVICE CLASSIFICATION~Retail Transmission Rate - Network Service Rate | C22: RESIDENTIAL SERVICE CLASSIFICATION~Retail Transmission Rate - Line and Transformation Connection Service Rate | D22: GENERAL SERVICE LESS THAN 50 KW SERVICE CLASSIFICATION~Retail Transmission Rate - Network Service Rate | E22: GENERAL SERVICE LESS THAN 50 KW SERVICE CLASSIFICATION~Retail Transmission Rate - Line and Transformation Connection Service Rate | F22: GENERAL SERVICE 50 to 4,999 kW SERVICE CLASSIFICATION~Retail Transmission Rate - Network Service Rate | G22: GENERAL SERVICE 50 to 4,999 kW SERVICE CLASSIFICATION~Retail Transmission Rate - Line and Transformation Connection Service Rate | H22: GENERAL SERVICE 50 to 4,999 kW SERVICE CLASSIFICATION~Retail Transmission Rate - Network Service Rate - EV CHARGING | I22: GENERAL SERVICE 50 to 4,999 kW SERVICE CLASSIFICATION~Retail Transmission Rate - Line and Transformation Connection Service Rate - EV CHARGING | J22: UNMETERED SCATTERED LOAD SERVICE CLASSIFICATION~Retail Transmission Rate - Network Service Rate | K22: UNMETERED SCATTERED LOAD SERVICE CLASSIFICATION~Retail Transmission Rate - Line and Transformation Connection Service Rate | L22: SENTINEL LIGHTING SERVICE CLASSIFICATION~Retail Transmission Rate - Network Service Rate | M22: SENTINEL LIGHTING SERVICE CLASSIFICATION~Retail Transmission Rate - Line and Transformation Connection Service Rate | N22: STREET LIGHTING SERVICE CLASSIFICATION~Retail Transmission Rate - Network Service Rate | O22: STREET LIGHTING SERVICE CLASSIFICATION~Retail Transmission Rate - Line and Transformation Connection Service Rate
A23: Elexicon Energy Inc.-Whitby Rate Zone | B23: RESIDENTIAL SERVICE CLASSIFICATION~Retail Transmission Rate - Network Service Rate | C23: RESIDENTIAL SERVICE CLASSIFICATION~Retail Transmission Rate - Line and Transformation Connection Service Rate | D23: GENERAL SERVICE LESS THAN 50 KW SERVICE CLASSIFICATION~Retail Transmission Rate - Network Service Rate | E23: GENERAL SERVICE LESS THAN 50 KW SERVICE CLASSIFICATION~Retail Transmission Rate - Line and Transformation Connection Service Rate | F23: GENERAL SERVICE 50 to 4,999 kW SERVICE CLASSIFICATION~Retail Transmission Rate - Network Service Rate | G23: GENERAL SERVICE 50 to 4,999 kW SERVICE CLASSIFICATION~Retail Transmission Rate - Line and Transformation Connection Service Rate | H23: GENERAL SERVICE 50 to 4,999 kW SERVICE CLASSIFICATION~Retail Transmission Rate - Network Service Rate - EV CHARGING | I23: GENERAL SERVICE 50 to 4,999 kW SERVICE CLASSIFICATION~Retail Transmission Rate - Line and Transformation Connection Service Rate - EV CHARGING | J23: UNMETERED SCATTERED LOAD SERVICE CLASSIFICATION~Retail Transmission Rate - Network Service Rate | K23: UNMETERED SCATTERED LOAD SERVICE CLASSIFICATION~Retail Transmission Rate - Line and Transformation Connection Service Rate | L23: SENTINEL LIGHTING SERVICE CLASSIFICATION~Retail Transmission Rate - Network Service Rate | M23: SENTINEL LIGHTING SERVICE CLASSIFICATION~Retail Transmission Rate - Line and Transformation Connection Service Rate | N23: STREET LIGHTING SERVICE CLASSIFICATION~Retail Transmission Rate - Network Service Rate | O23: STREET LIGHTING SERVICE CLASSIFICATION~Retail Transmission Rate - Line and Transformation Connection Service Rate
A24: Erie Thames Powerlines Corporation | B24: RESIDENTIAL SERVICE CLASSIFICATION~Retail Transmission Rate - Network Service Rate | C24: RESIDENTIAL SERVICE CLASSIFICATION~Retail Transmission Rate - Line and Transformation Connection Service Rate | D24: GENERAL SERVICE LESS THAN 50 KW SERVICE CLASSIFICATION~Retail Transmission Rate - Network Service Rate | E24: GENERAL SERVICE LESS THAN 50 KW SERVICE CLASSIFICATION~Retail Transmission Rate - Line and Transformation Connection Service Rate | F24: GENERAL SERVICE 50 TO 999 KW SERVICE CLASSIFICATION~Retail Transmission Rate - Network Service Rate | G24: GENERAL SERVICE 50 TO 999 KW SERVICE CLASSIFICATION~Retail Transmission Rate - Line and Transformation Connection Service Rate | H24: GENERAL SERVICE 50 TO 999 KW SERVICE CLASSIFICATION~Retail Transmission Rate - Network Service Rate - EV CHARGING | I24: GENERAL SERVICE 50 TO 999 KW SERVICE CLASSIFICATION~Retail Transmission Rate - Line and Transformation Connection Service Rate - EV CHARGING | J24: GENERAL SERVICE 1,000 TO 4,999 KW SERVICE CLASSIFICATION~Retail Transmission Rate - Network Service Rate | K24: GENERAL SERVICE 1,000 TO 4,999 KW SERVICE CLASSIFICATION~Retail Transmission Rate - Line and Transformation Connection Service Rate | L24: GENERAL SERVICE 1,000 TO 4,999 KW SERVICE CLASSIFICATION~Retail Transmission Rate - Network Service Rate - EV CHARGING | M24: GENERAL SERVICE 1,000 TO 4,999 KW SERVICE CLASSIFICATION~Retail Transmission Rate - Line and Transformation Connection Service Rate - EV CHARGING | N24: LARGE USE SERVICE CLASSIFICATION~Retail Transmission Rate - Network Service Rate | O24: LARGE USE SERVICE CLASSIFICATION~Retail Transmission Rate - Line and Transformation Connection Service Rate | P24: UNMETERED SCATTERED LOAD SERVICE CLASSIFICATION~Retail Transmission Rate - Network Service Rate | Q24: UNMETERED SCATTERED LOAD SERVICE CLASSIFICATION~Retail Transmission Rate - Line and Transformation Connection Service Rate | R24: SENTINEL LIGHTING SERVICE CLASSIFICATION~Retail Transmission Rate - Network Service Rate | S24: SENTINEL LIGHTING SERVICE CLASSIFICATION~Retail Transmission Rate - Line and Transformation Connection Service Rate | T24: STREET LIGHTING SERVICE CLASSIFICATION~Retail Transmission Rate - Network Service Rate | U24: STREET LIGHTING SERVICE CLASSIFICATION~Retail Transmission Rate - Line and Transformation Connection Service Rate | V24: EMBEDDED DISTRIBUTOR SERVICE CLASSIFICATION~Retail Transmission Rate - Network Service Rate | W24: EMBEDDED DISTRIBUTOR SERVICE CLASSIFICATION~Retail Transmission Rate - Line and Transformation Connection Service Rate
A25: Entegrus Powerlines Inc.-For Entegrus-Main Rate Zone | B25: RESIDENTIAL SERVICE CLASSIFICATION~Retail Transmission Rate - Network Service Rate | C25: RESIDENTIAL SERVICE CLASSIFICATION~Retail Transmission Rate - Line and Transformation Connection Service Rate | D25: GENERAL SERVICE LESS THAN 50 KW SERVICE CLASSIFICATION~Retail Transmission Rate - Network Service Rate | E25: GENERAL SERVICE LESS THAN 50 KW SERVICE CLASSIFICATION~Retail Transmission Rate - Line and Transformation Connection Service Rate | F25: GENERAL SERVICE 50 to 4,999 kW SERVICE CLASSIFICATION~Retail Transmission Rate - Network Service Rate | G25: GENERAL SERVICE 50 to 4,999 kW SERVICE CLASSIFICATION~Retail Transmission Rate - Line and Transformation Connection Service Rate (see Note 1) | H25: GENERAL SERVICE 50 to 4,999 kW SERVICE CLASSIFICATION~Retail Transmission Rate - Network Service Rate - EV CHARGING | I25: GENERAL SERVICE 50 to 4,999 kW SERVICE CLASSIFICATION~Retail Transmission Rate - Line and Transformation Connection Service Rate (see Note 1) - EV CHARGING | J25: LARGE USE SERVICE CLASSIFICATION~Retail Transmission Rate - Network Service Rate | K25: LARGE USE SERVICE CLASSIFICATION~Retail Transmission Rate - Line and Transformation Connection Service Rate (see Note 1) | L25: UNMETERED SCATTERED LOAD SERVICE CLASSIFICATION~Retail Transmission Rate - Network Service Rate | M25: UNMETERED SCATTERED LOAD SERVICE CLASSIFICATION~Retail Transmission Rate - Line and Transformation Connection Service Rate | N25: SENTINEL LIGHTING SERVICE CLASSIFICATION~Retail Transmission Rate - Network Service Rate | O25: SENTINEL LIGHTING SERVICE CLASSIFICATION~Retail Transmission Rate - Line and Transformation Connection Service Rate | P25: STREET LIGHTING SERVICE CLASSIFICATION~Retail Transmission Rate - Network Service Rate | Q25: STREET LIGHTING SERVICE CLASSIFICATION~Retail Transmission Rate - Line and Transformation Connection Service Rate | R25: EMBEDDED DISTRIBUTOR SERVICE CLASSIFICATION~Retail Transmission Rate - Network Service Rate | S25: EMBEDDED DISTRIBUTOR SERVICE CLASSIFICATION~Retail Transmission Rate - Line and Transformation Connection Service Rate
A26: Lakeland Power Distribution Ltd. | B26: RESIDENTIAL SERVICE CLASSIFICATION~Retail Transmission Rate - Network Service Rate | C26: RESIDENTIAL SERVICE CLASSIFICATION~Retail Transmission Rate - Line and Transformation Connection Service Rate | D26: GENERAL SERVICE LESS THAN 50 KW SERVICE CLASSIFICATION~Retail Transmission Rate - Network Service Rate | E26: GENERAL SERVICE LESS THAN 50 KW SERVICE CLASSIFICATION~Retail Transmission Rate - Line and Transformation Connection Service Rate | F26: GENERAL SERVICE 50 to 4,999 kW SERVICE CLASSIFICATION~Retail Transmission Rate - Network Service Rate | G26: GENERAL SERVICE 50 to 4,999 kW SERVICE CLASSIFICATION~Retail Transmission Rate - Line and Transformation Connection Service Rate | H26: GENERAL SERVICE 50 to 4,999 kW SERVICE CLASSIFICATION~Retail Transmission Rate - Network Service Rate - EV CHARGING | I26: GENERAL SERVICE 50 to 4,999 kW SERVICE CLASSIFICATION~Retail Transmission Rate - Line and Transformation Connection Service Rate - EV CHARGING | J26: UNMETERED SCATTERED LOAD SERVICE CLASSIFICATION~Retail Transmission Rate - Network Service Rate | K26: UNMETERED SCATTERED LOAD SERVICE CLASSIFICATION~Retail Transmission Rate - Line and Transformation Connection Service Rate | L26: SENTINEL LIGHTING SERVICE CLASSIFICATION~Retail Transmission Rate - Network Service Rate | M26: SENTINEL LIGHTING SERVICE CLASSIFICATION~Retail Transmission Rate - Line and Transformation Connection Service Rate | N26: STREET LIGHTING SERVICE CLASSIFICATION~Retail Transmission Rate - Network Service Rate | O26: STREET LIGHTING SERVICE CLASSIFICATION~Retail Transmission Rate - Line and Transformation Connection Service Rate
A27: Newmarket-Tay Power Distribution Ltd.-For Former Midland Power Utility Rate Zone | B27: RESIDENTIAL SERVICE CLASSIFICATION~Retail Transmission Rate - Network Service Rate | C27: RESIDENTIAL SERVICE CLASSIFICATION~Retail Transmission Rate - Line and Transformation Connection Service Rate | D27: GENERAL SERVICE LESS THAN 50 KW SERVICE CLASSIFICATION~Retail Transmission Rate - Network Service Rate | E27: GENERAL SERVICE LESS THAN 50 KW SERVICE CLASSIFICATION~Retail Transmission Rate - Line and Transformation Connection Service Rate | F27: GENERAL SERVICE 50 to 4,999 kW SERVICE CLASSIFICATION~Retail Transmission Rate - Network Service Rate | G27: GENERAL SERVICE 50 to 4,999 kW SERVICE CLASSIFICATION~Retail Transmission Rate - Line and Transformation Connection Service Rate | H27: GENERAL SERVICE 50 to 4,999 kW SERVICE CLASSIFICATION~Retail Transmission Rate - Network Service Rate - EV CHARGING | I27: GENERAL SERVICE 50 to 4,999 kW SERVICE CLASSIFICATION~Retail Transmission Rate - Line and Transformation Connection Service Rate - EV CHARGING | J27: UNMETERED SCATTERED LOAD SERVICE CLASSIFICATION~Retail Transmission Rate - Network Service Rate | K27: UNMETERED SCATTERED LOAD SERVICE CLASSIFICATION~Retail Transmission Rate - Line and Transformation Connection Service Rate | L27: STREET LIGHTING SERVICE CLASSIFICATION~Retail Transmission Rate - Network Service Rate | M27: STREET LIGHTING SERVICE CLASSIFICATION~Retail Transmission Rate - Line and Transformation Connection Service Rate
A28: Newmarket-Tay Power Distribution Ltd.-For Newmarket-Tay Power Main Rate Zone | B28: RESIDENTIAL SERVICE CLASSIFICATION~Retail Transmission Rate - Network Service Rate | C28: RESIDENTIAL SERVICE CLASSIFICATION~Retail Transmission Rate - Line and Transformation Connection Service Rate | D28: GENERAL SERVICE LESS THAN 50 KW SERVICE CLASSIFICATION~Retail Transmission Rate - Network Service Rate | E28: GENERAL SERVICE LESS THAN 50 KW SERVICE CLASSIFICATION~Retail Transmission Rate - Line and Transformation Connection Service Rate | F28: GENERAL SERVICE 50 to 4,999 kW SERVICE CLASSIFICATION~Retail Transmission Rate - Network Service Rate | G28: GENERAL SERVICE 50 to 4,999 kW SERVICE CLASSIFICATION~Retail Transmission Rate - Line and Transformation Connection Service Rate | H28: GENERAL SERVICE 50 to 4,999 kW SERVICE CLASSIFICATION~Retail Transmission Rate - Network Service Rate - EV CHARGING | I28: GENERAL SERVICE 50 to 4,999 kW SERVICE CLASSIFICATION~Retail Transmission Rate - Line and Transformation Connection Service Rate - EV CHARGING | J28: UNMETERED SCATTERED LOAD SERVICE CLASSIFICATION~Retail Transmission Rate - Network Service Rate | K28: UNMETERED SCATTERED LOAD SERVICE CLASSIFICATION~Retail Transmission Rate - Line and Transformation Connection Service Rate | L28: SENTINEL LIGHTING SERVICE CLASSIFICATION~Retail Transmission Rate - Network Service Rate | M28: SENTINEL LIGHTING SERVICE CLASSIFICATION~Retail Transmission Rate - Line and Transformation Connection Service Rate | N28: STREET LIGHTING SERVICE CLASSIFICATION~Retail Transmission Rate - Network Service Rate | O28: STREET LIGHTING SERVICE CLASSIFICATION~Retail Transmission Rate - Line and Transformation Connection Service Rate
A29: Bluewater Power Distribution Corporation | B29: RESIDENTIAL SERVICE CLASSIFICATION~Retail Transmission Rate - Network Service Rate | C29: RESIDENTIAL SERVICE CLASSIFICATION~Retail Transmission Rate - Line and Transformation Connection Service Rate | D29: GENERAL SERVICE LESS THAN 50 KW SERVICE CLASSIFICATION~Retail Transmission Rate - Network Service Rate | E29: GENERAL SERVICE LESS THAN 50 KW SERVICE CLASSIFICATION~Retail Transmission Rate - Line and Transformation Connection Service Rate | F29: GENERAL SERVICE 50 TO 999 KW SERVICE CLASSIFICATION~Retail Transmission Rate - Network Service Rate | G29: GENERAL SERVICE 50 TO 999 KW SERVICE CLASSIFICATION~Retail Transmission Rate - Line and Transformation Connection Service Rate | H29: GENERAL SERVICE 50 TO 999 KW SERVICE CLASSIFICATION~Retail Transmission Rate - Network Service Rate - EV CHARGING | I29: GENERAL SERVICE 50 TO 999 KW SERVICE CLASSIFICATION~Retail Transmission Rate - Line and Transformation Connection Service Rate - EV CHARGING | J29: GENERAL SERVICE 1,000 TO 4,999 KW SERVICE CLASSIFICATION~Retail Transmission Rate - Network Service Rate | K29: GENERAL SERVICE 1,000 TO 4,999 KW SERVICE CLASSIFICATION~Retail Transmission Rate - Line and Transformation Connection Service Rate | L29: GENERAL SERVICE 1,000 TO 4,999 KW SERVICE CLASSIFICATION~Retail Transmission Rate - Network Service Rate - EV CHARGING | M29: GENERAL SERVICE 1,000 TO 4,999 KW SERVICE CLASSIFICATION~Retail Transmission Rate - Line and Transformation Connection Service Rate - EV CHARGING | N29: LARGE USE SERVICE CLASSIFICATION~Retail Transmission Rate - Network Service Rate - Interval Metered | O29: LARGE USE SERVICE CLASSIFICATION~Retail Transmission Rate - Line and Transformation Connection Service Rate - Interval Metered | P29: UNMETERED SCATTERED LOAD SERVICE CLASSIFICATION~Retail Transmission Rate - Network Service Rate | Q29: UNMETERED SCATTERED LOAD SERVICE CLASSIFICATION~Retail Transmission Rate - Line and Transformation Connection Service Rate | R29: SENTINEL LIGHTING SERVICE CLASSIFICATION~Retail Transmission Rate - Network Service Rate | S29: SENTINEL LIGHTING SERVICE CLASSIFICATION~Retail Transmission Rate - Line and Transformation Connection Service Rate | T29: STREET LIGHTING SERVICE CLASSIFICATION~Retail Transmission Rate - Network Service Rate | U29: STREET LIGHTING SERVICE CLASSIFICATION~Retail Transmission Rate - Line and Transformation Connection Service Rate
A30: Atikokan Hydro Inc. | B30: RESIDENTIAL SERVICE CLASSIFICATION~Retail Transmission Rate - Network Service Rate | C30: RESIDENTIAL SERVICE CLASSIFICATION~Retail Transmission Rate - Transformation Connection Service Rate | D30: GENERAL SERVICE LESS THAN 50 KW SERVICE CLASSIFICATION~Retail Transmission Rate - Network Service Rate | E30: GENERAL SERVICE LESS THAN 50 KW SERVICE CLASSIFICATION~Retail Transmission Rate - Transformation Connection Service Rate | F30: GENERAL SERVICE 50 to 4,999 kW SERVICE CLASSIFICATION~Retail Transmission Rate - Network Service Rate | G30: GENERAL SERVICE 50 to 4,999 kW SERVICE CLASSIFICATION~Retail Transmission Rate - Line and Transformation Connection Service Rate | H30: GENERAL SERVICE 50 to 4,999 kW SERVICE CLASSIFICATION~Retail Transmission Rate - Network Service Rate - EV CHARGING | I30: GENERAL SERVICE 50 to 4,999 kW SERVICE CLASSIFICATION~Retail Transmission Rate - Line and Transformation Connection Service Rate - EV CHARGING | J30: GENERAL SERVICE 50 to 4,999 kW SERVICE CLASSIFICATION~Retail Transmission Rate - Network Service Rate - Interval Metered | K30: GENERAL SERVICE 50 to 4,999 kW SERVICE CLASSIFICATION~Retail Transmission Rate - Line and Transformation Connection Service Rate - Interval Metered | L30: STREET LIGHTING SERVICE CLASSIFICATION~Retail Transmission Rate - Network Service Rate | M30: STREET LIGHTING SERVICE CLASSIFICATION~Retail Transmission Rate - Line and Transformation Connection Service Rate
A31: Burlington Hydro Inc. | B31: RESIDENTIAL SERVICE CLASSIFICATION~Retail Transmission Rate - Network Service Rate | C31: RESIDENTIAL SERVICE CLASSIFICATION~Retail Transmission Rate - Line and Transformation Connection Service Rate | D31: GENERAL SERVICE LESS THAN 50 KW SERVICE CLASSIFICATION~Retail Transmission Rate - Network Service Rate | E31: GENERAL SERVICE LESS THAN 50 KW SERVICE CLASSIFICATION~Retail Transmission Rate - Line and Transformation Connection Service Rate | F31: GENERAL SERVICE 50 to 4,999 kW SERVICE CLASSIFICATION~Retail Transmission Rate - Network Service Rate - Interval Metered | G31: GENERAL SERVICE 50 to 4,999 kW SERVICE CLASSIFICATION~Retail Transmission Rate - Line and Transformation Connection Service Rate - Interval Metered | H31: GENERAL SERVICE 50 to 4,999 kW SERVICE CLASSIFICATION~Retail Transmission Rate - Network Service Rate - EV CHARGING | I31: GENERAL SERVICE 50 to 4,999 kW SERVICE CLASSIFICATION~Retail Transmission Rate - Line and Transformation Connection Service Rate - EV CHARGING | J31: UNMETERED SCATTERED LOAD SERVICE CLASSIFICATION~Retail Transmission Rate - Network Service Rate | K31: UNMETERED SCATTERED LOAD SERVICE CLASSIFICATION~Retail Transmission Rate - Line and Transformation Connection Service Rate | L31: STREET LIGHTING SERVICE CLASSIFICATION~Retail Transmission Rate - Network Service Rate | M31: STREET LIGHTING SERVICE CLASSIFICATION~Retail Transmission Rate - Line Connection Service Rate
A32: E.L.K. Energy Inc. | B32: RESIDENTIAL SERVICE CLASSIFICATION~Retail Transmission Rate - Network Service Rate | C32: RESIDENTIAL SERVICE CLASSIFICATION~Retail Transmission Rate - Line and Transformation Connection Service Rate | D32: GENERAL SERVICE LESS THAN 50 KW SERVICE CLASSIFICATION~Retail Transmission Rate - Network Service Rate | E32: GENERAL SERVICE LESS THAN 50 KW SERVICE CLASSIFICATION~Retail Transmission Rate - Line and Transformation Connection Service Rate | F32: GENERAL SERVICE 50 to 4,999 kW SERVICE CLASSIFICATION~Retail Transmission Rate - Network Service Rate | G32: GENERAL SERVICE 50 to 4,999 kW SERVICE CLASSIFICATION~Retail Transmission Rate - Line and Transformation Connection Service Rate | H32: GENERAL SERVICE 50 to 4,999 kW SERVICE CLASSIFICATION~Retail Transmission Rate - Network Service Rate - EV CHARGING | I32: GENERAL SERVICE 50 to 4,999 kW SERVICE CLASSIFICATION~Retail Transmission Rate - Line and Transformation Connection Service Rate - EV CHARGING | J32: UNMETERED SCATTERED LOAD SERVICE CLASSIFICATION~Retail Transmission Rate - Network Service Rate | K32: UNMETERED SCATTERED LOAD SERVICE CLASSIFICATION~Retail Transmission Rate - Line and Transformation Connection Service Rate | L32: SENTINEL LIGHTING SERVICE CLASSIFICATION~Retail Transmission Rate - Network Service Rate | M32: SENTINEL LIGHTING SERVICE CLASSIFICATION~Retail Transmission Rate - Line and Transformation Connection Service Rate | N32: STREET LIGHTING SERVICE CLASSIFICATION~Retail Transmission Rate - Network Service Rate | O32: STREET LIGHTING SERVICE CLASSIFICATION~Retail Transmission Rate - Line and Transformation Connection Service Rate | P32: EMBEDDED DISTRIBUTOR SERVICE CLASSIFICATION~Retail Transmission Rate - Network Service Rate | Q32: EMBEDDED DISTRIBUTOR SERVICE CLASSIFICATION~Retail Transmission Rate - Line and Transformation Connection Service Rate
A33: EPCOR Electricity Distribution Ontario Inc. | B33: RESIDENTIAL SERVICE CLASSIFICATION~Retail Transmission Rate - Network Service Rate | C33: RESIDENTIAL SERVICE CLASSIFICATION~Retail Transmission Rate - Line and Transformation Connection Service Rate | D33: GENERAL SERVICE LESS THAN 50 KW SERVICE CLASSIFICATION~Retail Transmission Rate - Network Service Rate | E33: GENERAL SERVICE LESS THAN 50 KW SERVICE CLASSIFICATION~Retail Transmission Rate - Line and Transformation Connection Service Rate | F33: GENERAL SERVICE 50 to 4,999 kW SERVICE CLASSIFICATION~Retail Transmission Rate - Network Service Rate | G33: GENERAL SERVICE 50 to 4,999 kW SERVICE CLASSIFICATION~Retail Transmission Rate - Line and Transformation Connection Service Rate | H33: GENERAL SERVICE 50 to 4,999 kW SERVICE CLASSIFICATION~Retail Transmission Rate - Network Service Rate - EV CHARGING | I33: GENERAL SERVICE 50 to 4,999 kW SERVICE CLASSIFICATION~Retail Transmission Rate - Line and Transformation Connection Service Rate - EV CHARGING | J33: UNMETERED SCATTERED LOAD SERVICE CLASSIFICATION~Retail Transmission Rate - Network Service Rate | K33: UNMETERED SCATTERED LOAD SERVICE CLASSIFICATION~Retail Transmission Rate - Line and Transformation Connection Service Rate | L33: STREET LIGHTING SERVICE CLASSIFICATION~Retail Transmission Rate - Network Service Rate | M33: STREET LIGHTING SERVICE CLASSIFICATION~Retail Transmission Rate - Line and Transformation Connection Service Rate
A34: Essex Powerlines Corporation | B34: RESIDENTIAL SERVICE CLASSIFICATION~Retail Transmission Rate - Network Service Rate | C34: RESIDENTIAL SERVICE CLASSIFICATION~Retail Transmission Rate - Line and Transformation Connection Service Rate | D34: GENERAL SERVICE LESS THAN 50 KW SERVICE CLASSIFICATION~Retail Transmission Rate - Network Service Rate | E34: GENERAL SERVICE LESS THAN 50 KW SERVICE CLASSIFICATION~Retail Transmission Rate - Line and Transformation Connection Service Rate | F34: GENERAL SERVICE 50 to 4,999 kW SERVICE CLASSIFICATION~Retail Transmission Rate - Network Service Rate | G34: GENERAL SERVICE 50 to 4,999 kW SERVICE CLASSIFICATION~Retail Transmission Rate - Line and Transformation Connection Service Rate | H34: GENERAL SERVICE 50 to 4,999 kW SERVICE CLASSIFICATION~Retail Transmission Rate - Network Service Rate - EV CHARGING | I34: GENERAL SERVICE 50 to 4,999 kW SERVICE CLASSIFICATION~Retail Transmission Rate - Line and Transformation Connection Service Rate - EV CHARGING | J34: GENERAL SERVICE 50 to 4,999 kW SERVICE CLASSIFICATION~Retail Transmission Rate - Network Service Rate - Interval Metered | K34: GENERAL SERVICE 50 to 4,999 kW SERVICE CLASSIFICATION~Retail Transmission Rate - Line and Transformation Connection Service Rate - Interval Metered | L34: UNMETERED SCATTERED LOAD SERVICE CLASSIFICATION~Retail Transmission Rate - Network Service Rate | M34: UNMETERED SCATTERED LOAD SERVICE CLASSIFICATION~Retail Transmission Rate - Line and Transformation Connection Service Rate | N34: SENTINEL LIGHTING SERVICE CLASSIFICATION~Retail Transmission Rate - Network Service Rate | O34: SENTINEL LIGHTING SERVICE CLASSIFICATION~Retail Transmission Rate - Line and Transformation Connection Service Rate | P34: STREET LIGHTING SERVICE CLASSIFICATION~Retail Transmission Rate - Network Service Rate | Q34: STREET LIGHTING SERVICE CLASSIFICATION~Retail Transmission Rate - Line and Transformation Connection Service Rate
A35: Fort Frances Power Corporation | B35: RESIDENTIAL SERVICE CLASSIFICATION~Retail Transmission Rate - Network Service Rate | C35: RESIDENTIAL SERVICE CLASSIFICATION~Retail Transmission Rate - Line and Transformation Connection Service Rate | D35: GENERAL SERVICE LESS THAN 50 KW SERVICE CLASSIFICATION~Retail Transmission Rate - Network Service Rate | E35: GENERAL SERVICE LESS THAN 50 KW SERVICE CLASSIFICATION~Retail Transmission Rate - Line and Transformation Connection Service Rate | F35: GENERAL SERVICE 50 to 4,999 kW SERVICE CLASSIFICATION~Retail Transmission Rate - Network Service Rate | G35: GENERAL SERVICE 50 to 4,999 kW SERVICE CLASSIFICATION~Retail Transmission Rate - Line and Transformation Connection Service Rate | H35: GENERAL SERVICE 50 to 4,999 kW SERVICE CLASSIFICATION~Retail Transmission Rate - Network Service Rate - EV CHARGING | I35: GENERAL SERVICE 50 to 4,999 kW SERVICE CLASSIFICATION~Retail Transmission Rate - Line and Transformation Connection Service Rate - EV CHARGING | J35: UNMETERED SCATTERED LOAD SERVICE CLASSIFICATION~Retail Transmission Rate - Network Service Rate | K35: UNMETERED SCATTERED LOAD SERVICE CLASSIFICATION~Retail Transmission Rate - Line and Transformation Connection Service Rate | L35: STREET LIGHTING SERVICE CLASSIFICATION~Retail Transmission Rate - Network Service Rate | M35: STREET LIGHTING SERVICE CLASSIFICATION~Retail Transmission Rate - Line and Transformation Connection Service Rate
A36: Greater Sudbury Hydro Inc. | B36: RESIDENTIAL SERVICE CLASSIFICATION~Retail Transmission Rate - Network Service Rate | C36: RESIDENTIAL SERVICE CLASSIFICATION~Retail Transmission Rate - Line and Transformation Connection Service Rate | D36: GENERAL SERVICE LESS THAN 50 KW SERVICE CLASSIFICATION~Retail Transmission Rate - Network Service Rate | E36: GENERAL SERVICE LESS THAN 50 KW SERVICE CLASSIFICATION~Retail Transmission Rate - Line and Transformation Connection Service Rate | F36: GENERAL SERVICE 50 to 4,999 kW SERVICE CLASSIFICATION~Retail Transmission Rate - Network Service Rate | G36: GENERAL SERVICE 50 to 4,999 kW SERVICE CLASSIFICATION~Retail Transmission Rate - Line and Transformation Connection Service Rate | H36: GENERAL SERVICE 50 to 4,999 kW SERVICE CLASSIFICATION~Retail Transmission Rate - Network Service Rate - EV CHARGING | I36: GENERAL SERVICE 50 to 4,999 kW SERVICE CLASSIFICATION~Retail Transmission Rate - Line and Transformation Connection Service Rate - EV CHARGING | J36: UNMETERED SCATTERED LOAD SERVICE CLASSIFICATION~Retail Transmission Rate - Network Service Rate | K36: UNMETERED SCATTERED LOAD SERVICE CLASSIFICATION~Retail Transmission Rate - Line and Transformation Connection Service Rate | L36: SENTINEL LIGHTING SERVICE CLASSIFICATION~Retail Transmission Rate - Network Service Rate | M36: SENTINEL LIGHTING SERVICE CLASSIFICATION~Retail Transmission Rate - Line and Transformation Connection Service Rate | N36: STREET LIGHTING SERVICE CLASSIFICATION~Retail Transmission Rate - Network Service Rate | O36: STREET LIGHTING SERVICE CLASSIFICATION~Retail Transmission Rate - Line and Transformation Connection Service Rate
A37: Halton Hills Hydro Inc. | B37: RESIDENTIAL SERVICE CLASSIFICATION~Retail Transmission Rate - Network Service Rate | C37: RESIDENTIAL SERVICE CLASSIFICATION~Retail Transmission Rate - Line and Transformation Connection Service Rate | D37: GENERAL SERVICE LESS THAN 50 KW SERVICE CLASSIFICATION~Retail Transmission Rate - Network Service Rate | E37: GENERAL SERVICE LESS THAN 50 KW SERVICE CLASSIFICATION~Retail Transmission Rate - Line and Transformation Connection Service Rate | F37: GENERAL SERVICE 50 TO 999 KW SERVICE CLASSIFICATION~Retail Transmission Rate - Network Service Rate | G37: GENERAL SERVICE 50 TO 999 KW SERVICE CLASSIFICATION~Retail Transmission Rate - Line and Transformation Connection Service Rate | H37: GENERAL SERVICE 50 TO 999 KW SERVICE CLASSIFICATION~Retail Transmission Rate - Network Service Rate - EV CHARGING | I37: GENERAL SERVICE 50 TO 999 KW SERVICE CLASSIFICATION~Retail Transmission Rate - Line and Transformation Connection Service Rate - EV CHARGING | J37: GENERAL SERVICE 1,000 TO 4,999 KW SERVICE CLASSIFICATION~Retail Transmission Rate - Network Service Rate | K37: GENERAL SERVICE 1,000 TO 4,999 KW SERVICE CLASSIFICATION~Retail Transmission Rate - Line and Transformation Connection Service Rate | L37: GENERAL SERVICE 1,000 TO 4,999 KW SERVICE CLASSIFICATION~Retail Transmission Rate - Network Service Rate - EV CHARGING | M37: GENERAL SERVICE 1,000 TO 4,999 KW SERVICE CLASSIFICATION~Retail Transmission Rate - Line and Transformation Connection Service Rate - EV CHARGING | N37: UNMETERED SCATTERED LOAD SERVICE CLASSIFICATION~Retail Transmission Rate - Network Service Rate | O37: UNMETERED SCATTERED LOAD SERVICE CLASSIFICATION~Retail Transmission Rate - Line and Transformation Connection Service Rate | P37: SENTINEL LIGHTING SERVICE CLASSIFICATION~Retail Transmission Rate - Network Service Rate | Q37: SENTINEL LIGHTING SERVICE CLASSIFICATION~Retail Transmission Rate - Line and Transformation Connection Service Rate | R37: STREET LIGHTING SERVICE CLASSIFICATION~Retail Transmission Rate - Network Service Rate | S37: STREET LIGHTING SERVICE CLASSIFICATION~Retail Transmission Rate - Line and Transformation Connection Service Rate
A38: Hydro One Networks Inc.-Former Haldimand County Hydro Inc. Service Area | B38: RESIDENTIAL SERVICE CLASSIFICATION~Retail Transmission Rate - Network Service Rate | C38: RESIDENTIAL SERVICE CLASSIFICATION~Retail Transmission Rate - Line and Transformation Connection Service Rate | D38: GENERAL SERVICE LESS THAN 50 KW SERVICE CLASSIFICATION~Retail Transmission Rate - Network Service Rate | E38: GENERAL SERVICE LESS THAN 50 KW SERVICE CLASSIFICATION~Retail Transmission Rate - Line and Transformation Connection Service Rate | F38: GENERAL SERVICE 50 TO 999 KW SERVICE CLASSIFICATION~Retail Transmission Rate - Network Service Rate | G38: GENERAL SERVICE 50 TO 999 KW SERVICE CLASSIFICATION~Retail Transmission Rate - Line and Transformation Connection Service Rate | H38: GENERAL SERVICE 50 TO 999 KW SERVICE CLASSIFICATION~Retail Transmission Rate - Network Service Rate - EV CHARGING | I38: GENERAL SERVICE 50 TO 999 KW SERVICE CLASSIFICATION~Retail Transmission Rate - Line and Transformation Connection Service Rate - EV CHARGING | J38: GENERAL SERVICE GREATER THAN 1,000 KW SERVICE CLASSIFICATION~Retail Transmission Rate - Network Service Rate | K38: GENERAL SERVICE GREATER THAN 1,000 KW SERVICE CLASSIFICATION~Retail Transmission Rate - Line and Transformation Connection Service Rate | L38: GENERAL SERVICE GREATER THAN 1,000 KW SERVICE CLASSIFICATION~Retail Transmission Rate - Network Service Rate - EV CHARGING | M38: GENERAL SERVICE GREATER THAN 1,000 KW SERVICE CLASSIFICATION~Retail Transmission Rate - Line and Transformation Connection Service Rate - EV CHARGING | N38: UNMETERED SCATTERED LOAD SERVICE CLASSIFICATION~Retail Transmission Rate - Network Service Rate | O38: UNMETERED SCATTERED LOAD SERVICE CLASSIFICATION~Retail Transmission Rate - Line and Transformation Connection Service Rate | P38: STREET LIGHTING SERVICE CLASSIFICATION~Retail Transmission Rate - Network Service Rate | Q38: STREET LIGHTING SERVICE CLASSIFICATION~Retail Transmission Rate - Line and Transformation Connection Service Rate
A39: Hydro One Networks Inc.-Former Norfolk Power Distribution Inc. Service Area | B39: RESIDENTIAL SERVICE CLASSIFICATION~Retail Transmission Rate - Network Service Rate | C39: RESIDENTIAL SERVICE CLASSIFICATION~Retail Transmission Rate - Line and Transformation Connection Service Rate | D39: GENERAL SERVICE LESS THAN 50 KW SERVICE CLASSIFICATION~Retail Transmission Rate - Network Service Rate | E39: GENERAL SERVICE LESS THAN 50 KW SERVICE CLASSIFICATION~Retail Transmission Rate - Line and Transformation Connection Service Rate | F39: GENERAL SERVICE 50 TO 999 KW SERVICE CLASSIFICATION~Retail Transmission Rate - Network Service Rate | G39: GENERAL SERVICE 50 TO 999 KW SERVICE CLASSIFICATION~Retail Transmission Rate - Line and Transformation Connection Service Rate | H39: GENERAL SERVICE 50 TO 999 KW SERVICE CLASSIFICATION~Retail Transmission Rate - Network Service Rate - EV CHARGING | I39: GENERAL SERVICE 50 TO 999 KW SERVICE CLASSIFICATION~Retail Transmission Rate - Line and Transformation Connection Service Rate - EV CHARGING | J39: GENERAL SERVICE GREATER THAN 1,000 KW SERVICE CLASSIFICATION~Retail Transmission Rate - Network Service Rate | K39: GENERAL SERVICE GREATER THAN 1,000 KW SERVICE CLASSIFICATION~Retail Transmission Rate - Line and Transformation Connection Service Rate | L39: GENERAL SERVICE GREATER THAN 1,000 KW SERVICE CLASSIFICATION~Retail Transmission Rate - Network Service Rate - EV CHARGING | M39: GENERAL SERVICE GREATER THAN 1,000 KW SERVICE CLASSIFICATION~Retail Transmission Rate - Line and Transformation Connection Service Rate - EV CHARGING | N39: UNMETERED SCATTERED LOAD SERVICE CLASSIFICATION~Retail Transmission Rate - Network Service Rate | O39: UNMETERED SCATTERED LOAD SERVICE CLASSIFICATION~Retail Transmission Rate - Line and Transformation Connection Service Rate | P39: STREET LIGHTING SERVICE CLASSIFICATION~Retail Transmission Rate - Network Service Rate | Q39: STREET LIGHTING SERVICE CLASSIFICATION~Retail Transmission Rate - Line and Transformation Connection Service Rate
A40: Hydro One Networks Inc.-Former Woodstock Hydro Services Inc. Service Area | B40: RESIDENTIAL SERVICE CLASSIFICATION~Retail Transmission Rate - Network Service Rate | C40: RESIDENTIAL SERVICE CLASSIFICATION~Retail Transmission Rate - Line and Transformation Connection Service Rate | D40: GENERAL SERVICE LESS THAN 50 KW SERVICE CLASSIFICATION~Retail Transmission Rate - Network Service Rate | E40: GENERAL SERVICE LESS THAN 50 KW SERVICE CLASSIFICATION~Retail Transmission Rate - Line and Transformation Connection Service Rate | F40: GENERAL SERVICE 50 TO 999 KW SERVICE CLASSIFICATION~Retail Transmission Rate - Network Service Rate | G40: GENERAL SERVICE 50 TO 999 KW SERVICE CLASSIFICATION~Retail Transmission Rate - Line and Transformation Connection Service Rate | H40: GENERAL SERVICE 50 TO 999 KW SERVICE CLASSIFICATION~Retail Transmission Rate - Network Service Rate - EV CHARGING | I40: GENERAL SERVICE 50 TO 999 KW SERVICE CLASSIFICATION~Retail Transmission Rate - Line and Transformation Connection Service Rate - EV CHARGING | J40: GENERAL SERVICE GREATER THAN 1,000 KW SERVICE CLASSIFICATION~Retail Transmission Rate - Network Service Rate | K40: GENERAL SERVICE GREATER THAN 1,000 KW SERVICE CLASSIFICATION~Retail Transmission Rate - Line and Transformation Connection Service Rate | L40: GENERAL SERVICE GREATER THAN 1,000 KW SERVICE CLASSIFICATION~Retail Transmission Rate - Network Service Rate - EV CHARGING | M40: GENERAL SERVICE GREATER THAN 1,000 KW SERVICE CLASSIFICATION~Retail Transmission Rate - Line and Transformation Connection Service Rate - EV CHARGING | N40: UNMETERED SCATTERED LOAD SERVICE CLASSIFICATION~Retail Transmission Rate - Network Service Rate | O40: UNMETERED SCATTERED LOAD SERVICE CLASSIFICATION~Retail Transmission Rate - Line and Transformation Connection Service Rate | P40: STREET LIGHTING SERVICE CLASSIFICATION~Retail Transmission Rate - Network Service Rate | Q40: STREET LIGHTING SERVICE CLASSIFICATION~Retail Transmission Rate - Line and Transformation Connection Service Rate
A41: Synergy North Corporation-Kenora Rate Zone | B41: RESIDENTIAL SERVICE CLASSIFICATION~Retail Transmission Rate - Network Service Rate | C41: RESIDENTIAL SERVICE CLASSIFICATION~Retail Transmission Rate - Line and Transformation Connection Service Rate | D41: GENERAL SERVICE LESS THAN 50 KW SERVICE CLASSIFICATION~Retail Transmission Rate - Network Service Rate | E41: GENERAL SERVICE LESS THAN 50 KW SERVICE CLASSIFICATION~Retail Transmission Rate - Line and Transformation Connection Service Rate | F41: GENERAL SERVICE 50 to 4,999 kW SERVICE CLASSIFICATION~Retail Transmission Rate - Network Service Rate | G41: GENERAL SERVICE 50 to 4,999 kW SERVICE CLASSIFICATION~Retail Transmission Rate - Line and Transformation Connection Service Rate | H41: GENERAL SERVICE 50 to 4,999 kW SERVICE CLASSIFICATION~Retail Transmission Rate - Network Service Rate - EV CHARGING | I41: GENERAL SERVICE 50 to 4,999 kW SERVICE CLASSIFICATION~Retail Transmission Rate - Line and Transformation Connection Service Rate - EV CHARGING | J41: UNMETERED SCATTERED LOAD SERVICE CLASSIFICATION~Retail Transmission Rate - Network Service Rate | K41: UNMETERED SCATTERED LOAD SERVICE CLASSIFICATION~Retail Transmission Rate - Line and Transformation Connection Service Rate | L41: STREET LIGHTING SERVICE CLASSIFICATION~Retail Transmission Rate - Network Service Rate | M41: STREET LIGHTING SERVICE CLASSIFICATION~Retail Transmission Rate - Line and Transformation Connection Service Rate
A42: London Hydro Inc. | B42: RESIDENTIAL SERVICE CLASSIFICATION~Retail Transmission Rate - Network Service Rate | C42: RESIDENTIAL SERVICE CLASSIFICATION~Retail Transmission Rate - Line and Transformation Connection Service Rate | D42: GENERAL SERVICE LESS THAN 50 KW SERVICE CLASSIFICATION~Retail Transmission Rate - Network Service Rate | E42: GENERAL SERVICE LESS THAN 50 KW SERVICE CLASSIFICATION~Retail Transmission Rate - Line and Transformation Connection Service Rate | F42: GENERAL SERVICE 50 to 4,999 kW SERVICE CLASSIFICATION~Retail Transmission Rate - Network Service Rate | G42: GENERAL SERVICE 50 to 4,999 kW SERVICE CLASSIFICATION~Retail Transmission Rate - Line and Transformation Connection Service Rate | H42: GENERAL SERVICE 50 to 4,999 kW SERVICE CLASSIFICATION~Retail Transmission Rate - Network Service Rate - EV CHARGING | I42: GENERAL SERVICE 50 to 4,999 kW SERVICE CLASSIFICATION~Retail Transmission Rate - Line and Transformation Connection Service Rate - EV CHARGING | J42: GENERAL SERVICE 50 to 4,999 kW SERVICE CLASSIFICATION~Retail Transmission Rate - Network Service Rate - Interval Metered | K42: GENERAL SERVICE 50 to 4,999 kW SERVICE CLASSIFICATION~Retail Transmission Rate - Line and Transformation Connection Service Rate - Interval Metered | L42: GENERAL SERVICE 1,000 TO 4,999 KW (CO-GENERATION) SERVICE CLASSIFICATION~Retail Transmission Rate - Network Service Rate | M42: GENERAL SERVICE 1,000 TO 4,999 KW (CO-GENERATION) SERVICE CLASSIFICATION~Retail Transmission Rate - Line and Transformation Connection Service Rate | N42: LARGE USE SERVICE CLASSIFICATION~Retail Transmission Rate - Network Service Rate - Interval Metered | O42: LARGE USE SERVICE CLASSIFICATION~Retail Transmission Rate - Line and Transformation Connection Service Rate - Interval Metered | P42: STREET LIGHTING SERVICE CLASSIFICATION~Retail Transmission Rate - Network Service Rate | Q42: STREET LIGHTING SERVICE CLASSIFICATION~Retail Transmission Rate - Line and Transformation Connection Service Rate | R42: SENTINEL LIGHTING SERVICE CLASSIFICATION~Retail Transmission Rate - Network Service Rate | S42: SENTINEL LIGHTING SERVICE CLASSIFICATION~Retail Transmission Rate - Line and Transformation Connection Service Rate | T42: UNMETERED SCATTERED LOAD SERVICE CLASSIFICATION~Retail Transmission Rate - Network Service Rate | U42: UNMETERED SCATTERED LOAD SERVICE CLASSIFICATION~Retail Transmission Rate - Line and Transformation Connection Service Rate
A43: Milton Hydro Distribution Inc. | B43: RESIDENTIAL SERVICE CLASSIFICATION~Retail Transmission Rate - Network Service Rate | C43: RESIDENTIAL SERVICE CLASSIFICATION~Retail Transmission Rate - Line and Transformation Connection Service Rate | D43: GENERAL SERVICE LESS THAN 50 KW SERVICE CLASSIFICATION~Retail Transmission Rate - Network Service Rate | E43: GENERAL SERVICE LESS THAN 50 KW SERVICE CLASSIFICATION~Retail Transmission Rate - Line and Transformation Connection Service Rate | F43: GENERAL SERVICE 50 TO 999 KW SERVICE CLASSIFICATION~Retail Transmission Rate - Network Service Rate | G43: GENERAL SERVICE 50 TO 999 KW SERVICE CLASSIFICATION~Retail Transmission Rate - Line and Transformation Connection Service Rate | H43: GENERAL SERVICE 50 TO 999 KW SERVICE CLASSIFICATION~Retail Transmission Rate - Network Service Rate - EV CHARGING | I43: GENERAL SERVICE 50 TO 999 KW SERVICE CLASSIFICATION~Retail Transmission Rate - Line and Transformation Connection Service Rate - EV CHARGING | J43: GENERAL SERVICE 1,000 TO 4,999 KW SERVICE CLASSIFICATION~Retail Transmission Rate - Network Service Rate | K43: GENERAL SERVICE 1,000 TO 4,999 KW SERVICE CLASSIFICATION~Retail Transmission Rate - Line and Transformation Connection Service Rate | L43: GENERAL SERVICE 1,000 TO 4,999 KW SERVICE CLASSIFICATION~Retail Transmission Rate - Network Service Rate - EV CHARGING | M43: GENERAL SERVICE 1,000 TO 4,999 KW SERVICE CLASSIFICATION~Retail Transmission Rate - Line and Transformation Connection Service Rate - EV CHARGING | N43: LARGE USE SERVICE CLASSIFICATION~Retail Transmission Rate - Network Service Rate - Interval Metered | O43: LARGE USE SERVICE CLASSIFICATION~Retail Transmission Rate - Line and Transformation Connection Service Rate - Interval Metered | P43: UNMETERED SCATTERED LOAD SERVICE CLASSIFICATION~Retail Transmission Rate - Network Service Rate | Q43: UNMETERED SCATTERED LOAD SERVICE CLASSIFICATION~Retail Transmission Rate - Line and Transformation Connection Service Rate | R43: SENTINEL LIGHTING SERVICE CLASSIFICATION~Retail Transmission Rate - Network Service Rate | S43: SENTINEL LIGHTING SERVICE CLASSIFICATION~Retail Transmission Rate - Line and Transformation Connection Service Rate | T43: STREET LIGHTING SERVICE CLASSIFICATION~Retail Transmission Rate - Network Service Rate | U43: STREET LIGHTING SERVICE CLASSIFICATION~Retail Transmission Rate - Line and Transformation Connection Service Rate
A44: North Bay Hydro Distribution Limited | B44: RESIDENTIAL SERVICE CLASSIFICATION~Retail Transmission Rate - Network Service Rate | C44: RESIDENTIAL SERVICE CLASSIFICATION~Retail Transmission Rate - Line and Transformation Connection Service Rate | D44: GENERAL SERVICE LESS THAN 50 KW SERVICE CLASSIFICATION~Retail Transmission Rate - Network Service Rate | E44: GENERAL SERVICE LESS THAN 50 KW SERVICE CLASSIFICATION~Retail Transmission Rate - Line and Transformation Connection Service Rate | F44: GENERAL SERVICE 50 TO 2,999 KW SERVICE CLASSIFICATION~Retail Transmission Rate - Network Service Rate | G44: GENERAL SERVICE 50 TO 2,999 KW SERVICE CLASSIFICATION~Retail Transmission Rate - Line and Transformation Connection Service Rate | H44: GENERAL SERVICE 50 TO 2,999 KW SERVICE CLASSIFICATION~Retail Transmission Rate - Network Service Rate - EV CHARGING | I44: GENERAL SERVICE 50 TO 2,999 KW SERVICE CLASSIFICATION~Retail Transmission Rate - Line and Transformation Connection Service Rate - EV CHARGING | J44: GENERAL SERVICE 3,000 TO 4,999 KW SERVICE CLASSIFICATION~Retail Transmission Rate - Network Service Rate - Interval Metered | K44: GENERAL SERVICE 3,000 TO 4,999 KW SERVICE CLASSIFICATION~Retail Transmission Rate - Line and Transformation Connection Service Rate - Interval Metered | L44: UNMETERED SCATTERED LOAD SERVICE CLASSIFICATION~Retail Transmission Rate - Network Service Rate | M44: UNMETERED SCATTERED LOAD SERVICE CLASSIFICATION~Retail Transmission Rate - Line and Transformation Connection Service Rate | N44: SENTINEL LIGHTING SERVICE CLASSIFICATION~Retail Transmission Rate - Network Service Rate | O44: SENTINEL LIGHTING SERVICE CLASSIFICATION~Retail Transmission Rate - Line and Transformation Connection Service Rate | P44: STREET LIGHTING SERVICE CLASSIFICATION~Retail Transmission Rate - Network Service Rate | Q44: STREET LIGHTING SERVICE CLASSIFICATION~Retail Transmission Rate - Line and Transformation Connection Service Rate
A45: Northern Ontario Wires Inc. | B45: RESIDENTIAL SERVICE CLASSIFICATION~Retail Transmission Rate - Network Service Rate | C45: RESIDENTIAL SERVICE CLASSIFICATION~Retail Transmission Rate - Line and Transformation Connection Service Rate | D45: GENERAL SERVICE LESS THAN 50 KW SERVICE CLASSIFICATION~Retail Transmission Rate - Network Service Rate | E45: GENERAL SERVICE LESS THAN 50 KW SERVICE CLASSIFICATION~Retail Transmission Rate - Line and Transformation Connection Service Rate | F45: GENERAL SERVICE 50 to 4,999 kW SERVICE CLASSIFICATION~Retail Transmission Rate - Network Service Rate | G45: GENERAL SERVICE 50 to 4,999 kW SERVICE CLASSIFICATION~Retail Transmission Rate - Line and Transformation Connection Service Rate | H45: GENERAL SERVICE 50 to 4,999 kW SERVICE CLASSIFICATION~Retail Transmission Rate - Network Service Rate - EV CHARGING | I45: GENERAL SERVICE 50 to 4,999 kW SERVICE CLASSIFICATION~Retail Transmission Rate - Line and Transformation Connection Service Rate - EV CHARGING | J45: UNMETERED SCATTERED LOAD SERVICE CLASSIFICATION~Retail Transmission Rate - Network Service Rate | K45: UNMETERED SCATTERED LOAD SERVICE CLASSIFICATION~Retail Transmission Rate - Line and Transformation Connection Service Rate | L45: STREET LIGHTING SERVICE CLASSIFICATION~Retail Transmission Rate - Network Service Rate | M45: STREET LIGHTING SERVICE CLASSIFICATION~Retail Transmission Rate - Line and Transformation Connection Service Rate
A46: Niagara Peninsula Energy Inc. | B46: RESIDENTIAL SERVICE CLASSIFICATION~Retail Transmission Rate - Network Service Rate | C46: RESIDENTIAL SERVICE CLASSIFICATION~Retail Transmission Rate - Line and Transformation Connection Service Rate | D46: GENERAL SERVICE LESS THAN 50 KW SERVICE CLASSIFICATION~Retail Transmission Rate - Network Service Rate | E46: GENERAL SERVICE LESS THAN 50 KW SERVICE CLASSIFICATION~Retail Transmission Rate - Line and Transformation Connection Service Rate | F46: GENERAL SERVICE 50 to 4,999 kW SERVICE CLASSIFICATION~Retail Transmission Rate - Network Service Rate | G46: GENERAL SERVICE 50 to 4,999 kW SERVICE CLASSIFICATION~Retail Transmission Rate - Line and Transformation Connection Service Rate | H46: GENERAL SERVICE 50 to 4,999 kW SERVICE CLASSIFICATION~Retail Transmission Rate - Network Service Rate - EV CHARGING | I46: GENERAL SERVICE 50 to 4,999 kW SERVICE CLASSIFICATION~Retail Transmission Rate - Line and Transformation Connection Service Rate - EV CHARGING | J46: UNMETERED SCATTERED LOAD SERVICE CLASSIFICATION~Retail Transmission Rate - Network Service Rate | K46: UNMETERED SCATTERED LOAD SERVICE CLASSIFICATION~Retail Transmission Rate - Line and Transformation Connection Service Rate | L46: SENTINEL LIGHTING SERVICE CLASSIFICATION~Retail Transmission Rate - Network Service Rate | M46: SENTINEL LIGHTING SERVICE CLASSIFICATION~Retail Transmission Rate - Line and Transformation Connection Service Rate | N46: STREET LIGHTING SERVICE CLASSIFICATION~Retail Transmission Rate - Network Service Rate | O46: STREET LIGHTING SERVICE CLASSIFICATION~Retail Transmission Rate - Line and Transformation Connection Service Rate
A47: Orangeville Hydro Limited | B47: RESIDENTIAL SERVICE CLASSIFICATION~Retail Transmission Rate - Network Service Rate | C47: RESIDENTIAL SERVICE CLASSIFICATION~Retail Transmission Rate - Line and Transformation Connection Service Rate | D47: GENERAL SERVICE LESS THAN 50 KW SERVICE CLASSIFICATION~Retail Transmission Rate - Network Service Rate | E47: GENERAL SERVICE LESS THAN 50 KW SERVICE CLASSIFICATION~Retail Transmission Rate - Line and Transformation Connection Service Rate | F47: GENERAL SERVICE 50 to 4,999 kW SERVICE CLASSIFICATION~Retail Transmission Rate - Network Service Rate | G47: GENERAL SERVICE 50 to 4,999 kW SERVICE CLASSIFICATION~Retail Transmission Rate - Line and Transformation Connection Service Rate | H47: GENERAL SERVICE 50 to 4,999 kW SERVICE CLASSIFICATION~Retail Transmission Rate - Network Service Rate - EV CHARGING | I47: GENERAL SERVICE 50 to 4,999 kW SERVICE CLASSIFICATION~Retail Transmission Rate - Line and Transformation Connection Service Rate - EV CHARGING | J47: SENTINEL LIGHTING SERVICE CLASSIFICATION~Retail Transmission Rate - Network Service Rate | K47: SENTINEL LIGHTING SERVICE CLASSIFICATION~Retail Transmission Rate - Line and Transformation Connection Service Rate | L47: STREET LIGHTING SERVICE CLASSIFICATION~Retail Transmission Rate - Network Service Rate | M47: STREET LIGHTING SERVICE CLASSIFICATION~Retail Transmission Rate - Line and Transformation Connection Service Rate | N47: UNMETERED SCATTERED LOAD SERVICE CLASSIFICATION~Retail Transmission Rate - Network Service Rate | O47: UNMETERED SCATTERED LOAD SERVICE CLASSIFICATION~Retail Transmission Rate - Line and Transformation Connection Service Rate
A48: Ottawa River Power Corporation | B48: RESIDENTIAL SERVICE CLASSIFICATION~Retail Transmission Rate - Network Service Rate | C48: RESIDENTIAL SERVICE CLASSIFICATION~Retail Transmission Rate - Line and Transformation Connection Service Rate | D48: GENERAL SERVICE LESS THAN 50 KW SERVICE CLASSIFICATION~Retail Transmission Rate - Network Service Rate | E48: GENERAL SERVICE LESS THAN 50 KW SERVICE CLASSIFICATION~Retail Transmission Rate - Line and Transformation Connection Service Rate | F48: GENERAL SERVICE 50 to 4,999 kW SERVICE CLASSIFICATION~Retail Transmission Rate - Network Service Rate | G48: GENERAL SERVICE 50 to 4,999 kW SERVICE CLASSIFICATION~Retail Transmission Rate - Line and Transformation Connection Service Rate | H48: GENERAL SERVICE 50 to 4,999 kW SERVICE CLASSIFICATION~Retail Transmission Rate - Network Service Rate - EV CHARGING | I48: GENERAL SERVICE 50 to 4,999 kW SERVICE CLASSIFICATION~Retail Transmission Rate - Line and Transformation Connection Service Rate - EV CHARGING | J48: SENTINEL LIGHTING SERVICE CLASSIFICATION~Retail Transmission Rate - Network Service Rate | K48: SENTINEL LIGHTING SERVICE CLASSIFICATION~Retail Transmission Rate - Line and Transformation Connection Service Rate | L48: STREET LIGHTING SERVICE CLASSIFICATION~Retail Transmission Rate - Network Service Rate | M48: STREET LIGHTING SERVICE CLASSIFICATION~Retail Transmission Rate - Line and Transformation Connection Service Rate | N48: UNMETERED SCATTERED LOAD SERVICE CLASSIFICATION~Retail Transmission Rate - Network Service Rate | O48: UNMETERED SCATTERED LOAD SERVICE CLASSIFICATION~Retail Transmission Rate - Line and Transformation Connection Service Rate
A49: Rideau St. Lawrence Distribution Inc. | B49: RESIDENTIAL SERVICE CLASSIFICATION~Retail Transmission Rate - Network Service Rate | C49: RESIDENTIAL SERVICE CLASSIFICATION~Retail Transmission Rate - Line and Transformation Connection Service Rate | D49: GENERAL SERVICE LESS THAN 50 KW SERVICE CLASSIFICATION~Retail Transmission Rate - Network Service Rate | E49: GENERAL SERVICE LESS THAN 50 KW SERVICE CLASSIFICATION~Retail Transmission Rate - Line and Transformation Connection Service Rate | F49: GENERAL SERVICE 50 to 4,999 kW SERVICE CLASSIFICATION~Retail Transmission Rate - Network Service Rate | G49: GENERAL SERVICE 50 to 4,999 kW SERVICE CLASSIFICATION~Retail Transmission Rate - Line and Transformation Connection Service Rate | H49: GENERAL SERVICE 50 to 4,999 kW SERVICE CLASSIFICATION~Retail Transmission Rate - Network Service Rate - EV CHARGING | I49: GENERAL SERVICE 50 to 4,999 kW SERVICE CLASSIFICATION~Retail Transmission Rate - Line and Transformation Connection Service Rate - EV CHARGING | J49: GENERAL SERVICE 50 to 4,999 kW SERVICE CLASSIFICATION~Retail Transmission Rate - Network Service Rate - Interval Metered | K49: GENERAL SERVICE 50 to 4,999 kW SERVICE CLASSIFICATION~Retail Transmission Rate - Line and Transformation Connection Service Rate - Interval Metered | L49: UNMETERED SCATTERED LOAD SERVICE CLASSIFICATION~Retail Transmission Rate - Network Service Rate | M49: UNMETERED SCATTERED LOAD SERVICE CLASSIFICATION~Retail Transmission Rate - Line and Transformation Connection Service Rate | N49: SENTINEL LIGHTING SERVICE CLASSIFICATION~Retail Transmission Rate - Network Service Rate | O49: SENTINEL LIGHTING SERVICE CLASSIFICATION~Retail Transmission Rate - Line and Transformation Connection Service Rate | P49: STREET LIGHTING SERVICE CLASSIFICATION~Retail Transmission Rate - Network Service Rate | Q49: STREET LIGHTING SERVICE CLASSIFICATION~Retail Transmission Rate - Line and Transformation Connection Service Rate
A50: Sioux Lookout Hydro Inc. | B50: RESIDENTIAL SERVICE CLASSIFICATION~Retail Transmission Rate - Network Service Rate | C50: RESIDENTIAL SERVICE CLASSIFICATION~Retail Transmission Rate - Line and Transformation Connection Service Rate | D50: GENERAL SERVICE LESS THAN 50 KW SERVICE CLASSIFICATION~Retail Transmission Rate - Network Service Rate | E50: GENERAL SERVICE LESS THAN 50 KW SERVICE CLASSIFICATION~Retail Transmission Rate - Line and Transformation Connection Service Rate | F50: GENERAL SERVICE 50 to 4,999 kW SERVICE CLASSIFICATION~Retail Transmission Rate - Network Service Rate | G50: GENERAL SERVICE 50 to 4,999 kW SERVICE CLASSIFICATION~Retail Transmission Rate - Line and Transformation Connection Service Rate | H50: GENERAL SERVICE 50 to 4,999 kW SERVICE CLASSIFICATION~Retail Transmission Rate - Network Service Rate - EV CHARGING | I50: GENERAL SERVICE 50 to 4,999 kW SERVICE CLASSIFICATION~Retail Transmission Rate - Line and Transformation Connection Service Rate - EV CHARGING | J50: GENERAL SERVICE 50 to 4,999 kW SERVICE CLASSIFICATION~Retail Transmission Rate - Network Service Rate - Interval Metered > 1,000 kW | K50: GENERAL SERVICE 50 to 4,999 kW SERVICE CLASSIFICATION~Retail Transmission Rate - Line and Transformation Connection Service Rate - Interval Metered > 1,000 kW | L50: STREET LIGHTING SERVICE CLASSIFICATION~Retail Transmission Rate - Network Service Rate | M50: STREET LIGHTING SERVICE CLASSIFICATION~Retail Transmission Rate - Line and Transformation Connection Service Rate
A51: Synergy North Corporation-Thunder Bay Rate Zone | B51: RESIDENTIAL SERVICE CLASSIFICATION~Retail Transmission Rate - Network Service Rate | C51: RESIDENTIAL SERVICE CLASSIFICATION~Retail Transmission Rate - Line and Transformation Connection Service Rate | D51: GENERAL SERVICE LESS THAN 50 KW SERVICE CLASSIFICATION~Retail Transmission Rate - Network Service Rate | E51: GENERAL SERVICE LESS THAN 50 KW SERVICE CLASSIFICATION~Retail Transmission Rate - Line and Transformation Connection Service Rate | F51: GENERAL SERVICE 50 TO 999 KW SERVICE CLASSIFICATION~Retail Transmission Rate - Network Service Rate | G51: GENERAL SERVICE 50 TO 999 KW SERVICE CLASSIFICATION~Retail Transmission Rate - Line and Transformation Connection Service Rate | H51: GENERAL SERVICE 50 TO 999 KW SERVICE CLASSIFICATION~Retail Transmission Rate - Network Service Rate - EV CHARGING | I51: GENERAL SERVICE 50 TO 999 KW SERVICE CLASSIFICATION~Retail Transmission Rate - Line and Transformation Connection Service Rate - EV CHARGING | J51: GENERAL SERVICE 50 TO 999 KW SERVICE CLASSIFICATION~Retail Transmission Rate - Network Service Rate - Interval Metered | K51: GENERAL SERVICE 50 TO 999 KW SERVICE CLASSIFICATION~Retail Transmission Rate - Line and Transformation Connection Service Rate - Interval Metered | L51: GENERAL SERVICE 1,000 KW OR GREATER SERVICE CLASSIFICATION~Retail Transmission Rate - Network Service Rate | M51: GENERAL SERVICE 1,000 KW OR GREATER SERVICE CLASSIFICATION~Retail Transmission Rate - Line and Transformation Connection Service Rate | N51: GENERAL SERVICE 1,000 KW OR GREATER SERVICE CLASSIFICATION~Retail Transmission Rate - Network Service Rate - EV CHARGING | O51: GENERAL SERVICE 1,000 KW OR GREATER SERVICE CLASSIFICATION~Retail Transmission Rate - Line and Transformation Connection Service Rate - EV CHARGING | P51: UNMETERED SCATTERED LOAD SERVICE CLASSIFICATION~Retail Transmission Rate - Network Service Rate | Q51: UNMETERED SCATTERED LOAD SERVICE CLASSIFICATION~Retail Transmission Rate - Line and Transformation Connection Service Rate | R51: SENTINEL LIGHTING SERVICE CLASSIFICATION~Retail Transmission Rate - Network Service Rate | S51: SENTINEL LIGHTING SERVICE CLASSIFICATION~Retail Transmission Rate - Line and Transformation Connection Service Rate | T51: STREET LIGHTING SERVICE CLASSIFICATION~Retail Transmission Rate - Network Service Rate | U51: STREET LIGHTING SERVICE CLASSIFICATION~Retail Transmission Rate - Line and Transformation Connection Service Rate
A52: ENWIN Utilities Ltd. | B52: RESIDENTIAL SERVICE CLASSIFICATION~Retail Transmission Rate - Network Service Rate | C52: RESIDENTIAL SERVICE CLASSIFICATION~Retail Transmission Rate - Line and Transformation Connection Service Rate | D52: GENERAL SERVICE LESS THAN 50 KW SERVICE CLASSIFICATION~Retail Transmission Rate - Network Service Rate | E52: GENERAL SERVICE LESS THAN 50 KW SERVICE CLASSIFICATION~Retail Transmission Rate - Line and Transformation Connection Service Rate | F52: GENERAL SERVICE 50 to 4,999 kW SERVICE CLASSIFICATION~Retail Transmission Rate - Network Service Rate | G52: GENERAL SERVICE 50 to 4,999 kW SERVICE CLASSIFICATION~Retail Transmission Rate - Line and Transformation Connection Service Rate | H52: GENERAL SERVICE 50 to 4,999 kW SERVICE CLASSIFICATION~Retail Transmission Rate - Network Service Rate - EV CHARGING | I52: GENERAL SERVICE 50 to 4,999 kW SERVICE CLASSIFICATION~Retail Transmission Rate - Line and Transformation Connection Service Rate - EV CHARGING | J52: GENERAL SERVICE 3,000 TO 4,999 KW - INTERMEDIATE USE SERVICE CLASSIFICATION~Retail Transmission Rate - Network Service Rate | K52: GENERAL SERVICE 3,000 TO 4,999 KW - INTERMEDIATE USE SERVICE CLASSIFICATION~Retail Transmission Rate - Line and Transformation Connection Service Rate | L52: LARGE USE - REGULAR SERVICE CLASSIFICATION~Retail Transmission Rate - Network Service Rate | M52: LARGE USE - REGULAR SERVICE CLASSIFICATION~Retail Transmission Rate - Line Connection Service Rate | N52: LARGE USE - REGULAR SERVICE CLASSIFICATION~Retail Transmission Rate - Transformation Connection Service Rate | O52: LARGE USE - 3TS SERVICE CLASSIFICATION~Retail Transmission Rate - Network Service Rate | P52: LARGE USE - 3TS SERVICE CLASSIFICATION~Retail Transmission Rate - Line Connection Service Rate | Q52: LARGE USE - FORD ANNEX SERVICE CLASSIFICATION~Retail Transmission Rate - Network Service Rate | R52: LARGE USE - FORD ANNEX SERVICE CLASSIFICATION~Retail Transmission Rate - Line Connection Service Rate | S52: UNMETERED SCATTERED LOAD SERVICE CLASSIFICATION~Retail Transmission Rate - Network Service Rate | T52: UNMETERED SCATTERED LOAD SERVICE CLASSIFICATION~Retail Transmission Rate - Line and Transformation Connection Service Rate | U52: SENTINEL LIGHTING SERVICE CLASSIFICATION~Retail Transmission Rate - Network Service Rate | V52: SENTINEL LIGHTING SERVICE CLASSIFICATION~Retail Transmission Rate - Line and Transformation Connection Service Rate | W52: STREET LIGHTING SERVICE CLASSIFICATION~Retail Transmission Rate - Network Service Rate | X52: STREET LIGHTING SERVICE CLASSIFICATION~Retail Transmission Rate - Line and Transformation Connection Service Rate
A53: Hearst Power Distribution Co. Ltd. | B53: RESIDENTIAL SERVICE CLASSIFICATION~Retail Transmission Rate - Network Service Rate | C53: RESIDENTIAL SERVICE CLASSIFICATION~Retail Transmission Rate - Line and Transformation Connection Service Rate | D53: GENERAL SERVICE LESS THAN 50 KW SERVICE CLASSIFICATION~Retail Transmission Rate - Network Service Rate | E53: GENERAL SERVICE LESS THAN 50 KW SERVICE CLASSIFICATION~Retail Transmission Rate - Line and Transformation Connection Service Rate | F53: GENERAL SERVICE 50 TO 1,499 KW SERVICE CLASSIFICATION~Retail Transmission Rate - Network Service Rate | G53: GENERAL SERVICE 50 TO 1,499 KW SERVICE CLASSIFICATION~Retail Transmission Rate - Line and Transformation Connection Service Rate | H53: GENERAL SERVICE 50 TO 1,499 KW SERVICE CLASSIFICATION~Retail Transmission Rate - Network Service Rate - EV CHARGING | I53: GENERAL SERVICE 50 TO 1,499 KW SERVICE CLASSIFICATION~Retail Transmission Rate - Line and Transformation Connection Service Rate - EV CHARGING | J53: INTERMEDIATE USER SERVICE CLASSIFICATION~Retail Transmission Rate - Network Service Rate | K53: INTERMEDIATE USER SERVICE CLASSIFICATION~Retail Transmission Rate - Line and Transformation Connection Service Rate | L53: SENTINEL LIGHTING SERVICE CLASSIFICATION~Retail Transmission Rate - Network Service Rate | M53: SENTINEL LIGHTING SERVICE CLASSIFICATION~Retail Transmission Rate - Line and Transformation Connection Service Rate | N53: STREET LIGHTING SERVICE CLASSIFICATION~Retail Transmission Rate - Network Service Rate | O53: STREET LIGHTING SERVICE CLASSIFICATION~Retail Transmission Rate - Line and Transformation Connection Service Rate
A54: ERTH Power Corporation-ERTH Power Main Rate Zone | B54: RESIDENTIAL SERVICE CLASSIFICATION~Retail Transmission Rate - Network Service Rate | C54: RESIDENTIAL SERVICE CLASSIFICATION~Retail Transmission Rate - Line and Transformation Connection Service Rate | D54: GENERAL SERVICE LESS THAN 50 KW SERVICE CLASSIFICATION~Retail Transmission Rate - Network Service Rate | E54: GENERAL SERVICE LESS THAN 50 KW SERVICE CLASSIFICATION~Retail Transmission Rate - Line and Transformation Connection Service Rate | F54: GENERAL SERVICE 50 TO 999 KW SERVICE CLASSIFICATION~Retail Transmission Rate - Network Service Rate | G54: GENERAL SERVICE 50 TO 999 KW SERVICE CLASSIFICATION~Retail Transmission Rate - Line and Transformation Connection Service Rate | H54: GENERAL SERVICE 50 TO 999 KW SERVICE CLASSIFICATION~Retail Transmission Rate - Network Service Rate - EV CHARGING | I54: GENERAL SERVICE 50 TO 999 KW SERVICE CLASSIFICATION~Retail Transmission Rate - Line and Transformation Connection Service Rate - EV CHARGING | J54: GENERAL SERVICE 1,000 TO 4,999 KW SERVICE CLASSIFICATION~Retail Transmission Rate - Network Service Rate | K54: GENERAL SERVICE 1,000 TO 4,999 KW SERVICE CLASSIFICATION~Retail Transmission Rate - Line and Transformation Connection Service Rate | L54: GENERAL SERVICE 1,000 TO 4,999 KW SERVICE CLASSIFICATION~Retail Transmission Rate - Network Service Rate - EV CHARGING | M54: GENERAL SERVICE 1,000 TO 4,999 KW SERVICE CLASSIFICATION~Retail Transmission Rate - Line and Transformation Connection Service Rate - EV CHARGING | N54: LARGE USE SERVICE CLASSIFICATION~Retail Transmission Rate - Network Service Rate | O54: LARGE USE SERVICE CLASSIFICATION~Retail Transmission Rate - Line and Transformation Connection Service Rate | P54: UNMETERED SCATTERED LOAD SERVICE CLASSIFICATION~Retail Transmission Rate - Network Service Rate | Q54: UNMETERED SCATTERED LOAD SERVICE CLASSIFICATION~Retail Transmission Rate - Line and Transformation Connection Service Rate | R54: SENTINEL LIGHTING SERVICE CLASSIFICATION~Retail Transmission Rate - Network Service Rate | S54: SENTINEL LIGHTING SERVICE CLASSIFICATION~Retail Transmission Rate - Line and Transformation Connection Service Rate | T54: STREET LIGHTING SERVICE CLASSIFICATION~Retail Transmission Rate - Network Service Rate | U54: STREET LIGHTING SERVICE CLASSIFICATION~Retail Transmission Rate - Line and Transformation Connection Service Rate | V54: EMBEDDED DISTRIBUTOR SERVICE CLASSIFICATION~Retail Transmission Rate - Network Service Rate | W54: EMBEDDED DISTRIBUTOR SERVICE CLASSIFICATION~Retail Transmission Rate - Line and Transformation Connection Service Rate
A55: Welland Hydro-Electric System Corp. | B55: RESIDENTIAL SERVICE CLASSIFICATION~Retail Transmission Rate - Network Service Rate | C55: RESIDENTIAL SERVICE CLASSIFICATION~Retail Transmission Rate - Line and Transformation Connection Service Rate | D55: GENERAL SERVICE LESS THAN 50 KW SERVICE CLASSIFICATION~Retail Transmission Rate - Network Service Rate | E55: GENERAL SERVICE LESS THAN 50 KW SERVICE CLASSIFICATION~Retail Transmission Rate - Line and Transformation Connection Service Rate | F55: GENERAL SERVICE 50 to 4,999 kW SERVICE CLASSIFICATION~Retail Transmission Rate - Network Service Rate | G55: GENERAL SERVICE 50 to 4,999 kW SERVICE CLASSIFICATION~Retail Transmission Rate - Line and Transformation Connection Service Rate | H55: GENERAL SERVICE 50 to 4,999 kW SERVICE CLASSIFICATION~Retail Transmission Rate - Network Service Rate - EV CHARGING | I55: GENERAL SERVICE 50 to 4,999 kW SERVICE CLASSIFICATION~Retail Transmission Rate - Line and Transformation Connection Service Rate - EV CHARGING | J55: UNMETERED SCATTERED LOAD SERVICE CLASSIFICATION~Retail Transmission Rate - Network Service Rate | K55: UNMETERED SCATTERED LOAD SERVICE CLASSIFICATION~Retail Transmission Rate - Line and Transformation Connection Service Rate | L55: SENTINEL LIGHTING SERVICE CLASSIFICATION~Retail Transmission Rate - Network Service Rate | M55: SENTINEL LIGHTING SERVICE CLASSIFICATION~Retail Transmission Rate - Line and Transformation Connection Service Rate | N55: STREET LIGHTING SERVICE CLASSIFICATION~Retail Transmission Rate - Network Service Rate | O55: STREET LIGHTING SERVICE CLASSIFICATION~Retail Transmission Rate - Line and Transformation Connection Service Rate
A56: Wellington North Power Inc. | B56: RESIDENTIAL SERVICE CLASSIFICATION~Retail Transmission Rate - Network Service Rate | C56: RESIDENTIAL SERVICE CLASSIFICATION~Retail Transmission Rate - Line and Transformation Connection Service Rate | D56: GENERAL SERVICE LESS THAN 50 KW SERVICE CLASSIFICATION~Retail Transmission Rate - Network Service Rate | E56: GENERAL SERVICE LESS THAN 50 KW SERVICE CLASSIFICATION~Retail Transmission Rate - Line and Transformation Connection Service Rate | F56: GENERAL SERVICE 50 TO 999 KW SERVICE CLASSIFICATION~Retail Transmission Rate - Network Service Rate | G56: GENERAL SERVICE 50 TO 999 KW SERVICE CLASSIFICATION~Retail Transmission Rate - Line and Transformation Connection Service Rate | H56: GENERAL SERVICE 50 TO 999 KW SERVICE CLASSIFICATION~Retail Transmission Rate - Network Service Rate - EV CHARGING | I56: GENERAL SERVICE 50 TO 999 KW SERVICE CLASSIFICATION~Retail Transmission Rate - Line and Transformation Connection Service Rate - EV CHARGING | J56: GENERAL SERVICE 1,000 TO 4,999 KW SERVICE CLASSIFICATION~Retail Transmission Rate - Network Service Rate | K56: GENERAL SERVICE 1,000 TO 4,999 KW SERVICE CLASSIFICATION~Retail Transmission Rate - Line and Transformation Connection Service Rate | L56: GENERAL SERVICE 1,000 TO 4,999 KW SERVICE CLASSIFICATION~Retail Transmission Rate - Network Service Rate - EV CHARGING | M56: GENERAL SERVICE 1,000 TO 4,999 KW SERVICE CLASSIFICATION~Retail Transmission Rate - Line and Transformation Connection Service Rate - EV CHARGING | N56: UNMETERED SCATTERED LOAD SERVICE CLASSIFICATION~Retail Transmission Rate - Network Service Rate | O56: UNMETERED SCATTERED LOAD SERVICE CLASSIFICATION~Retail Transmission Rate - Line and Transformation Connection Service Rate | P56: SENTINEL LIGHTING SERVICE CLASSIFICATION~Retail Transmission Rate - Network Service Rate | Q56: SENTINEL LIGHTING SERVICE CLASSIFICATION~Retail Transmission Rate - Line and Transformation Connection Service Rate | R56: STREET LIGHTING SERVICE CLASSIFICATION~Retail Transmission Rate - Network Service Rate | S56: STREET LIGHTING SERVICE CLASSIFICATION~Retail Transmission Rate - Line and Transformation Connection Service Rate
A57: Tillsonburg Hydro Inc. | B57: RESIDENTIAL SERVICE CLASSIFICATION~Retail Transmission Rate - Network Service Rate | C57: RESIDENTIAL SERVICE CLASSIFICATION~Retail Transmission Rate - Line and Transformation Connection Service Rate | D57: GENERAL SERVICE LESS THAN 50 KW SERVICE CLASSIFICATION~Retail Transmission Rate - Network Service Rate | E57: GENERAL SERVICE LESS THAN 50 KW SERVICE CLASSIFICATION~Retail Transmission Rate - Line and Transformation Connection Service Rate | F57: GENERAL SERVICE 50 TO 499 KW SERVICE CLASSIFICATION~Retail Transmission Rate - Network Service Rate | G57: GENERAL SERVICE 50 TO 499 KW SERVICE CLASSIFICATION~Retail Transmission Rate - Line and Transformation Connection Service Rate | H57: GENERAL SERVICE 50 TO 499 KW SERVICE CLASSIFICATION~Retail Transmission Rate - Network Service Rate - EV CHARGING | I57: GENERAL SERVICE 50 TO 499 KW SERVICE CLASSIFICATION~Retail Transmission Rate - Line and Transformation Connection Service Rate - EV CHARGING | J57: GENERAL SERVICE 500 TO 1,499 KW SERVICE CLASSIFICATION~Retail Transmission Rate - Network Service Rate - Interval Metered | K57: GENERAL SERVICE 500 TO 1,499 KW SERVICE CLASSIFICATION~Retail Transmission Rate - Line and Transformation Connection Service Rate - Interval Metered | L57: GENERAL SERVICE 500 TO 1,499 KW SERVICE CLASSIFICATION~Retail Transmission Rate - Network Service Rate - EV CHARGING | M57: GENERAL SERVICE 500 TO 1,499 KW SERVICE CLASSIFICATION~Retail Transmission Rate - Line and Transformation Connection Service Rate - EV CHARGING | N57: GENERAL SERVICE EQUAL TO OR GREATER THAN 1,500 KW SERVICE CLASSIFICATION~Retail Transmission Rate - Network Service Rate - Interval Metered | O57: GENERAL SERVICE EQUAL TO OR GREATER THAN 1,500 KW SERVICE CLASSIFICATION~Retail Transmission Rate - Line and Transformation Connection Service Rate - Interval Metered | P57: GENERAL SERVICE EQUAL TO OR GREATER THAN 1,500 KW SERVICE CLASSIFICATION~Retail Transmission Rate - Network Service Rate - EV CHARGING | Q57: GENERAL SERVICE EQUAL TO OR GREATER THAN 1,500 KW SERVICE CLASSIFICATION~Retail Transmission Rate - Line and Transformation Connection Service Rate - EV CHARGING | R57: UNMETERED SCATTERED LOAD SERVICE CLASSIFICATION~Retail Transmission Rate - Network Service Rate | S57: UNMETERED SCATTERED LOAD SERVICE CLASSIFICATION~Retail Transmission Rate - Line and Transformation Connection Service Rate | T57: SENTINEL LIGHTING SERVICE CLASSIFICATION~Retail Transmission Rate - Network Service Rate | U57: SENTINEL LIGHTING SERVICE CLASSIFICATION~Retail Transmission Rate - Line and Transformation Connection Service Rate | V57: STREET LIGHTING SERVICE CLASSIFICATION~Retail Transmission Rate - Network Service Rate | W57: STREET LIGHTING SERVICE CLASSIFICATION~Retail Transmission Rate - Line and Transformation Connection Service Rate
A58: Elexicon Energy Inc.-Veridian Rate Zone | B58: RESIDENTIAL SERVICE CLASSIFICATION~Retail Transmission Rate - Network Service Rate | C58: RESIDENTIAL SERVICE CLASSIFICATION~Retail Transmission Rate - Line and Transformation Connection Service Rate | D58: SEASONAL RESIDENTIAL SERVICE CLASSIFICATION~Retail Transmission Rate - Network Service Rate | E58: SEASONAL RESIDENTIAL SERVICE CLASSIFICATION~Retail Transmission Rate - Line and Transformation Connection Service Rate | F58: GENERAL SERVICE LESS THAN 50 KW SERVICE CLASSIFICATION~Retail Transmission Rate - Network Service Rate | G58: GENERAL SERVICE LESS THAN 50 KW SERVICE CLASSIFICATION~Retail Transmission Rate - Line and Transformation Connection Service Rate | H58: GENERAL SERVICE 50 TO 2,999 KW SERVICE CLASSIFICATION~Retail Transmission Rate - Network Service Rate | I58: GENERAL SERVICE 50 TO 2,999 KW SERVICE CLASSIFICATION~Retail Transmission Rate - Line and Transformation Connection Service Rate | J58: GENERAL SERVICE 50 TO 2,999 KW SERVICE CLASSIFICATION~Retail Transmission Rate - Network Service Rate - EV CHARGING | K58: GENERAL SERVICE 50 TO 2,999 KW SERVICE CLASSIFICATION~Retail Transmission Rate - Line and Transformation Connection Service Rate - EV CHARGING | L58: GENERAL SERVICE 3,000 TO 4,999 KW SERVICE CLASSIFICATION~Retail Transmission Rate - Network Service Rate | M58: GENERAL SERVICE 3,000 TO 4,999 KW SERVICE CLASSIFICATION~Retail Transmission Rate - Line and Transformation Connection Service Rate | N58: GENERAL SERVICE 3,000 TO 4,999 KW SERVICE CLASSIFICATION~Retail Transmission Rate - Network Service Rate - EV CHARGING | O58: GENERAL SERVICE 3,000 TO 4,999 KW SERVICE CLASSIFICATION~Retail Transmission Rate - Line and Transformation Connection Service Rate - EV CHARGING | P58: LARGE USE SERVICE CLASSIFICATION~Retail Transmission Rate - Network Service Rate | Q58: LARGE USE SERVICE CLASSIFICATION~Retail Transmission Rate - Line and Transformation Connection Service Rate | R58: UNMETERED SCATTERED LOAD SERVICE CLASSIFICATION~Retail Transmission Rate - Network Service Rate | S58: UNMETERED SCATTERED LOAD SERVICE CLASSIFICATION~Retail Transmission Rate - Line and Transformation Connection Service Rate | T58: SENTINEL LIGHTING SERVICE CLASSIFICATION~Retail Transmission Rate - Network Service Rate | U58: SENTINEL LIGHTING SERVICE CLASSIFICATION~Retail Transmission Rate - Line and Transformation Connection Service Rate | V58: STREET LIGHTING SERVICE CLASSIFICATION~Retail Transmission Rate - Network Service Rate | W58: STREET LIGHTING SERVICE CLASSIFICATION~Retail Transmission Rate - Line and Transformation Connection Service Rate
A59: Wasaga Distribution Inc. | B59: RESIDENTIAL SERVICE CLASSIFICATION~Retail Transmission Rate - Network Service Rate | C59: RESIDENTIAL SERVICE CLASSIFICATION~Retail Transmission Rate - Line and Transformation Connection Service Rate | D59: GENERAL SERVICE LESS THAN 50 KW SERVICE CLASSIFICATION~Retail Transmission Rate - Network Service Rate | E59: GENERAL SERVICE LESS THAN 50 KW SERVICE CLASSIFICATION~Retail Transmission Rate - Line and Transformation Connection Service Rate | F59: GENERAL SERVICE 50 to 4,999 kW SERVICE CLASSIFICATION~Retail Transmission Rate - Network Service Rate | G59: GENERAL SERVICE 50 to 4,999 kW SERVICE CLASSIFICATION~Retail Transmission Rate - Line and Transformation Connection Service Rate | H59: GENERAL SERVICE 50 to 4,999 kW SERVICE CLASSIFICATION~Retail Transmission Rate - Network Service Rate - EV CHARGING | I59: GENERAL SERVICE 50 to 4,999 kW SERVICE CLASSIFICATION~Retail Transmission Rate - Line and Transformation Connection Service Rate - EV CHARGING | J59: UNMETERED SCATTERED LOAD SERVICE CLASSIFICATION~Retail Transmission Rate - Network Service Rate | K59: UNMETERED SCATTERED LOAD SERVICE CLASSIFICATION~Retail Transmission Rate - Line and Transformation Connection Service Rate | L59: STREET LIGHTING SERVICE CLASSIFICATION~Retail Transmission Rate - Network Service Rate | M59: STREET LIGHTING SERVICE CLASSIFICATION~Retail Transmission Rate - Line and Transformation Connection Service Rate
A60: ERTH Power Corporation – Goderich Rate Zone | B60: RESIDENTIAL SERVICE CLASSIFICATION~Retail Transmission Rate - Network Service Rate | C60: RESIDENTIAL SERVICE CLASSIFICATION~Retail Transmission Rate - Line and Transformation Connection Service Rate | D60: GENERAL SERVICE LESS THAN 50 KW SERVICE CLASSIFICATION~Retail Transmission Rate - Network Service Rate | E60: GENERAL SERVICE LESS THAN 50 KW SERVICE CLASSIFICATION~Retail Transmission Rate - Line and Transformation Connection Service Rate | F60: GENERAL SERVICE 50 TO 499 KW SERVICE CLASSIFICATION~Retail Transmission Rate - Network Service Rate | G60: GENERAL SERVICE 50 TO 499 KW SERVICE CLASSIFICATION~Retail Transmission Rate - Line and Transformation Connection Service Rate | H60: GENERAL SERVICE 50 TO 499 KW SERVICE CLASSIFICATION~Retail Transmission Rate - Network Service Rate - EV CHARGING | I60: GENERAL SERVICE 50 TO 499 KW SERVICE CLASSIFICATION~Retail Transmission Rate - Line and Transformation Connection Service Rate - EV CHARGING | J60: GENERAL SERVICE 500 TO 4,999 KW SERVICE CLASSIFICATION~Retail Transmission Rate - Network Service Rate | K60: GENERAL SERVICE 500 TO 4,999 KW SERVICE CLASSIFICATION~Retail Transmission Rate - Line and Transformation Connection Service Rate | L60: GENERAL SERVICE 500 TO 4,999 KW SERVICE CLASSIFICATION~Retail Transmission Rate - Network Service Rate - EV CHARGING | M60: GENERAL SERVICE 500 TO 4,999 KW SERVICE CLASSIFICATION~Retail Transmission Rate - Line and Transformation Connection Service Rate - EV CHARGING | N60: LARGE USE SERVICE CLASSIFICATION~Retail Transmission Rate - Network Service Rate | O60: LARGE USE SERVICE CLASSIFICATION~Retail Transmission Rate - Line and Transformation Connection Service Rate | P60: UNMETERED SCATTERED LOAD SERVICE CLASSIFICATION~Retail Transmission Rate - Network Service Rate | Q60: UNMETERED SCATTERED LOAD SERVICE CLASSIFICATION~Retail Transmission Rate - Line and Transformation Connection Service Rate | R60: SENTINEL LIGHTING SERVICE CLASSIFICATION~Retail Transmission Rate - Network Service Rate | S60: SENTINEL LIGHTING SERVICE CLASSIFICATION~Retail Transmission Rate - Line and Transformation Connection Service Rate | T60: STREET LIGHTING SERVICE CLASSIFICATION~Retail Transmission Rate - Network Service Rate | U60: STREET LIGHTING SERVICE CLASSIFICATION~Retail Transmission Rate - Line and Transformation Connection Service Rate
A61: Oshawa PUC Networks Inc. | B61: RESIDENTIAL SERVICE CLASSIFICATION~Retail Transmission Rate - Network Service Rate | C61: RESIDENTIAL SERVICE CLASSIFICATION~Retail Transmission Rate - Line and Transformation Connection Service Rate | D61: GENERAL SERVICE LESS THAN 50 KW SERVICE CLASSIFICATION~Retail Transmission Rate - Network Service Rate | E61: GENERAL SERVICE LESS THAN 50 KW SERVICE CLASSIFICATION~Retail Transmission Rate - Line and Transformation Connection Service Rate | F61: GENERAL SERVICE 50 TO 999 KW SERVICE CLASSIFICATION~Retail Transmission Rate - Network Service Rate | G61: GENERAL SERVICE 50 TO 999 KW SERVICE CLASSIFICATION~Retail Transmission Rate - Line and Transformation Connection Service Rate | H61: GENERAL SERVICE 50 TO 999 KW SERVICE CLASSIFICATION~Retail Transmission Rate - Network Service Rate - EV CHARGING | I61: GENERAL SERVICE 50 TO 999 KW SERVICE CLASSIFICATION~Retail Transmission Rate - Line and Transformation Connection Service Rate - EV CHARGING | J61: GENERAL SERVICE 50 TO 999 KW SERVICE CLASSIFICATION~Retail Transmission Rate - Network Service Rate - Interval Metered | K61: GENERAL SERVICE 50 TO 999 KW SERVICE CLASSIFICATION~Retail Transmission Rate - Line and Transformation Connection Service Rate - Interval Metered | L61: GENERAL SERVICE 1,000 TO 4,999 KW SERVICE CLASSIFICATION~Retail Transmission Rate - Network Service Rate - Interval Metered | M61: GENERAL SERVICE 1,000 TO 4,999 KW SERVICE CLASSIFICATION~Retail Transmission Rate - Network Service Rate - EV CHARGING | N61: GENERAL SERVICE 1,000 TO 4,999 KW SERVICE CLASSIFICATION~Retail Transmission Rate - Line and Transformation Connection Service Rate - Interval Metered | O61: LARGE USE SERVICE CLASSIFICATION~Retail Transmission Rate - Network Service Rate - Interval Metered | P61: LARGE USE SERVICE CLASSIFICATION~Retail Transmission Rate - Line and Transformation Connection Service Rate - Interval Metered | Q61: UNMETERED SCATTERED LOAD SERVICE CLASSIFICATION~Retail Transmission Rate - Network Service Rate | R61: UNMETERED SCATTERED LOAD SERVICE CLASSIFICATION~Retail Transmission Rate - Line and Transformation Connection Service Rate | S61: SENTINEL LIGHTING SERVICE CLASSIFICATION~Retail Transmission Rate - Network Service Rate | T61: SENTINEL LIGHTING SERVICE CLASSIFICATION~Retail Transmission Rate - Line and Transformation Connection Service Rate | U61: STREET LIGHTING SERVICE CLASSIFICATION~Retail Transmission Rate - Network Service Rate | V61: STREET LIGHTING SERVICE CLASSIFICATION~Retail Transmission Rate - Line and Transformation Connection Service Rate
A62: Brantford Power Inc. | B62: RESIDENTIAL SERVICE CLASSIFICATION~Retail Transmission Rate - Network Service Rate | C62: RESIDENTIAL SERVICE CLASSIFICATION~Retail Transmission Rate - Line and Transformation Connection Service Rate | D62: GENERAL SERVICE LESS THAN 50 KW SERVICE CLASSIFICATION~Retail Transmission Rate - Network Service Rate | E62: GENERAL SERVICE LESS THAN 50 KW SERVICE CLASSIFICATION~Retail Transmission Rate - Line and Transformation Connection Service Rate | F62: GENERAL SERVICE 50 to 4,999 kW SERVICE CLASSIFICATION~Retail Transmission Rate - Network Service Rate | G62: GENERAL SERVICE 50 to 4,999 kW SERVICE CLASSIFICATION~Retail Transmission Rate - Line and Transformation Connection Service Rate | H62: GENERAL SERVICE 50 to 4,999 kW SERVICE CLASSIFICATION~Retail Transmission Rate - Network Service Rate - EV CHARGING | I62: GENERAL SERVICE 50 to 4,999 kW SERVICE CLASSIFICATION~Retail Transmission Rate - Line and Transformation Connection Service Rate - EV CHARGING | J62: EMBEDDED DISTRIBUTOR SERVICE CLASSIFICATION~Retail Transmission Rate - Network Service Rate | K62: EMBEDDED DISTRIBUTOR SERVICE CLASSIFICATION~Retail Transmission Rate - Line and Transformation Connection Service Rate | L62: SENTINEL LIGHTING SERVICE CLASSIFICATION~Retail Transmission Rate - Network Service Rate | M62: SENTINEL LIGHTING SERVICE CLASSIFICATION~Retail Transmission Rate - Line and Transformation Connection Service Rate | N62: STREET LIGHTING SERVICE CLASSIFICATION~Retail Transmission Rate - Network Service Rate | O62: STREET LIGHTING SERVICE CLASSIFICATION~Retail Transmission Rate - Line and Transformation Connection Service Rate | P62: UNMETERED SCATTERED LOAD SERVICE CLASSIFICATION~Retail Transmission Rate - Network Service Rate | Q62: UNMETERED SCATTERED LOAD SERVICE CLASSIFICATION~Retail Transmission Rate - Line and Transformation Connection Service Rate
A63: Oakville Hydro Electricity Distribution Inc. | B63: RESIDENTIAL SERVICE CLASSIFICATION~Retail Transmission Rate - Network Service Rate | C63: RESIDENTIAL SERVICE CLASSIFICATION~Retail Transmission Rate - Line and Transformation Connection Service Rate | D63: GENERAL SERVICE LESS THAN 50 KW SERVICE CLASSIFICATION~Retail Transmission Rate - Network Service Rate | E63: GENERAL SERVICE LESS THAN 50 KW SERVICE CLASSIFICATION~Retail Transmission Rate - Line and Transformation Connection Service Rate | F63: GENERAL SERVICE 50 TO 999 KW SERVICE CLASSIFICATION~Retail Transmission Rate - Network Service Rate | G63: GENERAL SERVICE 50 TO 999 KW SERVICE CLASSIFICATION~Retail Transmission Rate - Network Service Rate - Interval Metered | H63: GENERAL SERVICE 50 TO 999 KW SERVICE CLASSIFICATION~Retail Transmission Rate - Network Service Rate - EV CHARGING | I63: GENERAL SERVICE 50 TO 999 KW SERVICE CLASSIFICATION~Retail Transmission Rate - Line and Transformation Connection Service Rate - EV CHARGING | J63: GENERAL SERVICE 50 TO 999 KW SERVICE CLASSIFICATION~Retail Transmission Rate - Line and Transformation Connection Service Rate | K63: GENERAL SERVICE 50 TO 999 KW SERVICE CLASSIFICATION~Retail Transmission Rate - Line and Transformation Connection Service Rate - Interval Metered | L63: GENERAL SERVICE 1,000 KW AND GREATER SERVICE CLASSIFICATION~Retail Transmission Rate - Network Service Rate - Interval Metered | M63: GENERAL SERVICE 1,000 KW AND GREATER SERVICE CLASSIFICATION~Retail Transmission Rate - Line and Transformation Connection Service Rate - Interval Metered | N63: GENERAL SERVICE 1,000 KW AND GREATER SERVICE CLASSIFICATION~Retail Transmission Rate - Network Service Rate - EV CHARGING | O63: GENERAL SERVICE 1,000 KW AND GREATER SERVICE CLASSIFICATION~Retail Transmission Rate - Line and Transformation Connection Service Rate - EV CHARGING | P63: UNMETERED SCATTERED LOAD SERVICE CLASSIFICATION~Retail Transmission Rate - Network Service Rate | Q63: UNMETERED SCATTERED LOAD SERVICE CLASSIFICATION~Retail Transmission Rate - Line and Transformation Connection Service Rate | R63: SENTINEL LIGHTING SERVICE CLASSIFICATION~Retail Transmission Rate - Network Service Rate | S63: SENTINEL LIGHTING SERVICE CLASSIFICATION~Retail Transmission Rate - Line and Transformation Connection Service Rate | T63: STREET LIGHTING SERVICE CLASSIFICATION~Retail Transmission Rate - Network Service Rate | U63: STREET LIGHTING SERVICE CLASSIFICATION~Retail Transmission Rate - Line and Transformation Connection Service Rate | V63: EMBEDDED DISTRIBUTOR SERVICE CLASSIFICATION~Retail Transmission Rate - Network Service Rate | W63: EMBEDDED DISTRIBUTOR SERVICE CLASSIFICATION~Retail Transmission Rate - Line and Transformation Connection Service Rate
A64: Chapleau Public Utilities Corporation | B64: RESIDENTIAL SERVICE CLASSIFICATION~Retail Transmission Rate - Network Service Rate | C64: RESIDENTIAL SERVICE CLASSIFICATION~Retail Transmission Rate - Line and Transformation Connection Service Rate | D64: GENERAL SERVICE LESS THAN 50 kW SERVICE CLASSIFICATION~Retail Transmission Rate - Network Service Rate | E64: GENERAL SERVICE LESS THAN 50 kW SERVICE CLASSIFICATION~Retail Transmission Rate - Line and Transformation Connection Service Rate | F64: GENERAL SERVICE 50 TO 4,999 KW SERVICE CLASSIFICATION~Retail Transmission Rate - Network Service Rate | G64: GENERAL SERVICE 50 TO 4,999 KW SERVICE CLASSIFICATION~Retail Transmission Rate - Line and Transformation Connection Service Rate | H64: GENERAL SERVICE 50 to 4,999 kW SERVICE CLASSIFICATION~Retail Transmission Rate - Network Service Rate - EV CHARGING | I64: GENERAL SERVICE 50 to 4,999 kW SERVICE CLASSIFICATION~Retail Transmission Rate - Line and Transformation Connection Service Rate - EV CHARGING | J64: UNMETERED SCATTERED LOAD SERVICE CLASSIFICATION~Retail Transmission Rate - Network Service Rate | K64: UNMETERED SCATTERED LOAD SERVICE CLASSIFICATION~Retail Transmission Rate - Line and Transformation Connection Service Rate | L64: SENTINEL LIGHTING SERVICE CLASSIFICATION~Retail Transmission Rate - Network Service Rate | M64: SENTINEL LIGHTING SERVICE CLASSIFICATION~Retail Transmission Rate - Line and Transformation Connection Service Rate | N64: STREET LIGHTING SERVICE CLASSIFICATION~Retail Transmission Rate - Network Service Rate | O64: STREET LIGHTING SERVICE CLASSIFICATION~Retail Transmission Rate - Line and Transformation Connection Service Rate
A65: Espanola Regional Hydro Distribution Corporation | B65: RESIDENTIAL SERVICE CLASSIFICATION~Retail Transmission Rate - Network Service Rate | C65: RESIDENTIAL SERVICE CLASSIFICATION~Retail Transmission Rate - Line and Transformation Connection Service Rate | D65: GENERAL SERVICE LESS THAN 50 kW SERVICE CLASSIFICATION~Retail Transmission Rate - Network Service Rate | E65: GENERAL SERVICE LESS THAN 50 kW SERVICE CLASSIFICATION~Retail Transmission Rate - Line and Transformation Connection Service Rate | F65: GENERAL SERVICE 50 TO 4,999 KW SERVICE CLASSIFICATION~Retail Transmission Rate - Network Service Rate | G65: GENERAL SERVICE 50 TO 4,999 KW SERVICE CLASSIFICATION~Retail Transmission Rate - Line and Transformation Connection Service Rate | H65: GENERAL SERVICE 50 to 4,999 kW SERVICE CLASSIFICATION~Retail Transmission Rate - Network Service Rate - EV CHARGING | I65: GENERAL SERVICE 50 to 4,999 kW SERVICE CLASSIFICATION~Retail Transmission Rate - Line and Transformation Connection Service Rate - EV CHARGING | J65: GENERAL SERVICE 50 TO 4,999 KW SERVICE CLASSIFICATION~Retail Transmission Rate - Network Service Rate - Interval Metered | K65: GENERAL SERVICE 50 TO 4,999 KW SERVICE CLASSIFICATION~Retail Transmission Rate - Line and Transformation Connection Service Rate - Interval Metered | L65: UNMETERED SCATTERED LOAD SERVICE CLASSIFICATION~Retail Transmission Rate - Network Service Rate | M65: UNMETERED SCATTERED LOAD SERVICE CLASSIFICATION~Retail Transmission Rate - Line and Transformation Connection Service Rate | N65: SENTINEL LIGHTING SERVICE CLASSIFICATION~Retail Transmission Rate - Network Service Rate | O65: SENTINEL LIGHTING SERVICE CLASSIFICATION~Retail Transmission Rate - Line and Transformation Connection Service Rate | P65: STREET LIGHTING SERVICE CLASSIFICATION~Retail Transmission Rate - Network Service Rate | Q65: STREET LIGHTING SERVICE CLASSIFICATION~Retail Transmission Rate - Line and Transformation Connection Service Rate
A66: Hydro 2000 Inc. | B66: RESIDENTIAL SERVICE CLASSIFICATION~Retail Transmission Rate - Network Service Rate | C66: RESIDENTIAL SERVICE CLASSIFICATION~Retail Transmission Rate - Line and Transformation Connection Service Rate | D66: GENERAL SERVICE LESS THAN 50 kW SERVICE CLASSIFICATION~Retail Transmission Rate - Network Service Rate | E66: GENERAL SERVICE LESS THAN 50 kW SERVICE CLASSIFICATION~Retail Transmission Rate - Line and Transformation Connection Service Rate | F66: GENERAL SERVICE 50 TO 4,999 KW SERVICE CLASSIFICATION~Retail Transmission Rate - Network Service Rate | G66: GENERAL SERVICE 50 TO 4,999 KW SERVICE CLASSIFICATION~Retail Transmission Rate - Line and Transformation Connection Service Rate | H66: GENERAL SERVICE 50 to 4,999 kW SERVICE CLASSIFICATION~Retail Transmission Rate - Network Service Rate - EV CHARGING | I66: GENERAL SERVICE 50 to 4,999 kW SERVICE CLASSIFICATION~Retail Transmission Rate - Line and Transformation Connection Service Rate - EV CHARGING | J66: STREET LIGHTING SERVICE CLASSIFICATION~Retail Transmission Rate - Network Service Rate | K66: STREET LIGHTING SERVICE CLASSIFICATION~Retail Transmission Rate - Line and Transformation Connection Service Rate | L66: UNMETERED SCATTERED LOAD SERVICE CLASSIFICATION~Retail Transmission Rate - Network Service Rate | M66: UNMETERED SCATTERED LOAD SERVICE CLASSIFICATION~Retail Transmission Rate - Line and Transformation Connection Service Rate
A67: Niagara-on-the-Lake Hydro Inc. | B67: RESIDENTIAL SERVICE CLASSIFICATION~Retail Transmission Rate - Network Service Rate | C67: RESIDENTIAL SERVICE CLASSIFICATION~Retail Transmission Rate - Line and Transformation Connection Service Rate | D67: GENERAL SERVICE LESS THAN 50 KW SERVICE CLASSIFICATION~Retail Transmission Rate - Network Service Rate | E67: GENERAL SERVICE LESS THAN 50 KW SERVICE CLASSIFICATION~Retail Transmission Rate - Line and Transformation Connection Service Rate | F67: GENERAL SERVICE 50 to 4,999 kW SERVICE CLASSIFICATION~Retail Transmission Rate - Network Service Rate | G67: GENERAL SERVICE 50 to 4,999 kW SERVICE CLASSIFICATION~Retail Transmission Rate - Line and Transformation Connection Service Rate | H67: GENERAL SERVICE 50 to 4,999 kW SERVICE CLASSIFICATION~Retail Transmission Rate - Network Service Rate - EV CHARGING | I67: GENERAL SERVICE 50 to 4,999 kW SERVICE CLASSIFICATION~Retail Transmission Rate - Line and Transformation Connection Service Rate - EV CHARGING | J67: LARGE USE SERVICE CLASSIFICATION~Retail Transmission Rate - Network Service Rate - Interval Metered | K67: LARGE USE SERVICE CLASSIFICATION~Retail Transmission Rate - Line and Transformation Connection Service Rate - Interval Metered | L67: UNMETERED SCATTERED LOAD SERVICE CLASSIFICATION~Retail Transmission Rate - Network Service Rate | M67: UNMETERED SCATTERED LOAD SERVICE CLASSIFICATION~Retail Transmission Rate - Line and Transformation Connection Service Rate | N67: STREET LIGHTING SERVICE CLASSIFICATION~Retail Transmission Rate - Network Service Rate | O67: STREET LIGHTING SERVICE CLASSIFICATION~Retail Transmission Rate - Line and Transformation Connection Service Rate
A68: PUC Distribution Inc. | B68: RESIDENTIAL SERVICE CLASSIFICATION~Retail Transmission Rate - Network Service Rate | C68: GENERAL SERVICE LESS THAN 50 KW SERVICE CLASSIFICATION~Retail Transmission Rate - Network Service Rate | D68: GENERAL SERVICE 50 to 4,999 kW SERVICE CLASSIFICATION~Retail Transmission Rate - Network Service Rate | E68: GENERAL SERVICE 50 to 4,999 kW SERVICE CLASSIFICATION~Retail Transmission Rate - Network Service Rate - Interval Metered | F68: GENERAL SERVICE 50 to 4,999 kW SERVICE CLASSIFICATION~Retail Transmission Rate - Network Service Rate - EV CHARGING | G68: UNMETERED SCATTERED LOAD SERVICE CLASSIFICATION~Retail Transmission Rate - Network Service Rate | H68: SENTINEL LIGHTING SERVICE CLASSIFICATION~Retail Transmission Rate - Network Service Rate | I68: STREET LIGHTING SERVICE CLASSIFICATION~Retail Transmission Rate - Network Service Rate
A69: Hydro One Networks Inc. | B69: YEAR-ROUND URBAN DENSITY - UR SERVICE CLASSIFICATION~Retail Transmission Rate - Network Service Rate | C69: YEAR-ROUND URBAN DENSITY - UR SERVICE CLASSIFICATION~Retail Transmission Rate - Line and Transformation Connection Service Rate | D69: YEAR-ROUND MEDIUM DENSITY - R1 SERVICE CLASSIFICATION~Retail Transmission Rate - Network Service Rate | E69: YEAR-ROUND MEDIUM DENSITY - R1 SERVICE CLASSIFICATION~Retail Transmission Rate - Line and Transformation Connection Service Rate | F69: YEAR-ROUND LOW DENSITY - R2 SERVICE CLASSIFICATION~Retail Transmission Rate - Network Service Rate | G69: YEAR-ROUND LOW DENSITY - R2 SERVICE CLASSIFICATION~Retail Transmission Rate - Line and Transformation Connection Service Rate | H69: SEASONAL SERVICE CLASSIFICATION~Retail Transmission Rate - Network Service Rate | I69: SEASONAL SERVICE CLASSIFICATION~Retail Transmission Rate - Line and Transformation Connection Service Rate | J69: URBAN GENERAL SERVICE ENERGY BILLED - UGe SERVICE CLASSIFICATION~Retail Transmission Rate - Network Service Rate | K69: URBAN GENERAL SERVICE ENERGY BILLED - UGe SERVICE CLASSIFICATION~Retail Transmission Rate - Line and Transformation Connection Service Rate | L69: GENERAL SERVICE ENERGY BILLED - GSe SERVICE CLASSIFICATION~Retail Transmission Rate - Network Service Rate | M69: GENERAL SERVICE ENERGY BILLED - GSe SERVICE CLASSIFICATION~Retail Transmission Rate - Line and Transformation Connection Service Rate | N69: URBAN GENERAL SERVICE DEMAND BILLED - UGd SERVICE CLASSIFICATION~Retail Transmission Rate - Network Service Rate | O69: URBAN GENERAL SERVICE DEMAND BILLED - UGd SERVICE CLASSIFICATION~Retail Transmission Rate - Line and Transformation Connection Service Rate | P69: GENERAL SERVICE DEMAND BILLED - GSd SERVICE CLASSIFICATION~Retail Transmission Rate - Network Service Rate | Q69: GENERAL SERVICE DEMAND BILLED - GSd SERVICE CLASSIFICATION~Retail Transmission Rate - Line and Transformation Connection Service Rate | R69: DISTRIBUTED GENERATION - DGen SERVICE CLASSIFICATION~Retail Transmission Rate - Network Service Rate | S69: DISTRIBUTED GENERATION - DGen SERVICE CLASSIFICATION~Retail Transmission Rate - Line and Transformation Connection Service Rate | T69: SUB TRANSMISSION - ST SERVICE CLASSIFICATION~Retail Transmission Rate - Network Service Rate | U69: SUB TRANSMISSION - ST SERVICE CLASSIFICATION~Retail Transmission Rate - Line Connection Service Rate | V69: SUB TRANSMISSION - ST SERVICE CLASSIFICATION~Retail Transmission Rate - Transformation Connection Service Rate | W69: UNMETERED SCATTERED LOAD SERVICE CLASSIFICATION~Retail Transmission Rate - Network Service Rate | X69: UNMETERED SCATTERED LOAD SERVICE CLASSIFICATION~Retail Transmission Rate - Line and Transformation Connection Service Rate | Y69: SENTINEL LIGHTING SERVICE CLASSIFICATION~Retail Transmission Rate - Network Service Rate | Z69: SENTINEL LIGHTING SERVICE CLASSIFICATION~Retail Transmission Rate - Line and Transformation Connection Service Rate | AA69: STREET LIGHTING SERVICE CLASSIFICATION~Retail Transmission Rate - Network Service Rate | AB69: STREET LIGHTING SERVICE CLASSIFICATION~Retail Transmission Rate - Line and Transformation Connection Service Rate
A70: Enova Power Corp.-Kitchener-Wilmot Hydro Rate Zone | B70: RESIDENTIAL SERVICE CLASSIFICATION~Retail Transmission Rate - Network Service Rate | C70: RESIDENTIAL SERVICE CLASSIFICATION~Retail Transmission Rate - Line and Transformation Connection Service Rate | D70: GENERAL SERVICE LESS THAN 50 KW SERVICE CLASSIFICATION~Retail Transmission Rate - Network Service Rate | E70: GENERAL SERVICE LESS THAN 50 KW SERVICE CLASSIFICATION~Retail Transmission Rate - Line and Transformation Connection Service Rate | F70: GENERAL SERVICE 50 to 4,999 kW SERVICE CLASSIFICATION~Retail Transmission Rate - Network Service Rate | G70: GENERAL SERVICE 50 to 4,999 kW SERVICE CLASSIFICATION~Retail Transmission Rate - Line and Transformation Connection Service Rate | H70: GENERAL SERVICE 50 to 4,999 kW SERVICE CLASSIFICATION~Retail Transmission Rate - Network Service Rate - EV CHARGING | I70: GENERAL SERVICE 50 to 4,999 kW SERVICE CLASSIFICATION~Retail Transmission Rate - Line and Transformation Connection Service Rate - EV CHARGING | J70: LARGE USE SERVICE CLASSIFICATION~Retail Transmission Rate - Network Service Rate - Interval Metered | K70: LARGE USE SERVICE CLASSIFICATION~Retail Transmission Rate - Line and Transformation Connection Service Rate - Interval Metered | L70: UNMETERED SCATTERED LOAD SERVICE CLASSIFICATION~Retail Transmission Rate - Network Service Rate | M70: UNMETERED SCATTERED LOAD SERVICE CLASSIFICATION~Retail Transmission Rate - Line and Transformation Connection Service Rate | N70: STREET LIGHTING SERVICE CLASSIFICATION~Retail Transmission Rate - Network Service Rate | O70: STREET LIGHTING SERVICE CLASSIFICATION~Retail Transmission Rate - Line and Transformation Connection Service Rate | P70: EMBEDDED DISTRIBUTOR SERVICE CLASSIFICATION~Retail Transmission Rate - Network Service Rate | Q70: EMBEDDED DISTRIBUTOR SERVICE CLASSIFICATION~Retail Transmission Rate - Line and Transformation Connection Service Rate
A71: Enova Power Corp.-Waterloo North Rate Zone | B71: RESIDENTIAL SERVICE CLASSIFICATION~Retail Transmission Rate - Network Service Rate | C71: RESIDENTIAL SERVICE CLASSIFICATION~Retail Transmission Rate - Line and Transformation Connection Service Rate | D71: GENERAL SERVICE LESS THAN 50 KW SERVICE CLASSIFICATION~Retail Transmission Rate - Network Service Rate | E71: GENERAL SERVICE LESS THAN 50 KW SERVICE CLASSIFICATION~Retail Transmission Rate - Line and Transformation Connection Service Rate | F71: GENERAL SERVICE 50 to 4,999 kW SERVICE CLASSIFICATION~Retail Transmission Rate - Network Service Rate | G71: GENERAL SERVICE 50 to 4,999 kW SERVICE CLASSIFICATION~Retail Transmission Rate - Line and Transformation Connection Service Rate | H71: GENERAL SERVICE 50 to 4,999 kW SERVICE CLASSIFICATION~Retail Transmission Rate - Network Service Rate - EV CHARGING | I71: GENERAL SERVICE 50 to 4,999 kW SERVICE CLASSIFICATION~Retail Transmission Rate - Line and Transformation Connection Service Rate - EV CHARGING | J71: LARGE USE SERVICE CLASSIFICATION~Retail Transmission Rate - Network Service Rate - Interval Metered | K71: LARGE USE SERVICE CLASSIFICATION~Retail Transmission Rate - Line and Transformation Connection Service Rate - Interval Metered | L71: UNMETERED SCATTERED LOAD SERVICE CLASSIFICATION~Retail Transmission Rate - Network Service Rate | M71: UNMETERED SCATTERED LOAD SERVICE CLASSIFICATION~Retail Transmission Rate - Line and Transformation Connection Service Rate | N71: STREET LIGHTING SERVICE CLASSIFICATION~Retail Transmission Rate - Network Service Rate | O71: STREET LIGHTING SERVICE CLASSIFICATION~Retail Transmission Rate - Line and Transformation Connection Service Rate | P71: EMBEDDED DISTRIBUTOR SERVICE CLASSIFICATION~Retail Transmission Rate - Network Service Rate | Q71: EMBEDDED DISTRIBUTOR SERVICE CLASSIFICATION~Retail Transmission Rate - Line and Transformation Connection Service Rate
A72: GrandBridge Energy Inc.-Brantford Power Rate Zone | B72: RESIDENTIAL SERVICE CLASSIFICATION~Retail Transmission Rate - Network Service Rate | C72: RESIDENTIAL SERVICE CLASSIFICATION~Retail Transmission Rate - Line and Transformation Connection Service Rate | D72: GENERAL SERVICE LESS THAN 50 KW SERVICE CLASSIFICATION~Retail Transmission Rate - Network Service Rate | E72: GENERAL SERVICE LESS THAN 50 KW SERVICE CLASSIFICATION~Retail Transmission Rate - Line and Transformation Connection Service Rate | F72: EMBEDDED DISTRIBUTOR SERVICE CLASSIFICATION~Retail Transmission Rate - Network Service Rate | G72: EMBEDDED DISTRIBUTOR SERVICE CLASSIFICATION~Retail Transmission Rate - Line and Transformation Connection Service Rate | H72: UNMETERED SCATTERED LOAD SERVICE CLASSIFICATION~Retail Transmission Rate - Network Service Rate | I72: UNMETERED SCATTERED LOAD SERVICE CLASSIFICATION~Retail Transmission Rate - Line and Transformation Connection Service Rate | J72: SENTINEL LIGHTING SERVICE CLASSIFICATION~Retail Transmission Rate - Network Service Rate | K72: SENTINEL LIGHTING SERVICE CLASSIFICATION~Retail Transmission Rate - Line and Transformation Connection Service Rate | L72: STREET LIGHTING SERVICE CLASSIFICATION~Retail Transmission Rate - Network Service Rate | M72: STREET LIGHTING SERVICE CLASSIFICATION~Retail Transmission Rate - Line and Transformation Connection Service Rate
A73: GrandBridge Energy Inc.-Energy+ Rate Zone | B73: RESIDENTIAL SERVICE CLASSIFICATION~Retail Transmission Rate - Network Service Rate | C73: RESIDENTIAL SERVICE CLASSIFICATION~Retail Transmission Rate - Line and Transformation Connection Service Rate | D73: GENERAL SERVICE LESS THAN 50 KW SERVICE CLASSIFICATION~Retail Transmission Rate - Network Service Rate | E73: GENERAL SERVICE LESS THAN 50 KW SERVICE CLASSIFICATION~Retail Transmission Rate - Line and Transformation Connection Service Rate | F73: GENERAL SERVICE 50 to 999 kW SERVICE CLASSIFICATION~Retail Transmission Rate - Network Service Rate | G73: GENERAL SERVICE 50 to 999 kW SERVICE CLASSIFICATION~Retail Transmission Rate - Line and Transformation Connection Service Rate | H73: GENERAL SERVICE 50 TO 999 KW SERVICE CLASSIFICATION~Retail Transmission Rate - Network Service Rate - EV CHARGING | I73: GENERAL SERVICE 50 TO 999 KW SERVICE CLASSIFICATION~Retail Transmission Rate - Line and Transformation Connection Service Rate - EV CHARGING | J73: GENERAL SERVICE 1000 to 4,999 kW SERVICE CLASSIFICATION~Retail Transmission Rate - Network Service Rate | K73: GENERAL SERVICE 1000 to 4,999 kW SERVICE CLASSIFICATION~Retail Transmission Rate - Line and Transformation Connection Service Rate | L73: GENERAL SERVICE 1000 to 4,999 kW SERVICE CLASSIFICATION~Retail Transmission Rate - Network Service Rate - EV CHARGING | M73: GENERAL SERVICE 1000 to 4,999 kW SERVICE CLASSIFICATION~Retail Transmission Rate - Line and Transformation Connection Service Rate - EV CHARGING | N73: LARGE USE SERVICE CLASSIFICATION~Retail Transmission Rate - Network Service Rate - Interval Metered | O73: LARGE USE SERVICE CLASSIFICATION~Retail Transmission Rate - Line and Transformation Connection Service Rate - Interval Metered | P73: UNMETERED SCATTERED LOAD SERVICE CLASSIFICATION~Retail Transmission Rate - Network Service Rate | Q73: UNMETERED SCATTERED LOAD SERVICE CLASSIFICATION~Retail Transmission Rate - Line and Transformation Connection Service Rate | R73: STREET LIGHTING SERVICE CLASSIFICATION~Retail Transmission Rate - Network Service Rate | S73: STREET LIGHTING SERVICE CLASSIFICATION~Retail Transmission Rate - Line and Transformation Connection Service Rate | T73: SENTINEL LIGHTING SERVICE CLASSIFICATION~Retail Transmission Rate - Network Service Rate | U73: SENTINEL LIGHTING SERVICE CLASSIFICATION~Retail Transmission Rate - Line and Transformation Connection Service Rate
A74: Hydro One Networks Inc.-Former Orillia Power Distribution Corporation Service Area | B74: RESIDENTIAL SERVICE CLASSIFICATION~Retail Transmission Rate - Network Service Rate | C74: RESIDENTIAL SERVICE CLASSIFICATION~Retail Transmission Rate - Line and Transformation Connection Service Rate | D74: GENERAL SERVICE LESS THAN 50 KW SERVICE CLASSIFICATION~Retail Transmission Rate - Network Service Rate | E74: GENERAL SERVICE LESS THAN 50 KW SERVICE CLASSIFICATION~Retail Transmission Rate - Line and Transformation Connection Service Rate | F74: GENERAL SERVICE 50 to 4,999 kW SERVICE CLASSIFICATION~Retail Transmission Rate - Network Service Rate | G74: GENERAL SERVICE 50 to 4,999 kW SERVICE CLASSIFICATION~Retail Transmission Rate - Line and Transformation Connection Service Rate | H74: GENERAL SERVICE 50 to 4,999 kW SERVICE CLASSIFICATION~Retail Transmission Rate - Network Service Rate - EV CHARGING | I74: GENERAL SERVICE 50 to 4,999 kW SERVICE CLASSIFICATION~Retail Transmission Rate - Line and Transformation Connection Service Rate - EV CHARGING | J74: UNMETERED SCATTERED LOAD SERVICE CLASSIFICATION~Retail Transmission Rate - Network Service Rate | K74: UNMETERED SCATTERED LOAD SERVICE CLASSIFICATION~Retail Transmission Rate - Line and Transformation Connection Service Rate | L74: SENTINEL LIGHTING SERVICE CLASSIFICATION~Retail Transmission Rate - Network Service Rate | M74: SENTINEL LIGHTING SERVICE CLASSIFICATION~Retail Transmission Rate - Line and Transformation Connection Service Rate | N74: STREET LIGHTING SERVICE CLASSIFICATION~Retail Transmission Rate - Network Service Rate | O74: STREET LIGHTING SERVICE CLASSIFICATION~Retail Transmission Rate - Line and Transformation Connection Service Rate
A75: Hydro One Networks Inc.-Former Peterborough Distribution Inc. Service Area | B75: RESIDENTIAL SERVICE CLASSIFICATION~Retail Transmission Rate - Network Service Rate | C75: RESIDENTIAL SERVICE CLASSIFICATION~Retail Transmission Rate - Line and Transformation Connection Service Rate | D75: GENERAL SERVICE LESS THAN 50 KW SERVICE CLASSIFICATION~Retail Transmission Rate - Network Service Rate | E75: GENERAL SERVICE LESS THAN 50 KW SERVICE CLASSIFICATION~Retail Transmission Rate - Line and Transformation Connection Service Rate | F75: GENERAL SERVICE 50 to 4,999 kW SERVICE CLASSIFICATION~Retail Transmission Rate - Network Service Rate | G75: GENERAL SERVICE 50 to 4,999 kW SERVICE CLASSIFICATION~Retail Transmission Rate - Line and Transformation Connection Service Rate | H75: GENERAL SERVICE 50 to 4,999 kW SERVICE CLASSIFICATION~Retail Transmission Rate - Network Service Rate - EV CHARGING | I75: GENERAL SERVICE 50 to 4,999 kW SERVICE CLASSIFICATION~Retail Transmission Rate - Line and Transformation Connection Service Rate - EV CHARGING | J75: LARGE USE SERVICE CLASSIFICATION~Retail Transmission Rate - Network Service Rate - Interval Metered | K75: LARGE USE SERVICE CLASSIFICATION~Retail Transmission Rate - Line and Transformation Connection Service Rate - Interval Metered | L75: UNMETERED SCATTERED LOAD SERVICE CLASSIFICATION~Retail Transmission Rate - Network Service Rate | M75: UNMETERED SCATTERED LOAD SERVICE CLASSIFICATION~Retail Transmission Rate - Line and Transformation Connection Service Rate | N75: SENTINEL LIGHTING SERVICE CLASSIFICATION~Retail Transmission Rate - Network Service Rate | O75: SENTINEL LIGHTING SERVICE CLASSIFICATION~Retail Transmission Rate - Line and Transformation Connection Service Rate | P75: STREET LIGHTING SERVICE CLASSIFICATION~Retail Transmission Rate - Network Service Rate | Q75: STREET LIGHTING SERVICE CLASSIFICATION~Retail Transmission Rate - Line and Transformation Connection Service Rate

Sheet DELETE 3. Rate Classes (hidden)
C13: 1. Select the appropriate rate classes that appear on your most recent OEB-Approved Tariff of Rates and Charges. 2. Enter the RTSR Network and Connection Rate as it appears on the Tariff of Rates and Charges
C15: Rate Class | E15: Unit | G15: RTSR-Network | I15: RTSR-Connection
L17: =IF(OR(ISBLANK(C17), ISERROR(FIND("Choose", C17))=FALSE), 0, 1) -> 0 | M17: ="C" & ROW(C17) -> C17 | N17: =IF(OR(C17="General Service Intermediate Rate Class 1,000 To 4,999 kW (formerly General Service > 50 kW Customers)", C17="General Service Intermediate Rate Class 1,000 To 4,999 kW (formerly Large Use Customers)"), "x", "") ->  | W17: Choose Rate Class
L18: 0 | M18: C18 | N18: =IF(OR(C18="General Service Intermediate Rate Class 1,000 To 4,999 kW (formerly General Service > 50 kW Customers)", C18="General Service Intermediate Rate Class 1,000 To 4,999 kW (formerly Large Use Customers)"), "x", "") ->  | W18: Residential
L19: 0 | M19: C19 | W19: Residential Regular
L20: 0 | M20: C20 | W20: Residential Urban
L21: 0 | M21: C21 | W21: Residential Urban Year-Round
L22: =IF(OR(ISBLANK(C22), ISERROR(FIND("Choose", C22))=FALSE), 0, 1) -> 0 | M22: C22 | W22: Residential Suburban
L23: 0 | M23: C23 | W23: Residential Suburban Seasonal
L24: 0 | M24: C24 | W24: Residential Suburban Year Round
L25: 0 | M25: C25 | W25: Residential - Time of Use
L26: 0 | M26: C26 | W26: Residential - Hensall
L27: 0 | M27: C27 | W27: Residential – High Density [R1]
L28: 0 | M28: C28 | W28: Residential – Normal Density [R2]
L29: 0 | M29: C29 | W29: Seasonal Residential – High Density [R3]
L30: 0 | M30: C30 | W30: Seasonal Residential – Normal Density [R4]
L31: 0 | M31: C31 | W31: Residential – Urban [UR]
L32: 0 | M32: C32 | W32: General Service Less Than 50 kW
L33: 0 | M33: C33 | W33: General Service Less Than 50 kW – Single Phase energy-billed [G1]
L34: 0 | M34: C34 | W34: General Service Less Than 50 kW – Three Phase energy-billed [G3]
L35: 0 | M35: C35 | W35: General Service Less Than 50 kW – Transmission Class energy-billed [T]
L36: 0 | M36: C36 | W36: General Service Less Than 50 kW – Urban energy-billed [UG]
L37: 0 | M37: C37 | W37: Westport Sewage Treatment Plant
L38: 0 | M38: C38 | W38: Small Commercial and USL - per meter
N39: =COUNTIF(N17:N38, "x") -> 0 | W39: Small Commercial and USL - per connection
W40: Farms – Single Phase energy-billed [F1]
W41: General Service 50 to 499 kW
W42: General Service 50 to 699 kW
W43: General Service 50 to 999 kW
W44: General Service 50 to 999 kW - Interval Metered
W45: General Service 50 to 1,000 kW
W46: General Service 50 to 1,000 kW - Interval Meters
W47: General Service 50 to 1,000 kW - Non Interval Meters
W48: General Service 50 to 1,499 kW
W49: General Service 50 to 1,499 kW - Interval Metered
W50: General Service 50 to 2,499 kW
W51: General Service 50 to 2,999 kW
W52: General Service 50 to 2,999 kW - Time of Use
W53: General Service 50 to 4,999 kW
W54: General Service 50 to 4,999 kW – Interval Metered
W55: General Service 50 to 4,999 kW - Time of Use
W56: General Service 50 to 4,999 kW (CoGeneration)
W57: General Service 50 to 4,999 kW (formerly Time of Use)
W58: General Service 500 to 4,999 kW
W59: General Service 700 to 4,999 kW
W60: General Service 1,000 to 2,999 kW
W61: General Service 1,000 to 4,999 kW
W62: General Service 1,000 to 4,999 kW - Interval Meters
W63: General Service 1,000 To 4,999 kW (co-generation)
W64: General Service Greater Than 1,000 kW
W65: General Service Intermediate Rate Class 1,000 To 4,999 kW (formerly Large Use Customers)
W66: General Service Intermediate Rate Class 1,000 To 4,999 kW (formerly General Service > 50 kW Customers)
W67: General Service 1,500 to 4,999 kW
W68: General Service Equal To Or Greater Than 1,500 kW
W69: General Service Equal To Or Greater Than 1,500 kW - Interval Metered
W70: General Service Intermediate 1,000 To 4,999 kW
W71: General Service 2,500 to 4,999 kW
W72: General Service 3,000 to 4,999 kW
W73: General Service 3,000 to 4,999 kW - Interval Metered
W74: General Service 3,000 to 4,999 kW - Intermediate Use
W75: General Service 3,000 to 4,999 kW - Time of Use
W76: Intermediate With Self Generation
W77: General Service - Commercial
W78: General Service - Institutional
W79: Farms – Three Phase energy-billed [F3]
W80: Large Use
W81: Large Use - Regular
W82: Large Use > 5000 kW
W83: Large Use - 3TS
W84: Large Use - Ford Annex
W85: Unmetered Scattered Load
W86: Sentinel Lighting
W87: Street Lighting
W88: Embedded Distributor
W89: Low Voltage Wheeling Charge Rate
W90: Stand-By
W91: Standby Power
W92: Standby Power – INTERIM APPROVAL
W93: Standby Power - APPROVED ON AN INTERIM BASIS
W94: Standby - General Service 50 - 1,000 kW
W95: Standby Power General Service 50 to 1,499 kW
W96: Standby - General Service 1,000 - 5,000 kW
W97: Standby Power General Service 1,500 to 4,999 kW
W98: Standby - Large Use
W99: Standby Power General Service Large Use
W100: Standby Distribution Service

Sheet 2 1 5 TotalConsumptionData_Dist (hidden)
A1: 2.1.5 TotalConsumptionData_Dist_Ret_Total_Combined_2021_v2
R4: F+P | S4: Q+G
A5: Filing Year | B5: Company Name | C5: Rate Class | D5: Rate Class Detail | E5: Company Detail Class | F5: Ret_Metered_consumption_in_kWhs | G5: Ret_Metered_consumption_in_kWs | H5: RPPMeterCustkWh | I5: Metered Consumption on RPP - Kw | J5: Metered Consumption on Non-RPP - Kwh | K5: Metered Consumption on Non-RPP - Kw | L5: Billed by IESO For Commodity - Kwh | M5: Billed by IESO For Commodity - Kw | N5: Class_A_Consumption_kWhs | O5: Class_A_Consumption_kWs | P5: Total Consumption - Kwh | Q5: Total Consumption - Kw | R5: Calculated_TOTAL_KWH | S5: Calculated_TOTAL_KW
A6: 2025 | B6: Alectra Utilities Corporation | C6: Embedded Distributor(s) | D6: Embedded Distributor - Hydro One Brampton | E6: Alectra Utilities Corporation_ Hydro One Brampton_Embedded Distributor Service Classification | F6: 0 | G6: 0 | H6: 0 | I6: 0 | J6: 2951233.124 | K6: 0 | L6: 0 | M6: 0 | P6: 2951233.124 | Q6: 0 | R6: 2951233.124 | S6: 0
A7: 2025 | B7: Alectra Utilities Corporation | C7: General Service < 50 kW | D7: Distributed Generation - Dgen - Hydro One Brampton | E7: Alectra Utilities Corporation_ Dgen - Hydro One Brampton_Distributed Generation Service Classification | F7: 0 | G7: 0 | H7: 0 | I7: 0 | J7: 285159.6909 | K7: 0 | L7: 0 | M7: 0 | P7: 285159.6909 | Q7: 0 | R7: 285159.6909 | S7: 0
A8: 2025 | B8: Alectra Utilities Corporation | C8: General Service < 50 kW | D8: General Service Less Than 50 kW - Enersource | E8: Alectra Utilities Corporation_ Enersource_General Service Less Than 50 kW Service Classification | F8: 81007846.05 | G8: 0 | H8: 624478732 | I8: 0 | J8: 739501.9668 | K8: 0 | L8: 0 | M8: 0 | P8: 625218234 | Q8: 0 | R8: 706226080 | S8: 0
A9: 2025 | B9: Alectra Utilities Corporation | C9: General Service < 50 kW | D9: General Service Less Than 50 kW - Guelph Hydro | E9: Alectra Utilities Corporation_ Guelph Hydro_General Service Less Than 50 kW Service Classification | F9: 26353524.33 | G9: 0 | H9: 115763719.1 | I9: 0 | J9: 0 | K9: 0 | L9: 0 | M9: 0 | P9: 115763719.1 | Q9: 0 | R9: 142117243.5 | S9: 0
A10: 2025 | B10: Alectra Utilities Corporation | C10: General Service < 50 kW | D10: General Service Less Than 50 kW - Horizon | E10: Alectra Utilities Corporation_ Horizon_General Service Less Than 50 kW Service Classification | F10: 79302507.71 | G10: 0 | H10: 495261816.5 | I10: 0 | J10: 2227414.328 | K10: 0 | L10: 0 | M10: 0 | P10: 497489230.9 | Q10: 0 | R10: 576791738.6 | S10: 0
A11: 2025 | B11: Alectra Utilities Corporation | C11: General Service < 50 kW | D11: General Service Less Than 50 kW - Hydro One Brampton | E11: Alectra Utilities Corporation_ Hydro One Brampton_General Service Less Than 50 kW Service Classification | F11: 50846067.41 | G11: 0 | H11: 294033844.9 | I11: 0 | J11: 190884.4679 | K11: 0 | L11: 0 | M11: 0 | P11: 294224729.3 | Q11: 0 | R11: 345070796.7 | S11: 0
A12: 2025 | B12: Alectra Utilities Corporation | C12: General Service < 50 kW | D12: General Service Less Than 50 kW - PowerStream | E12: Alectra Utilities Corporation_ PowerStream_General Service Less Than 50 kW Service Classification | F12: 117999926.9 | G12: 0 | H12: 904416753.7 | I12: 0 | J12: 5500886.206 | K12: 0 | L12: 0 | M12: 0 | P12: 909917639.9 | Q12: 0 | R12: 1027917567 | S12: 0
A13: 2025 | B13: Alectra Utilities Corporation | C13: General Service >= 50 kW | D13: Energy From Waste - Hydro One Brampton | E13: Alectra Utilities Corporation_ Hydro One Brampton_Energy From Waste Service Classification | F13: 0 | G13: 0 | H13: 0 | I13: 0 | J13: 0 | K13: 0 | L13: 0 | M13: 0 | P13: 0 | Q13: 0 | R13: 0 | S13: 0
A14: 2025 | B14: Alectra Utilities Corporation | C14: General Service >= 50 kW | D14: General Service 1,000 to 4,999 kW - Guelph Hydro | E14: Alectra Utilities Corporation_ Guelph Hydro_General Service 1,000 to 4,999 kW Service Classification | F14: 40540208.82 | G14: 87300.16 | H14: 0 | I14: 0 | J14: 448681535.5 | K14: 961337.87 | L14: 0 | M14: 0 | P14: 448681535.5 | Q14: 961337.87 | R14: 489221744.3 | S14: 1048638.03
A15: 2025 | B15: Alectra Utilities Corporation | C15: General Service >= 50 kW | D15: General Service 50 to 4,999 kW - Horizon | E15: Alectra Utilities Corporation_ Guelph Hydro_General Service 50 To 999 kW Service Classification | F15: 218460100.5 | G15: 605683.7054 | H15: 58448823.3 | I15: 171192.9 | J15: 249302878.5 | K15: 710925.4 | L15: 5766324.01 | M15: 11306.3 | P15: 313518025.8 | Q15: 893424.6 | R15: 531978126.3 | S15: 1499108.305
A16: 2025 | B16: Alectra Utilities Corporation | C16: General Service >= 50 kW | D16: General Service 50 to 4,999 kW - PowerStream | E16: Alectra Utilities Corporation_ Horizon_General Service 50 to 4,999 kW Service Classification | F16: 475455178.9 | G16: 1331393.851 | H16: 205150337.5 | I16: 552659.0926 | J16: 1322450896 | K16: 3563491.646 | L16: 8605363.083 | M16: 16182.64721 | P16: 1536206597 | Q16: 4132333.386 | R16: 2011661776 | S16: 5463727.237
A17: 2025 | B17: Alectra Utilities Corporation | C17: General Service >= 50 kW | D17: General Service 50 to 499 kW - Enersource | E17: Alectra Utilities Corporation_ PowerStream_General Service 50 to 4,999 kW Service Classification | F17: 284153714.4 | G17: 779948.4097 | H17: 471566861.5 | I17: 1193757.515 | J17: 3838240447 | K17: 9716391.782 | L17: 24955018.11 | M17: 58718.57438 | P17: 4334762327 | Q17: 10968867.87 | R17: 4618916041 | S17: 11748816.28
A18: 2025 | B18: Alectra Utilities Corporation | C18: General Service >= 50 kW | D18: General Service 50 to 699 kW - Hydro One Brampton | E18: Alectra Utilities Corporation_ Enersource_General Service 50 to 499 kW Service Classification | F18: 168165053.6 | G18: 454232.71 | H18: 355169497.8 | I18: 974873.3556 | J18: 1425726486 | K18: 3913026.501 | L18: 0 | M18: 0 | P18: 1780895984 | Q18: 4887899.857 | R18: 1949061037 | S18: 5342132.567
A19: 2025 | B19: Alectra Utilities Corporation | C19: General Service >= 50 kW | D19: General Service 50 To 999 kW - Guelph Hydro | E19: Alectra Utilities Corporation_ Hydro One Brampton_General Service 50 to 699 kW Service Classification | F19: 70784360.33 | G19: 205059.28 | H19: 120950125.3 | I19: 337133.8999 | J19: 788917648 | K19: 2199012.88 | L19: 3879476.256 | M19: 22748.76179 | P19: 913747249.6 | Q19: 2558895.542 | R19: 984531609.9 | S19: 2763954.822
A20: 2025 | B20: Alectra Utilities Corporation | C20: General Service >= 50 kW | D20: General Service 500 to 4,999 kW - Enersource | E20: Alectra Utilities Corporation_ Enersource_General Service 500 to 4,999 kW Service Classification | F20: 360130760.8 | G20: 835633.1939 | H20: 123352611.8 | I20: 286402.2921 | J20: 1156474105 | K20: 2683436.838 | L20: 34253879.26 | M20: 69061.69976 | P20: 1314080596 | Q20: 3038900.83 | R20: 1674211357 | S20: 3874534.024
A21: 2025 | B21: Alectra Utilities Corporation | C21: General Service >= 50 kW | D21: General Service 700 to 4,999 kW - Hydro One Brampton | E21: Alectra Utilities Corporation_ Hydro One Brampton_General Service 700 to 4,999 kW Service Classification | F21: 143083991.4 | G21: 350643.0038 | H21: 0 | I21: 0 | J21: 667286619.9 | K21: 1600233.63 | L21: 68427291.26 | M21: 114749.7333 | P21: 735713911.1 | Q21: 1714983.363 | R21: 878797902.5 | S21: 2065626.367
A22: 2025 | B22: Alectra Utilities Corporation | C22: Large User | D22: Large Use - Enersource | E22: Alectra Utilities Corporation_ Enersource_Large Use Service Classification | F22: 134759150.1 | G22: 229222.1888 | H22: 0 | I22: 0 | J22: 893275772.6 | K22: 1516593.784 | L22: 0 | M22: 0 | P22: 893275772.6 | Q22: 1516593.784 | R22: 1028034923 | S22: 1745815.973
A23: 2025 | B23: Alectra Utilities Corporation | C23: Large User | D23: Large Use - Guelph Hydro | E23: Alectra Utilities Corporation_ Guelph Hydro_Large Use Service Classification | F23: 0 | G23: 0 | H23: 0 | I23: 0 | J23: 195177786.9 | K23: 404119.04 | L23: 0 | M23: 0 | P23: 195177786.9 | Q23: 404119.04 | R23: 195177786.9 | S23: 404119.04
A24: 2025 | B24: Alectra Utilities Corporation | C24: Large User | D24: Large Use - Horizon | E24: Alectra Utilities Corporation_ Horizon_Large Use Service Classification | F24: 0 | G24: 0 | H24: 0 | I24: 0 | J24: 232027455.8 | K24: 535719.3015 | L24: 0 | M24: 0 | P24: 232027455.8 | Q24: 535719.3015 | R24: 232027455.8 | S24: 535719.3015
A25: 2025 | B25: Alectra Utilities Corporation | C25: Large User | D25: Large Use - Hydro One Brampton | E25: Alectra Utilities Corporation_ Hydro One Brampton_Large Use Service Classification | F25: 0 | G25: 0 | H25: 0 | I25: 0 | J25: 248545492.7 | K25: 455969.8107 | L25: 0 | M25: 0 | P25: 248545492.7 | Q25: 455969.8107 | R25: 248545492.7 | S25: 455969.8107
A26: 2025 | B26: Alectra Utilities Corporation | C26: Large User | D26: Large Use - PowerStream | E26: Alectra Utilities Corporation_ PowerStream_Large Use Service Classification | F26: 0 | G26: 0 | H26: 0 | I26: 0 | J26: 234289032.2 | K26: 434330.5732 | L26: 0 | M26: 0 | P26: 234289032.2 | Q26: 434330.5732 | R26: 234289032.2 | S26: 434330.5732
A27: 2025 | B27: Alectra Utilities Corporation | C27: Large User | D27: Large Use with Dedicated Assets - Horizon | E27: Alectra Utilities Corporation_ Horizon_Large Use with Dedicated Assets Service Classification | F27: 0 | G27: 0 | H27: 0 | I27: 0 | J27: 233446637.5 | K27: 586656.2273 | L27: 631667714.1 | M27: 1014849.114 | P27: 865114351.6 | Q27: 1601505.341 | R27: 865114351.6 | S27: 1601505.341
A28: 2025 | B28: Alectra Utilities Corporation | C28: Residential | D28: Residential - Enersource | E28: Alectra Utilities Corporation_ Enersource_Residential Service Classification | F28: 14731176.84 | G28: 0 | H28: 1492543476 | I28: 0 | J28: -1121.309717 | K28: 0 | L28: 0 | M28: 0 | P28: 1492542354 | Q28: 0 | R28: 1507273531 | S28: 0
A29: 2025 | B29: Alectra Utilities Corporation | C29: Residential | D29: Residential - Guelph Hydro | E29: Alectra Utilities Corporation_ Guelph Hydro_Residential Service Classification | F29: 4711541.88 | G29: 0 | H29: 420478852.9 | I29: 0 | J29: 0 | K29: 0 | L29: 0 | M29: 0 | P29: 420478852.9 | Q29: 0 | R29: 425190394.7 | S29: 0
A30: 2025 | B30: Alectra Utilities Corporation | C30: Residential | D30: Residential - Horizon | E30: Alectra Utilities Corporation_ Horizon_Residential Service Classification | F30: 21248908.72 | G30: 0 | H30: 1717401948 | I30: 0 | J30: -631.5543213 | K30: 0 | L30: 0 | M30: 0 | P30: 1717401317 | Q30: 0 | R30: 1738650226 | S30: 0
A31: 2025 | B31: Alectra Utilities Corporation | C31: Residential | D31: Residential - Hydro One Brampton | E31: Alectra Utilities Corporation_ Hydro One Brampton_Residential Service Classification | F31: 15974475.35 | G31: 0 | H31: 1579386277 | I31: 0 | J31: 24.66362902 | K31: 0 | L31: 0 | M31: 0 | P31: 1579386302 | Q31: 0 | R31: 1595360777 | S31: 0
A32: 2025 | B32: Alectra Utilities Corporation | C32: Residential | D32: Residential - PowerStream | E32: Alectra Utilities Corporation_ PowerStream_Residential Service Classification | F32: 21296387.28 | G32: 0 | H32: 3003836342 | I32: 0 | J32: -242.8238163 | K32: 0 | L32: 0 | M32: 0 | P32: 3003836099 | Q32: 0 | R32: 3025132486 | S32: 0
A33: 2025 | B33: Alectra Utilities Corporation | C33: Sentinel Lighting Connections | D33: Sentinel Lighting - Guelph Hydro | E33: Alectra Utilities Corporation_ Guelph Hydro_Sentinel Lighting Service Classification | F33: 0 | G33: 0 | H33: 10392 | I33: 28.94 | J33: 0 | K33: 0 | L33: 0 | M33: 0 | P33: 10392 | Q33: 28.94 | R33: 10392 | S33: 28.94
A34: 2025 | B34: Alectra Utilities Corporation | C34: Sentinel Lighting Connections | D34: Sentinel Lighting - Horizon | E34: Alectra Utilities Corporation_ Horizon_Sentinel Lighting Service Classification | F34: 6840.762884 | G34: 32.63762792 | H34: 230549.8484 | I34: 1100.612886 | J34: 41804.2665 | K34: 199.5677496 | L34: 0 | M34: 0 | P34: 272354.1149 | Q34: 1300.180636 | R34: 279194.8778 | S34: 1332.818264
A35: 2025 | B35: Alectra Utilities Corporation | C35: Sentinel Lighting Connections | D35: Sentinel Lighting - PowerStream | E35: Alectra Utilities Corporation_ PowerStream_Sentinel Lighting Service Classification | F35: 0 | G35: 0 | H35: 167307.8874 | I35: 454.387679 | J35: 63186.85656 | K35: 171.6077439 | L35: 0 | M35: 0 | P35: 230494.744 | Q35: 625.9954229 | R35: 230494.744 | S35: 625.9954229
A36: 2025 | B36: Alectra Utilities Corporation | C36: Street Lighting Connections | D36: Street Lighting - Enersource | E36: Alectra Utilities Corporation_ Enersource_Street Lighting Service Classification | F36: 0 | G36: 0 | H36: 0 | I36: 0 | J36: 13498921.3 | K36: 36292.49623 | L36: 0 | M36: 0 | P36: 13498921.3 | Q36: 36292.49623 | R36: 13498921.3 | S36: 36292.49623
A37: 2025 | B37: Alectra Utilities Corporation | C37: Street Lighting Connections | D37: Street Lighting - Guelph Hydro | E37: Alectra Utilities Corporation_ Guelph Hydro_Street Lighting Service Classification | F37: 136327.54 | G37: 390.09 | H37: 0 | I37: 0 | J37: 3285335.86 | K37: 9151.04 | L37: 0 | M37: 0 | P37: 3285335.86 | Q37: 9151.04 | R37: 3421663.4 | S37: 9541.13
A38: 2025 | B38: Alectra Utilities Corporation | C38: Street Lighting Connections | D38: Street Lighting - Horizon | E38: Alectra Utilities Corporation_ Horizon_Street Lighting Service Classification | F38: 0 | G38: 0 | H38: 226291.5912 | I38: 680.5327827 | J38: 16610758.75 | K38: 49953.98111 | L38: 0 | M38: 0 | P38: 16837050.34 | Q38: 50634.51389 | R38: 16837050.34 | S38: 50634.51389
A39: 2025 | B39: Alectra Utilities Corporation | C39: Street Lighting Connections | D39: Street Lighting - Hydro One Brampton | E39: Alectra Utilities Corporation_ Hydro One Brampton_Street Lighting Service Classification | F39: 0 | G39: 0 | H39: 0 | I39: 0 | J39: 19136672.76 | K39: 53847.37417 | L39: 0 | M39: 0 | P39: 19136672.76 | Q39: 53847.37417 | R39: 19136672.76 | S39: 53847.37417
A40: 2025 | B40: Alectra Utilities Corporation | C40: Street Lighting Connections | D40: Street Lighting - PowerStream | E40: Alectra Utilities Corporation_ PowerStream_Street Lighting Service Classification | F40: 298697.4034 | G40: 839.2908839 | H40: 595607.2925 | I40: 1671.413306 | J40: 38910859.74 | K40: 109192.9691 | L40: 0 | M40: 0 | P40: 39506467.03 | Q40: 110864.3824 | R40: 39805164.44 | S40: 111703.6733
A41: 2025 | B41: Alectra Utilities Corporation | C41: Unmetered Scattered Load Connections | D41: Unmetered Scattered Load - Enersource | E41: Alectra Utilities Corporation_ Enersource_Unmetered Scattered Load Service Classification | F41: 494511.9408 | G41: 0 | H41: 11555429.05 | I41: 0 | J41: 0 | K41: 0 | L41: 0 | M41: 0 | P41: 11555429.05 | Q41: 0 | R41: 12049940.99 | S41: 0
A42: 2025 | B42: Alectra Utilities Corporation | C42: Unmetered Scattered Load Connections | D42: Unmetered Scattered Load - Guelph Hydro | E42: Alectra Utilities Corporation_ Guelph Hydro_Unmetered Scattered Load Service Classification | F42: 373863.538 | G42: 0 | H42: 1574135.46 | I42: 0 | J42: 0 | K42: 0 | L42: 0 | M42: 0 | P42: 1574135.46 | Q42: 0 | R42: 1947998.998 | S42: 0
A43: 2025 | B43: Alectra Utilities Corporation | C43: Unmetered Scattered Load Connections | D43: Unmetered Scattered Load - Horizon | E43: Alectra Utilities Corporation_ Horizon_Unmetered Scattered Load Service Classification | F43: 1411151.247 | G43: 0 | H43: 9716664.534 | I43: 0 | J43: 0 | K43: 0 | L43: 0 | M43: 0 | P43: 9716664.534 | Q43: 0 | R43: 11127815.78 | S43: 0
A44: 2025 | B44: Alectra Utilities Corporation | C44: Unmetered Scattered Load Connections | D44: Unmetered Scattered Load - Hydro One Brampton | E44: Alectra Utilities Corporation_ Hydro One Brampton_Unmetered Scattered Load Service Classification | F44: 474161.0515 | G44: 0 | H44: 5689579.047 | I44: 0 | J44: 0 | K44: 0 | L44: 0 | M44: 0 | P44: 5689579.047 | Q44: 0 | R44: 6163740.099 | S44: 0
A45: 2025 | B45: Alectra Utilities Corporation | C45: Unmetered Scattered Load Connections | D45: Unmetered Scattered Load - PowerStream | E45: Alectra Utilities Corporation_ PowerStream_Unmetered Scattered Load Service Classification | F45: 83565.00764 | G45: 0 | H45: 15124169.59 | I45: 0 | J45: 0 | K45: 0 | L45: 0 | M45: 0 | P45: 15124169.59 | Q45: 0 | R45: 15207734.6 | S45: 0
A46: 2025 | B46: Algoma Power Inc. | C46: General Service < 50 kW | D46: Residential - R1ii) | E46: Algoma Power Inc._ R1ii)_Residential Service Classification | F46: 3888390.97 | H46: 24612943.2 | P46: 24612943.2 | Q46: 0 | R46: 28501334.17 | S46: 0
A47: 2025 | B47: Algoma Power Inc. | C47: General Service >= 50 kW | D47: Residential - R2 | E47: Algoma Power Inc._ R2_Residential Service Classification | F47: 3290567.59 | G47: 9370.28 | H47: 4626836.31 | I47: 15455.04 | J47: 131626218.3 | K47: 273476.54 | P47: 136253054.7 | Q47: 288931.58 | R47: 139543622.2 | S47: 298301.86
A48: 2025 | B48: Algoma Power Inc. | C48: Residential | D48: Residential - R1i) | E48: Algoma Power Inc._ R1i)_Residential Service Classification | F48: 539141 | H48: 96294453.42 | P48: 96294453.42 | Q48: 0 | R48: 96833594.42 | S48: 0
A49: 2025 | B49: Algoma Power Inc. | C49: Residential | D49: Residential - Seasonal | E49: Algoma Power Inc._ Seasonal_Residential Service Classification | F49: 39662.96 | H49: 6186616.24 | P49: 6186616.24 | Q49: 0 | R49: 6226279.2 | S49: 0
A50: 2025 | B50: Algoma Power Inc. | C50: Street Lighting Connections | D50: Street Lighting | E50: Algoma Power Inc._Street Lighting Service Classification | F50: 112565.4 | H50: 0 | J50: 386467.7 | K50: 1422 | P50: 386467.7 | Q50: 1422 | R50: 499033.1 | S50: 1422
A51: 2025 | B51: Atikokan Hydro Inc. | C51: General Service < 50 kW | D51: General Service Less Than 50 kW | E51: Atikokan Hydro Inc._General Service Less Than 50 kW Service Classification | F51: 94697.92 | H51: 4520517.97 | P51: 4520517.97 | Q51: 0 | R51: 4615215.89 | S51: 0
A52: 2025 | B52: Atikokan Hydro Inc. | C52: General Service >= 50 kW | D52: General Service 50 to 4,999 kW | E52: Atikokan Hydro Inc._General Service 50 to 4,999 kW Service Classification | F52: 1014403.6 | G52: 2078.57 | H52: 0 | J52: 14113282.28 | K52: 46684.86 | P52: 14113282.28 | Q52: 46684.86 | R52: 15127685.88 | S52: 48763.43
A53: 2025 | B53: Atikokan Hydro Inc. | C53: Residential | D53: Residential | E53: Atikokan Hydro Inc._Residential Service Classification | F53: 88496 | H53: 8691360.72 | P53: 8691360.72 | Q53: 0 | R53: 8779856.72 | S53: 0
A54: 2025 | B54: Atikokan Hydro Inc. | C54: Street Lighting Connections | D54: Street Lighting | E54: Atikokan Hydro Inc._Street Lighting Service Classification | H54: 0 | J54: 355072.89 | K54: 1057.68 | P54: 355072.89 | Q54: 1057.68 | R54: 355072.89 | S54: 1057.68
A55: 2025 | B55: Bluewater Power Distribution Corporation | C55: General Service < 50 kW | D55: General Service Less Than 50 kW | E55: Bluewater Power Distribution Corporation_General Service Less Than 50 kW Service Classification | F55: 18459382 | H55: 86150360 | J55: 38455 | P55: 86188815 | Q55: 0 | R55: 104648197 | S55: 0
A56: 2025 | B56: Bluewater Power Distribution Corporation | C56: General Service >= 50 kW | D56: General Service 1,000 to 4,999 kW | E56: Bluewater Power Distribution Corporation_General Service 1,000 to 4,999 kW Service Classification | H56: 0 | J56: 97588738 | K56: 183948 | P56: 97588738 | Q56: 183948 | R56: 97588738 | S56: 183948
A57: 2025 | B57: Bluewater Power Distribution Corporation | C57: General Service >= 50 kW | D57: General Service 50 to 999 kW | E57: Bluewater Power Distribution Corporation_General Service 50 to 999 kW Service Classification | F57: 57477609 | G57: 172041 | H57: 31044832 | I57: 104255 | J57: 116652972 | K57: 297837 | L57: 3594914 | M57: 6661 | P57: 151292718 | Q57: 408753 | R57: 208770327 | S57: 580794
A58: 2025 | B58: Bluewater Power Distribution Corporation | C58: Large User | D58: Large Use | E58: Bluewater Power Distribution Corporation_Large Use Service Classification | F58: 0 | H58: 0 | J58: 159328855 | K58: 284151 | L58: 115013489 | M58: 186406 | P58: 274342344 | Q58: 470557 | R58: 274342344 | S58: 470557
A59: 2025 | B59: Bluewater Power Distribution Corporation | C59: Residential | D59: Residential | E59: Bluewater Power Distribution Corporation_Residential Service Classification | F59: 4153748 | H59: 264358732 | P59: 264358732 | Q59: 0 | R59: 268512480 | S59: 0
A60: 2025 | B60: Bluewater Power Distribution Corporation | C60: Sentinel Lighting Connections | D60: Sentinel Lighting | E60: Bluewater Power Distribution Corporation_Sentinel Lighting Service Classification | F60: 37145 | G60: 102 | H60: 0 | J60: 3039838 | K60: 8471 | P60: 3039838 | Q60: 8471 | R60: 3076983 | S60: 8573
A61: 2025 | B61: Bluewater Power Distribution Corporation | C61: Street Lighting Connections | D61: Street Lighting | E61: Bluewater Power Distribution Corporation_Street Lighting Service Classification | F61: 0 | H61: 367029 | I61: 1002 | P61: 367029 | Q61: 1002 | R61: 367029 | S61: 1002
A62: 2025 | B62: Bluewater Power Distribution Corporation | C62: Unmetered Scattered Load Connections | D62: Unmetered Scattered Load | E62: Bluewater Power Distribution Corporation_Unmetered Scattered Load Service Classification | F62: 333951 | H62: 1860408 | P62: 1860408 | Q62: 0 | R62: 2194359 | S62: 0
A63: 2025 | B63: Burlington Hydro Inc. | C63: General Service < 50 kW | D63: General Service Less Than 50 kW | E63: Burlington Hydro Inc._General Service Less Than 50 kW Service Classification | F63: 17527528 | H63: 151418281 | P63: 151418281 | Q63: 0 | R63: 168945809 | S63: 0
A64: 2025 | B64: Burlington Hydro Inc. | C64: General Service >= 50 kW | D64: General Service 50 to 4,999 kW | E64: Burlington Hydro Inc._General Service 50 to 4,999 kW Service Classification | F64: 122331832 | G64: 345905 | H64: 88092309 | I64: 282756 | J64: 585220207 | K64: 1533105 | P64: 673312516 | Q64: 1815861 | R64: 795644348 | S64: 2161766
A65: 2025 | B65: Burlington Hydro Inc. | C65: Residential | D65: Residential | E65: Burlington Hydro Inc._Residential Service Classification | F65: 3443840 | H65: 534678385 | P65: 534678385 | Q65: 0 | R65: 538122225 | S65: 0
A66: 2025 | B66: Burlington Hydro Inc. | C66: Street Lighting Connections | D66: Street Lighting | E66: Burlington Hydro Inc._Street Lighting Service Classification | H66: 47121 | I66: 131 | J66: 5548488 | K66: 15432 | P66: 5595609 | Q66: 15563 | R66: 5595609 | S66: 15563
A67: 2025 | B67: Burlington Hydro Inc. | C67: Unmetered Scattered Load Connections | D67: Unmetered Scattered Load | E67: Burlington Hydro Inc._Unmetered Scattered Load Service Classification | H67: 3279899 | P67: 3279899 | Q67: 0 | R67: 3279899 | S67: 0
A68: 2025 | B68: Canadian Niagara Power Inc. | C68: Embedded Distributor(s) | D68: Embedded Distributor | E68: Canadian Niagara Power Inc._Embedded Distributor Service Classification | H68: 0 | J68: 5640447.39 | K68: 15142.87 | P68: 5640447.39 | Q68: 15142.87 | R68: 5640447.39 | S68: 15142.87
A69: 2025 | B69: Canadian Niagara Power Inc. | C69: General Service < 50 kW | D69: General Service Less Than 50 kW | E69: Canadian Niagara Power Inc._General Service Less Than 50 kW Service Classification | F69: 12523600.1 | H69: 54778663.22 | P69: 54778663.22 | Q69: 0 | R69: 67302263.32 | S69: 0
A70: 2025 | B70: Canadian Niagara Power Inc. | C70: General Service >= 50 kW | D70: General Service 50 To 4,999 kW | E70: Canadian Niagara Power Inc._General Service 50 To 4,999 kW Service Classification | F70: 21763282.11 | G70: 64855.31 | H70: 16960551.6 | I70: 53229.42 | J70: 145529032.4 | K70: 459827.4 | P70: 162489584 | Q70: 513056.82 | R70: 184252866.1 | S70: 577912.13
A71: 2025 | B71: Canadian Niagara Power Inc. | C71: Residential | D71: Residential | E71: Canadian Niagara Power Inc._Residential Service Classification | F71: 2466645.03 | H71: 226157222.2 | P71: 226157222.2 | Q71: 0 | R71: 228623867.2 | S71: 0
A72: 2025 | B72: Canadian Niagara Power Inc. | C72: Sentinel Lighting Connections | D72: Sentinel Lighting | E72: Canadian Niagara Power Inc._Sentinel Lighting Service Classification | H72: 450678.16 | I72: 1477.68 | P72: 450678.16 | Q72: 1477.68 | R72: 450678.16 | S72: 1477.68
A73: 2025 | B73: Canadian Niagara Power Inc. | C73: Street Lighting Connections | D73: Street Lighting | E73: Canadian Niagara Power Inc._Street Lighting Service Classification | H73: 78813.25 | I73: 259.22 | J73: 1378183.12 | K73: 4182.92 | P73: 1456996.37 | Q73: 4442.14 | R73: 1456996.37 | S73: 4442.14
A74: 2025 | B74: Canadian Niagara Power Inc. | C74: Unmetered Scattered Load Connections | D74: Unmetered Scattered Load | E74: Canadian Niagara Power Inc._Unmetered Scattered Load Service Classification | F74: 891636.18 | H74: 400454.87 | P74: 400454.87 | Q74: 0 | R74: 1292091.05 | S74: 0
A75: 2025 | B75: Centre Wellington Hydro Ltd. | C75: General Service < 50 kW | D75: General Service Less Than 50 kW | E75: Centre Wellington Hydro Ltd._General Service Less Than 50 kW Service Classification | F75: 4228908 | H75: 19555593.8 | P75: 19555593.8 | Q75: 0 | R75: 23784501.8 | S75: 0
A76: 2025 | B76: Centre Wellington Hydro Ltd. | C76: General Service >= 50 kW | D76: General Service 50 to 4,999 kW | E76: Centre Wellington Hydro Ltd._General Service 50 to 4,999 kW Service Classification | F76: 39847438.16 | G76: 102989.1 | H76: 3990824 | I76: 14543.32 | J76: 28194201.32 | K76: 81891.37 | L76: 2369735.88 | M76: 4620.6 | P76: 34554761.2 | Q76: 101055.29 | R76: 74402199.36 | S76: 204044.39
A77: 2025 | B77: Centre Wellington Hydro Ltd. | C77: Residential | D77: Residential | E77: Centre Wellington Hydro Ltd._Residential Service Classification | F77: 462510 | H77: 50342961 | P77: 50342961 | Q77: 0 | R77: 50805471 | S77: 0
A78: 2025 | B78: Centre Wellington Hydro Ltd. | C78: Sentinel Lighting Connections | D78: Sentinel Lighting | E78: Centre Wellington Hydro Ltd._Sentinel Lighting Service Classification | F78: 496 | G78: 1.38 | H78: 22574.48 | I78: 62.7 | P78: 22574.48 | Q78: 62.7 | R78: 23070.48 | S78: 64.08
A79: 2025 | B79: Centre Wellington Hydro Ltd. | C79: Street Lighting Connections | D79: Street Lighting | E79: Centre Wellington Hydro Ltd._Street Lighting Service Classification | H79: 0 | J79: 548320.88 | K79: 1507.31 | P79: 548320.88 | Q79: 1507.31 | R79: 548320.88 | S79: 1507.31
A80: 2025 | B80: Centre Wellington Hydro Ltd. | C80: Unmetered Scattered Load Connections | D80: Unmetered Scattered Load | E80: Centre Wellington Hydro Ltd._Unmetered Scattered Load Service Classification | F80: 126624 | H80: 516406.21 | P80: 516406.21 | Q80: 0 | R80: 643030.21 | S80: 0
A81: 2025 | B81: Cooperative Hydro Embrun Inc. | C81: General Service < 50 kW | D81: General Service Less Than 50 kW | E81: Cooperative Hydro Embrun Inc._General Service Less Than 50 kW Service Classification | F81: 937168 | G81: 0 | H81: 3636797 | I81: 0 | J81: 0 | K81: 0 | L81: 0 | M81: 0 | P81: 3636797 | Q81: 0 | R81: 4573965 | S81: 0
A82: 2025 | B82: Cooperative Hydro Embrun Inc. | C82: General Service >= 50 kW | D82: General Service 50 to 4,999 kW | E82: Cooperative Hydro Embrun Inc._General Service 50 to 4,999 kW Service Classification | F82: 209011 | G82: 0 | H82: 367800 | I82: 0 | J82: 3811423 | K82: 10248 | L82: 0 | M82: 0 | P82: 4179223 | Q82: 10248 | R82: 4388234 | S82: 10248
A83: 2025 | B83: Cooperative Hydro Embrun Inc. | C83: Residential | D83: Residential | E83: Cooperative Hydro Embrun Inc._Residential Service Classification | F83: 56604 | G83: 0 | H83: 22438449 | I83: 0 | J83: 0 | K83: 0 | L83: 0 | M83: 0 | P83: 22438449 | Q83: 0 | R83: 22495053 | S83: 0
A84: 2025 | B84: Cooperative Hydro Embrun Inc. | C84: Street Lighting Connections | D84: Street Lighting | E84: Cooperative Hydro Embrun Inc._Street Lighting Service Classification | F84: 0 | G84: 0 | H84: 0 | I84: 0 | J84: 218679 | K84: 608.4 | L84: 0 | M84: 0 | P84: 218679 | Q84: 608.4 | R84: 218679 | S84: 608.4
A85: 2025 | B85: Cooperative Hydro Embrun Inc. | C85: Unmetered Scattered Load Connections | D85: Unmetered Scattered Load | E85: Cooperative Hydro Embrun Inc._Unmetered Scattered Load Service Classification | F85: 0 | G85: 0 | H85: 93084 | I85: 0 | J85: 0 | K85: 0 | L85: 0 | M85: 0 | P85: 93084 | Q85: 0 | R85: 93084 | S85: 0
A86: 2025 | B86: E.L.K. Energy Inc. | C86: Embedded Distributor(s) | D86: Embedded Distributor | E86: E.L.K. Energy Inc._Embedded Distributor Service Classification | H86: 0 | J86: 54571051 | K86: 125912 | P86: 54571051 | Q86: 125912 | R86: 54571051 | S86: 125912
A87: 2025 | B87: E.L.K. Energy Inc. | C87: General Service < 50 kW | D87: General Service Less Than 50 kW | E87: E.L.K. Energy Inc._General Service Less Than 50 kW Service Classification | F87: 5723904 | H87: 21933542 | J87: 3277426 | P87: 25210968 | Q87: 0 | R87: 30934872 | S87: 0
A88: 2025 | B88: E.L.K. Energy Inc. | C88: General Service >= 50 kW | D88: General Service 50 to 4,999 kW | E88: E.L.K. Energy Inc._General Service 50 to 4,999 kW Service Classification | F88: 12613501 | H88: 19792364 | I88: 67630 | J88: 19627753 | K88: 135075 | L88: 2406636 | M88: 4103.69 | P88: 41826753 | Q88: 206808.69 | R88: 54440254 | S88: 206808.69
A89: 2025 | B89: E.L.K. Energy Inc. | C89: Residential | D89: Residential | E89: E.L.K. Energy Inc._Residential Service Classification | F89: 1260602 | H89: 102812385 | J89: 2098212 | P89: 104910597 | Q89: 0 | R89: 106171199 | S89: 0
A90: 2025 | B90: E.L.K. Energy Inc. | C90: Sentinel Lighting Connections | D90: Sentinel Lighting | E90: E.L.K. Energy Inc._Sentinel Lighting Service Classification | F90: 4617 | G90: 352 | H90: 88045 | J90: 43365 | P90: 131410 | Q90: 0 | R90: 136027 | S90: 352
A91: 2025 | B91: E.L.K. Energy Inc. | C91: Street Lighting Connections | D91: Street Lighting | E91: E.L.K. Energy Inc._Street Lighting Service Classification | F91: 1241060 | G91: 3339 | H91: 0 | P91: 0 | Q91: 0 | R91: 1241060 | S91: 3339
A92: 2025 | B92: E.L.K. Energy Inc. | C92: Unmetered Scattered Load Connections | D92: Unmetered Scattered Load | E92: E.L.K. Energy Inc._Unmetered Scattered Load Service Classification | H92: 148009 | J92: 102854 | P92: 250863 | Q92: 0 | R92: 250863 | S92: 0
A93: 2025 | B93: Elexicon Energy Inc. | C93: General Service < 50 kW | D93: General Service < 50 kW - Veridian | E93: ENWIN Utilities Ltd._General Service Less Than 50 kW Service Classification | F93: 46500332 | H93: 226333056 | P93: 226333056 | Q93: 0 | R93: 272833388 | S93: 0
A94: 2025 | B94: Elexicon Energy Inc. | C94: General Service < 50 kW | D94: General Service < 50 kW - Whitby | E94: ENWIN Utilities Ltd._General Service 50 to 4,999 kW Service Classification | F94: 11659732 | H94: 115969810.7 | I94: 289830.78 | J94: 625104994.3 | K94: 1583215.73 | L94: 8996004.33 | M94: 17378.61 | P94: 750070809.3 | Q94: 1890425.12 | R94: 761730541.3 | S94: 1890425.12
A95: 2025 | B95: Elexicon Energy Inc. | C95: General Service >= 50 kW | D95: General Service 3,000 to 4,999 kW - Veridian | E95: ENWIN Utilities Ltd._Dedicated TS Service Classification | F95: 815352 | G95: 2786 | H95: 0 | J95: 133900065 | K95: 246225.15 | L95: 81205726 | M95: 135381.81 | P95: 215105791 | Q95: 381606.96 | R95: 215921143 | S95: 384392.96
A96: 2025 | B96: Elexicon Energy Inc. | C96: General Service >= 50 kW | D96: General Service 50 to 2,999 kW - Veridian | E96: ENWIN Utilities Ltd._ Regular_Large Use Service Classification | F96: 108338780 | G96: 279295 | H96: 0 | J96: 96788764.5 | K96: 190648.69 | L96: 100756683 | M96: 180360.73 | P96: 197545447.5 | Q96: 371009.42 | R96: 305884227.5 | S96: 650304.42
A97: 2025 | B97: Elexicon Energy Inc. | C97: General Service >= 50 kW | D97: General Service 50 to 4,999 kW - Whitby | E97: ENWIN Utilities Ltd._Residential Service Classification | F97: 83641059 | G97: 198943 | H97: 643203920.6 | P97: 643203920.6 | Q97: 0 | R97: 726844979.6 | S97: 198943
A98: 2025 | B98: Elexicon Energy Inc. | C98: Large User | D98: Large Use - Veridian | E98: ENWIN Utilities Ltd._Sentinel Lighting Service Classification | H98: 635974.06 | I98: 1770.53 | P98: 635974.06 | Q98: 1770.53 | R98: 635974.06 | S98: 1770.53
A99: 2025 | B99: Elexicon Energy Inc. | C99: Residential | D99: Residential - Veridian | E99: ENWIN Utilities Ltd._Street Lighting Service Classification | F99: 13556791 | H99: 18527.03 | I99: 53.04 | J99: 6680226.44 | K99: 19103.08 | P99: 6698753.47 | Q99: 19156.12 | R99: 20255544.47 | S99: 19156.12
A100: 2025 | B100: Elexicon Energy Inc. | C100: Residential | D100: Residential - Whitby | E100: ENWIN Utilities Ltd._Unmetered Scattered Load Service Classification | F100: 2744552 | H100: 134063.72 | J100: 2172201.75 | P100: 2306265.47 | Q100: 0 | R100: 5050817.47 | S100: 0
A101: 2025 | B101: Elexicon Energy Inc. | C101: Residential | D101: Residential Seasonal - Veridian | E101: EPCOR Electricity Distribution Ontario Inc._General Service Less Than 50 kW Service Classification | F101: 23434 | H101: 40293979.25 | J101: 256634.03 | P101: 40550613.28 | Q101: 0 | R101: 40574047.28 | S101: 0
A102: 2025 | B102: Elexicon Energy Inc. | C102: Sentinel Lighting Connections | D102: Sentinel Lighting - Veridian | E102: EPCOR Electricity Distribution Ontario Inc._General Service 50 to 4,999 kW Service Classification | F102: 66254 | H102: 14508397.38 | I102: 48488.58 | J102: 87247856.52 | K102: 211358.06 | L102: 2093776.2 | M102: 4296.57 | P102: 103850030.1 | Q102: 264143.21 | R102: 103916284.1 | S102: 264143.21
A103: 2025 | B103: Elexicon Energy Inc. | C103: Sentinel Lighting Connections | D103: Sentinel Lighting - Whitby | E103: EPCOR Electricity Distribution Ontario Inc._Residential Service Classification | F103: 3076 | H103: 135818260.9 | P103: 135818260.9 | Q103: 0 | R103: 135821336.9 | S103: 0
A104: 2025 | B104: Elexicon Energy Inc. | C104: Street Lighting Connections | D104: Street Lighting - Veridian | E104: EPCOR Electricity Distribution Ontario Inc._Street Lighting Service Classification | F104: 2861152 | G104: 7973 | H104: 0 | J104: 1158718.02 | K104: 3239.46 | P104: 1158718.02 | Q104: 3239.46 | R104: 4019870.02 | S104: 11212.46
A105: 2025 | B105: Elexicon Energy Inc. | C105: Street Lighting Connections | D105: Street Lighting - Whitby | E105: EPCOR Electricity Distribution Ontario Inc._Unmetered Scattered Load Service Classification | H105: 372950.41 | P105: 372950.41 | Q105: 0 | R105: 372950.41 | S105: 0
A106: 2025 | B106: Elexicon Energy Inc. | C106: Unmetered Scattered Load Connections | D106: Unmetered Scattered Load - Veridian | E106: ERTH Power Corporation_ Main_Embedded Distributor Service Classification | F106: 226032 | H106: 0 | J106: 21147363.48 | K106: 44346.89 | P106: 21147363.48 | Q106: 44346.89 | R106: 21373395.48 | S106: 44346.89
A107: 2025 | B107: Elexicon Energy Inc. | C107: Unmetered Scattered Load Connections | D107: Unmetered Scattered Load - Whitby | E107: ERTH Power Corporation_ Goderich_General Service Less Than 50 kW Service Classification | H107: 11258482.71 | J107: 0 | K107: 0 | P107: 11258482.71 | Q107: 0 | R107: 11258482.71 | S107: 0
A108: 2025 | B108: Enova Power Corp. | C108: Embedded Distributor(s) | D108: Embedded Distributor-Kitchener-Wilmot | E108: ERTH Power Corporation_ Main_General Service Less Than 50 kW Service Classification | H108: 43897895.23 | J108: 0 | K108: 0 | P108: 43897895.23 | Q108: 0 | R108: 43897895.23 | S108: 0
A109: 2025 | B109: Enova Power Corp. | C109: Embedded Distributor(s) | D109: Embedded Distributor-Waterloo North | E109: ERTH Power Corporation_ Main_General Service 1,000 to 4,999 kW Service Classification | H109: 0 | J109: 77807489.13 | K109: 169918.27 | P109: 77807489.13 | Q109: 169918.27 | R109: 77807489.13 | S109: 169918.27
A110: 2025 | B110: Enova Power Corp. | C110: General Service < 50 kW | D110: General Service Less Than 50 kW-Kitchener-Wilmot | E110: ERTH Power Corporation_ Goderich_General Service 50 to 499 kW Service Classification | F110: 27327820.3 | G110: 0 | H110: 1854009.04 | I110: 5385.33 | J110: 11411205.45 | K110: 32463.45 | P110: 13265214.49 | Q110: 37848.78 | R110: 40593034.79 | S110: 37848.78
A111: 2025 | B111: Enova Power Corp. | C111: General Service < 50 kW | D111: General Service Less Than 50 kW-Waterloo North | E111: ERTH Power Corporation_ Main_General Service 50 to 999 kW Service Classification | F111: 33568154.89 | G111: 0 | H111: 7587839.39 | I111: 30216.95 | J111: 46275587.13 | K111: 130003.274 | P111: 53863426.52 | Q111: 160220.224 | R111: 87431581.41 | S111: 160220.224
A112: 2025 | B112: Enova Power Corp. | C112: General Service >= 50 kW | D112: General Service 50 to 4,999 kW-Kitchener-Wilmot | E112: ERTH Power Corporation_ Goderich_General Service 500 to 4,999 kW Service Classification | F112: 107362935.8 | G112: 304091.5487 | H112: 0 | J112: 15969388.42 | K112: 41282.7 | L112: 1484844.52 | M112: 15767.66 | P112: 17454232.94 | Q112: 57050.36 | R112: 124817168.7 | S112: 361141.9087
A113: 2025 | B113: Enova Power Corp. | C113: General Service >= 50 kW | D113: General Service 50 to 4,999 kW-Waterloo North | E113: ERTH Power Corporation_ Goderich_Large Use Service Classification | F113: 89574158.81 | G113: 265938.5875 | H113: 0 | J113: 0 | K113: 0 | L113: 57159245.45 | M113: 176922.99 | P113: 57159245.45 | Q113: 176922.99 | R113: 146733404.3 | S113: 442861.5775
A114: 2025 | B114: Enova Power Corp. | C114: Large User | D114: Large Use-Kitchener-Wilmot | E114: ERTH Power Corporation_ Main_Large Use Service Classification | H114: 0 | J114: 95953405.47 | K114: 184856.17 | P114: 95953405.47 | Q114: 184856.17 | R114: 95953405.47 | S114: 184856.17
A115: 2025 | B115: Enova Power Corp. | C115: Large User | D115: Large Use-Waterloo North | E115: ERTH Power Corporation_ Goderich_Residential Service Classification | H115: 26594003.89 | J115: 0 | K115: 0 | P115: 26594003.89 | Q115: 0 | R115: 26594003.89 | S115: 0
A116: 2025 | B116: Enova Power Corp. | C116: Residential | D116: Residential-Kitchener-Wilmot | E116: ERTH Power Corporation_ Main_Residential Service Classification | F116: 5379379.611 | G116: 0 | H116: 156155420.3 | J116: 0 | K116: 0 | P116: 156155420.3 | Q116: 0 | R116: 161534799.9 | S116: 0
A117: 2025 | B117: Enova Power Corp. | C117: Residential | D117: Residential-Waterloo North | E117: ERTH Power Corporation_ Goderich_Sentinel Lighting Service Classification | F117: 3723077.083 | G117: 0 | H117: 1900.8 | I117: 5.28 | J117: 0 | K117: 0 | P117: 1900.8 | Q117: 5.28 | R117: 3724977.883 | S117: 5.28
A118: 2025 | B118: Enova Power Corp. | C118: Street Lighting Connections | D118: Street Lighting-Kitchener-Wilmot | E118: ERTH Power Corporation_ Main_Sentinel Lighting Service Classification | H118: 189231.18 | J118: 0 | K118: 0 | P118: 189231.18 | Q118: 0 | R118: 189231.18 | S118: 0
A119: 2025 | B119: Enova Power Corp. | C119: Street Lighting Connections | D119: Street Lighting-Waterloo North | E119: ERTH Power Corporation_ Goderich_Street Lighting Service Classification | H119: 70251.38 | I119: 7.8 | J119: 0 | K119: 0 | P119: 70251.38 | Q119: 7.8 | R119: 70251.38 | S119: 7.8
A120: 2025 | B120: Enova Power Corp. | C120: Unmetered Scattered Load Connections | D120: Unmetered Scattered Load-Kitchener-Wilmot | E120: ERTH Power Corporation_ Main_Street Lighting Service Classification | H120: 745465.31 | I120: 2024.02 | J120: 879429.16 | K120: 2375.93 | P120: 1624894.47 | Q120: 4399.95 | R120: 1624894.47 | S120: 4399.95
A121: 2025 | B121: Enova Power Corp. | C121: Unmetered Scattered Load Connections | D121: Unmetered Scattered Load-Waterloo North | E121: ERTH Power Corporation_ Goderich_Unmetered Scattered Load Service Classification | H121: 83100 | J121: 0 | K121: 0 | P121: 83100 | Q121: 0 | R121: 83100 | S121: 0
A122: 2025 | B122: Entegrus Powerlines Inc. | C122: Embedded Distributor(s) | D122: Embedded Distributor - Main | E122: ERTH Power Corporation_ Main_Unmetered Scattered Load Service Classification | H122: 325195.24 | J122: 0 | K122: 0 | P122: 325195.24 | Q122: 0 | R122: 325195.24 | S122: 0
A123: 2025 | B123: Entegrus Powerlines Inc. | C123: General Service < 50 kW | D123: General Service Less Than 50 kW - Main | E123: Elexicon Energy Inc._ Veridian_General Service < 50 kW Service Classification | F123: 19570515 | H123: 247383972 | J123: 319819 | P123: 247703791 | Q123: 0 | R123: 267274306 | S123: 0
A124: 2025 | B124: Entegrus Powerlines Inc. | C124: General Service < 50 kW | D124: General Service Less Than 50 kW - St. Thomas Energy | E124: Elexicon Energy Inc._ Whitby_General Service < 50 kW Service Classification | F124: 5109030 | H124: 80281021 | P124: 80281021 | Q124: 0 | R124: 85390051 | S124: 0
A125: 2025 | B125: Entegrus Powerlines Inc. | C125: General Service >= 50 kW | D125: General Service 50 to 4,999 kW - Main | E125: Elexicon Energy Inc._ Veridian_General Service 3,000 to 4,999 kW Service Classification | F125: 107155879 | G125: 286774 | H125: 0 | J125: 90680973 | K125: 207935 | P125: 90680973 | Q125: 207935 | R125: 197836852 | S125: 494709
A126: 2025 | B126: Entegrus Powerlines Inc. | C126: General Service >= 50 kW | D126: General Service 50 to 4,999 kW - St. Thomas Energy | E126: Elexicon Energy Inc._ Veridian_General Service 50 to 2,999 kW Service Classification | F126: 17273649 | G126: 40377 | H126: 93100440 | I126: 228564 | J126: 714086769 | K126: 1624320 | L126: 32284456 | M126: 64299 | P126: 839471665 | Q126: 1917183 | R126: 856745314 | S126: 1957560
A127: 2025 | B127: Entegrus Powerlines Inc. | C127: Large User | D127: Large Use - Main | E127: Elexicon Energy Inc._ Whitby_General Service 50 to 4,999 kW Service Classification | H127: 41832034 | I127: 101322 | J127: 275650179 | K127: 626813 | L127: 3621558 | M127: 6633 | P127: 321103771 | Q127: 734768 | R127: 321103771 | S127: 734768
A128: 2025 | B128: Entegrus Powerlines Inc. | C128: Residential | D128: Residential - Main | E128: Elexicon Energy Inc._ Veridian_Large Use Service Classification | F128: 5014203 | H128: 0 | J128: 178943959 | K128: 313135 | L128: 131031148 | M128: 217483 | P128: 309975107 | Q128: 530618 | R128: 314989310 | S128: 530618
A129: 2025 | B129: Entegrus Powerlines Inc. | C129: Residential | D129: Residential - St. Thomas Energy | E129: Elexicon Energy Inc._ Veridian_Residential Service Classification | F129: 4323075 | H129: 1017689339 | P129: 1017689339 | Q129: 0 | R129: 1022012414 | S129: 0
A130: 2025 | B130: Entegrus Powerlines Inc. | C130: Sentinel Lighting Connections | D130: Sentinel Lighting - Main | E130: Elexicon Energy Inc._ Whitby_Residential Service Classification | F130: 39360 | G130: 113 | H130: 407733565 | P130: 407733565 | Q130: 0 | R130: 407772925 | S130: 113
A131: 2025 | B131: Entegrus Powerlines Inc. | C131: Sentinel Lighting Connections | D131: Sentinel Lighting - St. Thomas Energy | E131: Elexicon Energy Inc._ Veridian_Residential Seasonal Service Classification | F131: 2074 | G131: 6 | H131: 12230714 | P131: 12230714 | Q131: 0 | R131: 12232788 | S131: 6
A132: 2025 | B132: Entegrus Powerlines Inc. | C132: Street Lighting Connections | D132: Street Lighting - Main | E132: Elexicon Energy Inc._ Veridian_Sentinel Lighting Service Classification | F132: 38781 | G132: 118 | H132: 150471 | I132: 602 | P132: 150471 | Q132: 602 | R132: 189252 | S132: 720
A133: 2025 | B133: Entegrus Powerlines Inc. | C133: Street Lighting Connections | D133: Street Lighting - St. Thomas Energy | E133: Elexicon Energy Inc._ Whitby_Sentinel Lighting Service Classification | H133: 0 | J133: 29866 | K133: 83 | P133: 29866 | Q133: 83 | R133: 29866 | S133: 83
A134: 2025 | B134: Entegrus Powerlines Inc. | C134: Unmetered Scattered Load Connections | D134: Unmetered Scattered Load - Main | E134: Elexicon Energy Inc._ Veridian_Street Lighting Service Classification | F134: 709857 | H134: 0 | J134: 8721396 | K134: 24196 | P134: 8721396 | Q134: 24196 | R134: 9431253 | S134: 24196
A135: 2025 | B135: ENWIN Utilities Ltd. | C135: General Service < 50 kW | D135: General Service Less Than 50 kW | E135: Elexicon Energy Inc._ Whitby_Street Lighting Service Classification | F135: 35315760.41 | H135: 0 | J135: 3476466 | K135: 9823 | P135: 3476466 | Q135: 9823 | R135: 38792226.41 | S135: 9823
A136: 2025 | B136: ENWIN Utilities Ltd. | C136: General Service >= 50 kW | D136: General Service 50 to 4,999 kW | E136: Elexicon Energy Inc._ Veridian_Unmetered Scattered Load Service Classification | F136: 88305834.8 | G136: 223404.13 | H136: 4316057 | P136: 4316057 | Q136: 0 | R136: 92621891.8 | S136: 223404.13
A137: 2025 | B137: ENWIN Utilities Ltd. | C137: Large User | D137: Dedicated TS | E137: Elexicon Energy Inc._ Whitby_Unmetered Scattered Load Service Classification | H137: 1872670 | P137: 1872670 | Q137: 0 | R137: 1872670 | S137: 0
A138: 2025 | B138: ENWIN Utilities Ltd. | C138: Large User | D138: Large Use - Regular | E138: Enova Power Corp._Kitchener-Wilmot_Embedded Distributor Service Classification | H138: 0 | I138: 0 | J138: 0 | K138: 0 | L138: 22360256.49 | M138: 51810.371 | P138: 22360256.49 | Q138: 51810.371 | R138: 22360256.49 | S138: 51810.371
A139: 2025 | B139: ENWIN Utilities Ltd. | C139: Residential | D139: Residential | E139: Enova Power Corp._Waterloo North_Embedded Distributor Service Classification | F139: 6930819.69 | H139: 0 | I139: 0 | J139: 48071937.2 | K139: 99096.7824 | L139: 0 | M139: 0 | P139: 48071937.2 | Q139: 99096.7824 | R139: 55002756.89 | S139: 99096.7824
A140: 2025 | B140: ENWIN Utilities Ltd. | C140: Sentinel Lighting Connections | D140: Sentinel Lighting | E140: Enova Power Corp._Kitchener-Wilmot_General Service Less Than 50 kW Service Classification | F140: 42009.94 | G140: 118.58 | H140: 204970399.5 | I140: 0 | J140: 0 | K140: 0 | L140: 0 | M140: 0 | P140: 204970399.5 | Q140: 0 | R140: 205012409.4 | S140: 118.58
A141: 2025 | B141: ENWIN Utilities Ltd. | C141: Street Lighting Connections | D141: Street Lighting | E141: Enova Power Corp._Waterloo North_General Service Less Than 50 kW Service Classification | H141: 184210685.4 | I141: 0 | J141: 536743.0186 | K141: 0 | L141: 0 | M141: 0 | P141: 184747428.4 | Q141: 0 | R141: 184747428.4 | S141: 0
A142: 2025 | B142: ENWIN Utilities Ltd. | C142: Unmetered Scattered Load Connections | D142: Unmetered Scattered Load | E142: Enova Power Corp._Kitchener-Wilmot_General Service 50 to 4,999 kW Service Classification | F142: 38880 | H142: 131542840.8 | I142: 343915.6208 | J142: 607896366.9 | K142: 1548037.312 | L142: 13201626.44 | M142: 26248.4233 | P142: 752640834.1 | Q142: 1918201.356 | R142: 752679714.1 | S142: 1918201.356
A143: 2025 | B143: EPCOR Electricity Distribution Ontario Inc. | C143: General Service < 50 kW | D143: General Service Less Than 50 kW | E143: Enova Power Corp._Waterloo North_General Service 50 to 4,999 kW Service Classification | F143: 7461087.12 | H143: 84162888.95 | I143: 211250.9715 | J143: 482499136.7 | K143: 1244021.302 | L143: 7672727.49 | M143: 17063.684 | P143: 574334753.1 | Q143: 1472335.958 | R143: 581795840.3 | S143: 1472335.958
A144: 2025 | B144: EPCOR Electricity Distribution Ontario Inc. | C144: General Service >= 50 kW | D144: General Service 50 to 4,999 kW | E144: Enova Power Corp._Kitchener-Wilmot_Large Use Service Classification | F144: 25496827.15 | G144: 59283.1 | H144: 0 | I144: 0 | J144: 0 | K144: 0 | L144: 0 | M144: 0 | P144: 0 | Q144: 0 | R144: 25496827.15 | S144: 59283.1
A145: 2025 | B145: EPCOR Electricity Distribution Ontario Inc. | C145: Residential | D145: Residential | E145: Enova Power Corp._Waterloo North_Large Use Service Classification | F145: 1375173.75 | H145: 0 | I145: 0 | J145: 94627237.68 | K145: 167512.9104 | L145: 0 | M145: 0 | P145: 94627237.68 | Q145: 167512.9104 | R145: 96002411.43 | S145: 167512.9104
A146: 2025 | B146: EPCOR Electricity Distribution Ontario Inc. | C146: Street Lighting Connections | D146: Street Lighting | E146: Enova Power Corp._Kitchener-Wilmot_Residential Service Classification | F146: 71514.49 | G146: 207.9 | H146: 730914202.5 | I146: 0 | J146: 0 | K146: 0 | L146: 0 | M146: 0 | P146: 730914202.5 | Q146: 0 | R146: 730985717 | S146: 207.9
A147: 2025 | B147: EPCOR Electricity Distribution Ontario Inc. | C147: Unmetered Scattered Load Connections | D147: Unmetered Scattered Load | E147: Enova Power Corp._Waterloo North_Residential Service Classification | F147: 18948.07 | H147: 438128325.3 | I147: 0 | J147: 0 | K147: 0 | L147: 0 | M147: 0 | P147: 438128325.3 | Q147: 0 | R147: 438147273.4 | S147: 0
A148: 2025 | B148: ERTH Power Corporation | C148: Embedded Distributor(s) | D148: Embedded Distributor - Main | E148: Enova Power Corp._Kitchener-Wilmot_Street Lighting Service Classification | F148: 0 | G148: 0 | H148: 488881.768 | I148: 1355.796 | J148: 6774303.188 | K148: 18783.404 | L148: 0 | M148: 0 | P148: 7263184.956 | Q148: 20139.2 | R148: 7263184.956 | S148: 20139.2
A149: 2025 | B149: ERTH Power Corporation | C149: General Service < 50 kW | D149: General Service Less Than 50 kW - Goderich | E149: Enova Power Corp._Waterloo North_Street Lighting Service Classification | F149: 2275949.54 | G149: 0 | H149: 0 | I149: 0 | J149: 3553407.93 | K149: 9947.33 | L149: 0 | M149: 0 | P149: 3553407.93 | Q149: 9947.33 | R149: 5829357.47 | S149: 9947.33
A150: 2025 | B150: ERTH Power Corporation | C150: General Service < 50 kW | D150: General Service Less Than 50 kW - Main | E150: Enova Power Corp._Kitchener-Wilmot_Unmetered Scattered Load Service Classification | F150: 9074309.13 | G150: 0 | H150: 3984876.24 | I150: 0 | J150: 0 | K150: 0 | L150: 0 | M150: 0 | P150: 3984876.24 | Q150: 0 | R150: 13059185.37 | S150: 0
A151: 2025 | B151: ERTH Power Corporation | C151: General Service >= 50 kW | D151: General Service 1,000 to 4,999 kW - Main | E151: Enova Power Corp._Waterloo North_Unmetered Scattered Load Service Classification | F151: 7186290.25 | G151: 16702.71 | H151: 3527315.862 | I151: 0 | J151: 0 | K151: 0 | L151: 0 | M151: 0 | P151: 3527315.862 | Q151: 0 | R151: 10713606.11 | S151: 16702.71
A152: 2025 | B152: ERTH Power Corporation | C152: General Service >= 50 kW | D152: General Service 50 to 499 kW - Goderich | E152: Entegrus Powerlines Inc._ Main_Embedded Distributor Service Classification | F152: 4383896.1 | G152: 10565.47 | H152: 0 | J152: 0.01 | K152: 0.01 | P152: 0.01 | Q152: 0.01 | R152: 4383896.11 | S152: 10565.48
A153: 2025 | B153: ERTH Power Corporation | C153: General Service >= 50 kW | D153: General Service 50 to 999 kW - Main | E153: Entegrus Powerlines Inc._ Main_General Service Less Than 50 kW Service Classification | F153: 19832747.82 | G153: 62264.56 | H153: 100171609 | P153: 100171609 | Q153: 0 | R153: 120004356.8 | S153: 62264.56
A154: 2025 | B154: ERTH Power Corporation | C154: General Service >= 50 kW | D154: General Service 500 to 4,999 kW - Goderich | E154: Entegrus Powerlines Inc._ St. Thomas Energy_General Service Less Than 50 kW Service Classification | F154: 8701441.84 | G154: 16429.32 | H154: 40801900 | P154: 40801900 | Q154: 0 | R154: 49503341.84 | S154: 16429.32
A155: 2025 | B155: ERTH Power Corporation | C155: Large User | D155: Large Use - Goderich | E155: Entegrus Powerlines Inc._ Main_General Service 50 to 4,999 kW Service Classification | F155: 0 | G155: 0 | H155: 24649154 | I155: 124543 | J155: 279626949 | K155: 694299 | L155: 3059041 | M155: 6057 | P155: 307335144 | Q155: 824899 | R155: 307335144 | S155: 824899
A156: 2025 | B156: ERTH Power Corporation | C156: Large User | D156: Large Use- Main | E156: Entegrus Powerlines Inc._ St. Thomas Energy_General Service 50 to 4,999 kW Service Classification | F156: 0 | G156: 0 | H156: 8283295 | I156: 27167 | J156: 82682634 | K156: 233463 | L156: 3031128 | M156: 5876 | P156: 93997057 | Q156: 266506 | R156: 93997057 | S156: 266506
A157: 2025 | B157: ERTH Power Corporation | C157: Residential | D157: Residential - Goderich | E157: Entegrus Powerlines Inc._ Main_Large Use Service Classification | F157: 339999.1 | G157: 0 | H157: 0 | J157: 108051127 | K157: 256332 | P157: 108051127 | Q157: 256332 | R157: 108391126.1 | S157: 256332
A158: 2025 | B158: ERTH Power Corporation | C158: Residential | D158: Residential - Main | E158: Entegrus Powerlines Inc._ Main_Residential Service Classification | F158: 2734707.26 | G158: 0 | H158: 309808957 | P158: 309808957 | Q158: 0 | R158: 312543664.3 | S158: 0
A159: 2025 | B159: ERTH Power Corporation | C159: Sentinel Lighting Connections | D159: Sentinel Lighting - Goderich | E159: Entegrus Powerlines Inc._ St. Thomas Energy_Residential Service Classification | F159: 0 | G159: 0 | H159: 133689274 | P159: 133689274 | Q159: 0 | R159: 133689274 | S159: 0
A160: 2025 | B160: ERTH Power Corporation | C160: Sentinel Lighting Connections | D160: Sentinel Lighting - Main | E160: Entegrus Powerlines Inc._ Main_Sentinel Lighting Service Classification | F160: 8982.71 | G160: 0 | H160: 210087 | I160: 584 | J160: 55163 | K160: 153 | P160: 265250 | Q160: 737 | R160: 274232.71 | S160: 737
A161: 2025 | B161: ERTH Power Corporation | C161: Street Lighting Connections | D161: Street Lighting - Goderich | E161: Entegrus Powerlines Inc._ St. Thomas Energy_Sentinel Lighting Service Classification | F161: 344412.46 | G161: 873.38 | H161: 51481 | P161: 51481 | Q161: 0 | R161: 395893.46 | S161: 873.38
A162: 2025 | B162: ERTH Power Corporation | C162: Street Lighting Connections | D162: Street Lighting - Main | E162: Entegrus Powerlines Inc._ Main_Street Lighting Service Classification | F162: 422376.39 | G162: 1148.07 | H162: 0 | J162: 3549837 | K162: 10469 | P162: 3549837 | Q162: 10469 | R162: 3972213.39 | S162: 11617.07
A163: 2025 | B163: ERTH Power Corporation | C163: Unmetered Scattered Load Connections | D163: Unmetered Scattered Load - Goderich | E163: Entegrus Powerlines Inc._ St. Thomas Energy_Street Lighting Service Classification | F163: 0 | G163: 0 | H163: 0 | J163: 1772655 | K163: 4945 | P163: 1772655 | Q163: 4945 | R163: 1772655 | S163: 4945
A164: 2025 | B164: ERTH Power Corporation | C164: Unmetered Scattered Load Connections | D164: Unmetered Scattered Load - Main | E164: Entegrus Powerlines Inc._ Main_Unmetered Scattered Load Service Classification | F164: 44574.85 | G164: 0 | H164: 528666 | P164: 528666 | Q164: 0 | R164: 573240.85 | S164: 0
A165: 2025 | B165: Essex Powerlines Corporation | C165: Embedded Distributor(s) | D165: Embedded Distributor | E165: Essex Powerlines Corporation_Embedded Distributor Service Classification | F165: 0 | G165: 0 | H165: 0 | J165: 34024723 | K165: 99163 | P165: 34024723 | Q165: 99163 | R165: 34024723 | S165: 99163
A166: 2025 | B166: Essex Powerlines Corporation | C166: General Service < 50 kW | D166: General Service Less Than 50 kW | E166: Essex Powerlines Corporation_General Service Less Than 50 kW Service Classification | F166: 12352113.36 | G166: 39623.81 | H166: 53383039 | J166: 705286 | P166: 54088325 | Q166: 0 | R166: 66440438.36 | S166: 39623.81
A167: 2025 | B167: Essex Powerlines Corporation | C167: General Service >= 50 kW | D167: General Service 50 to 4,999 kW | E167: Essex Powerlines Corporation_General Service 50 to 4,999 kW Service Classification | F167: 35879215.57 | G167: 64983.24 | H167: 27267553 | I167: 83662 | J167: 119251204 | K167: 431930 | L167: 8850919 | M167: 15933 | P167: 155369676 | Q167: 531525 | R167: 191248891.6 | S167: 596508.24
A168: 2025 | B168: Essex Powerlines Corporation | C168: Residential | D168: Residential | E168: Essex Powerlines Corporation_Residential Service Classification | F168: 2755095.84 | G168: 0 | H168: 271022618 | J168: 77314 | P168: 271099932 | Q168: 0 | R168: 273855027.8 | S168: 0
A169: 2025 | B169: Essex Powerlines Corporation | C169: Sentinel Lighting Connections | D169: Sentinel Lighting | E169: Essex Powerlines Corporation_Sentinel Lighting Service Classification | F169: 26081.55 | G169: 0 | H169: 239873 | I169: 721 | P169: 239873 | Q169: 721 | R169: 265954.55 | S169: 721
A170: 2025 | B170: Essex Powerlines Corporation | C170: Street Lighting Connections | D170: Street Lighting | E170: Essex Powerlines Corporation_Street Lighting Service Classification | F170: 1530111.18 | G170: 4624.17 | H170: 0 | J170: 912863 | K170: 2767 | P170: 912863 | Q170: 2767 | R170: 2442974.18 | S170: 7391.17
A171: 2025 | B171: Essex Powerlines Corporation | C171: Unmetered Scattered Load Connections | D171: Unmetered Scattered Load | E171: Essex Powerlines Corporation_Unmetered Scattered Load Service Classification | F171: 758940.38 | G171: 0 | H171: 940116 | J171: 49968 | P171: 990084 | Q171: 0 | R171: 1749024.38 | S171: 0
A172: 2025 | B172: Festival Hydro Inc. | C172: General Service < 50 kW | D172: General Service Less Than 50 kW | E172: Festival Hydro Inc._General Service Less Than 50 kW Service Classification | F172: 12723820.48 | H172: 47616248.35 | L172: 0 | P172: 47616248.35 | Q172: 0 | R172: 60340068.83 | S172: 0
A173: 2025 | B173: Festival Hydro Inc. | C173: General Service >= 50 kW | D173: General Service 50 to 4,999 kW | E173: Festival Hydro Inc._General Service 50 to 4,999 kW Service Classification | F173: 57447790.21 | G173: 163835.47 | H173: 10302672.7 | I173: 28129.3 | J173: 288427207 | K173: 689235.61 | L173: 2968539 | M173: 5931.61 | P173: 301698418.7 | Q173: 723296.52 | R173: 359146208.9 | S173: 887131.99
A174: 2025 | B174: Festival Hydro Inc. | C174: Large User | D174: Large Use | E174: Festival Hydro Inc._Large Use Service Classification | H174: 0 | J174: 30078208.26 | K174: 46146.48 | P174: 30078208.26 | Q174: 46146.48 | R174: 30078208.26 | S174: 46146.48
A175: 2025 | B175: Festival Hydro Inc. | C175: Residential | D175: Residential | E175: Festival Hydro Inc._Residential Service Classification | F175: 2437707.26 | H175: 151396826 | P175: 151396826 | Q175: 0 | R175: 153834533.3 | S175: 0
A176: 2025 | B176: Festival Hydro Inc. | C176: Sentinel Lighting Connections | D176: Sentinel Lighting | E176: Festival Hydro Inc._Sentinel Lighting Service Classification | F176: 1477.07 | G176: 4.1 | H176: 93180.37 | I176: 260.22 | P176: 93180.37 | Q176: 260.22 | R176: 94657.44 | S176: 264.32
A177: 2025 | B177: Festival Hydro Inc. | C177: Street Lighting Connections | D177: Street Lighting | E177: Festival Hydro Inc._Street Lighting Service Classification | F177: 2274729.12 | G177: 6264.66 | H177: 539.14 | J177: 22357.07 | P177: 22896.21 | Q177: 0 | R177: 2297625.33 | S177: 6264.66
A178: 2025 | B178: Festival Hydro Inc. | C178: Unmetered Scattered Load Connections | D178: Unmetered Scattered Load | E178: Festival Hydro Inc._Unmetered Scattered Load Service Classification | F178: 60727.27 | H178: 214221.55 | J178: 498155.08 | P178: 712376.63 | Q178: 0 | R178: 773103.9 | S178: 0
A179: 2025 | B179: Fort Frances Power Corporation | C179: General Service < 50 kW | D179: General Service Less Than 50 kW | E179: Fort Frances Power Corporation_General Service Less Than 50 kW Service Classification | F179: 71973.33 | H179: 14053698 | P179: 14053698 | Q179: 0 | R179: 14125671.33 | S179: 0
A180: 2025 | B180: Fort Frances Power Corporation | C180: General Service >= 50 kW | D180: General Service 50 to 4,999 kW | E180: Fort Frances Power Corporation_General Service 50 to 4,999 kW Service Classification | H180: 3919260 | J180: 15679942 | K180: 47221 | P180: 19599202 | Q180: 47221 | R180: 19599202 | S180: 47221
A181: 2025 | B181: Fort Frances Power Corporation | C181: Residential | D181: Residential | E181: Fort Frances Power Corporation_Residential Service Classification | F181: 19473.1 | H181: 35093945 | P181: 35093945 | Q181: 0 | R181: 35113418.1 | S181: 0
A182: 2025 | B182: Fort Frances Power Corporation | C182: Street Lighting Connections | D182: Street Lighting | E182: Fort Frances Power Corporation_Street Lighting Service Classification | H182: 0 | J182: 412975 | K182: 1153 | P182: 412975 | Q182: 1153 | R182: 412975 | S182: 1153
A183: 2025 | B183: Fort Frances Power Corporation | C183: Unmetered Scattered Load Connections | D183: Unmetered Scattered Load | E183: Fort Frances Power Corporation_Unmetered Scattered Load Service Classification | H183: 62628 | P183: 62628 | Q183: 0 | R183: 62628 | S183: 0
A184: 2025 | B184: GrandBridge Energy Inc. | C184: Embedded Distributor(s) | D184: Embedded Distributor - Brantford-Energy+ | E184: GrandBridge Energy Inc._ Brantford-Energy+_Embedded Distributor Service Classification | F184: 0 | G184: 0 | H184: 0 | I184: 0 | J184: 358800.09 | K184: 1189.49 | L184: 0 | M184: 0 | P184: 358800.09 | Q184: 1189.49 | R184: 358800.09 | S184: 1189.49
A185: 2025 | B185: GrandBridge Energy Inc. | C185: Embedded Distributor(s) | D185: Embedded Distributor - Hydro One #1-Energy+ | E185: GrandBridge Energy Inc._ Hydro One #1-Energy+_Embedded Distributor Service Classification | F185: 0 | G185: 0 | H185: 0 | I185: 0 | J185: 9726052.98 | K185: 20298.8 | L185: 0 | M185: 0 | P185: 9726052.98 | Q185: 20298.8 | R185: 9726052.98 | S185: 20298.8
A186: 2025 | B186: GrandBridge Energy Inc. | C186: Embedded Distributor(s) | D186: Embedded Distributor - Hydro One #2-Energy+ | E186: GrandBridge Energy Inc._ Hydro One #2-Energy+_Embedded Distributor Service Classification | F186: 0 | G186: 0 | H186: 0 | I186: 0 | J186: 69913317.74 | K186: 169835.46 | L186: 0 | M186: 0 | P186: 69913317.74 | Q186: 169835.46 | R186: 69913317.74 | S186: 169835.46
A187: 2025 | B187: GrandBridge Energy Inc. | C187: Embedded Distributor(s) | D187: Embedded Distributor - Hydro One CND-Energy+ | E187: GrandBridge Energy Inc._ Hydro One CND-Energy+_Embedded Distributor Service Classification | F187: 0 | G187: 0 | H187: 0 | I187: 0 | J187: 13702265.22 | K187: 28597.62 | L187: 0 | M187: 0 | P187: 13702265.22 | Q187: 28597.62 | R187: 13702265.22 | S187: 28597.62
A188: 2025 | B188: GrandBridge Energy Inc. | C188: Embedded Distributor(s) | D188: Embedded Distributor - Waterloo North Hydro-Energy+ | E188: GrandBridge Energy Inc._ Waterloo North Hydro-Energy+_Embedded Distributor Service Classification | F188: 0 | G188: 0 | H188: 0 | I188: 0 | J188: 0 | K188: 0 | L188: 74715097.89 | M188: 140797.1 | P188: 74715097.89 | Q188: 140797.1 | R188: 74715097.89 | S188: 140797.1
A189: 2025 | B189: GrandBridge Energy Inc. | C189: Embedded Distributor(s) | D189: Embedded Distributor-Brantford | E189: GrandBridge Energy Inc._Brantford_Embedded Distributor Service Classification | F189: 0 | G189: 0 | H189: 0 | I189: 0 | J189: 0 | K189: 0 | L189: 12763715.43 | M189: 38105.09 | P189: 12763715.43 | Q189: 38105.09 | R189: 12763715.43 | S189: 38105.09
A190: 2025 | B190: GrandBridge Energy Inc. | C190: General Service < 50 kW | D190: General Service Less Than 50 kW-Brantford | E190: GrandBridge Energy Inc._Brantford_General Service Less Than 50 kW Service Classification | F190: 15511947.12 | G190: 0 | H190: 88411265.75 | I190: 27372.29 | J190: 61554.35 | K190: 6713.8 | L190: 0 | M190: 0 | P190: 88472820.1 | Q190: 34086.09 | R190: 103984767.2 | S190: 34086.09
A191: 2025 | B191: GrandBridge Energy Inc. | C191: General Service < 50 kW | D191: General Service Less Than 50 kW-Energy+ | E191: GrandBridge Energy Inc._Energy+_General Service Less Than 50 kW Service Classification | F191: 27721272.83 | G191: 0 | H191: 191106421.8 | I191: 0 | J191: 0 | K191: 3759.09 | L191: 0 | M191: 0 | P191: 191106421.8 | Q191: 3759.09 | R191: 218827694.6 | S191: 3759.09
A192: 2025 | B192: GrandBridge Energy Inc. | C192: General Service >= 50 kW | D192: General Service 1000 to 4,999 kW-Energy+ | E192: GrandBridge Energy Inc._Energy+_General Service 1000 to 4,999 kW Service Classification | F192: 82562156.79 | G192: 178074.01 | H192: 0 | I192: 0 | J192: 161898143.4 | K192: 412709.26 | L192: 25361568.63 | M192: 43811.38 | P192: 187259712 | Q192: 456520.64 | R192: 269821868.8 | S192: 634594.65
A193: 2025 | B193: GrandBridge Energy Inc. | C193: General Service >= 50 kW | D193: General Service 50 to 4,999 kW-Brantford | E193: GrandBridge Energy Inc._Brantford_General Service 50 to 4,999 kW Service Classification | F193: 110357358 | G193: 283807.72 | H193: 22910151.45 | I193: 53103.22 | J193: 469410006.2 | K193: 1176297.62 | L193: 13992628.12 | M193: 29838.1 | P193: 506312785.8 | Q193: 1259238.94 | R193: 616670143.8 | S193: 1543046.66
A194: 2025 | B194: GrandBridge Energy Inc. | C194: General Service >= 50 kW | D194: General Service 50 to 999 kW-Energy+ | E194: GrandBridge Energy Inc._Energy+_General Service 50 to 999 kW Service Classification | F194: 95981950.78 | G194: 328698.53 | H194: 45345760.46 | I194: 152402.87 | J194: 331067890.3 | K194: 1016596.98 | L194: 7937842.82 | M194: 15724.72 | P194: 384351493.6 | Q194: 1184724.57 | R194: 480333444.4 | S194: 1513423.1
A195: 2025 | B195: GrandBridge Energy Inc. | C195: Large User | D195: Large Use-Energy+ | E195: GrandBridge Energy Inc._Energy+_Large Use Service Classification | F195: 0 | G195: 0 | H195: 0 | I195: 0 | J195: 159015613.4 | K195: 328260.69 | L195: 0 | M195: 0 | P195: 159015613.4 | Q195: 328260.69 | R195: 159015613.4 | S195: 328260.69
A196: 2025 | B196: GrandBridge Energy Inc. | C196: Residential | D196: Residential-Brantford | E196: GrandBridge Energy Inc._Brantford_Residential Service Classification | F196: 4185578 | G196: 0 | H196: 318674915.4 | I196: 0 | J196: 0 | K196: 0 | L196: 0 | M196: 0 | P196: 318674915.4 | Q196: 0 | R196: 322860493.4 | S196: 0
A197: 2025 | B197: GrandBridge Energy Inc. | C197: Residential | D197: Residential-Energy+ | E197: GrandBridge Energy Inc._Energy+_Residential Service Classification | F197: 4681450.36 | G197: 0 | H197: 538028036.7 | I197: 0 | J197: 0 | K197: 0 | L197: 0 | M197: 0 | P197: 538028036.7 | Q197: 0 | R197: 542709487.1 | S197: 0
A198: 2025 | B198: GrandBridge Energy Inc. | C198: Sentinel Lighting Connections | D198: Sentinel Lighting-Brantford | E198: GrandBridge Energy Inc._Brantford_Sentinel Lighting Service Classification | F198: 6246 | G198: 0 | H198: 180786.7 | I198: 0 | J198: 0 | K198: 537.83 | L198: 0 | M198: 0 | P198: 180786.7 | Q198: 537.83 | R198: 187032.7 | S198: 537.83
A199: 2025 | B199: GrandBridge Energy Inc. | C199: Sentinel Lighting Connections | D199: Sentinel Lighting-Energy+ | E199: GrandBridge Energy Inc._Energy+_Sentinel Lighting Service Classification | F199: 8916.8 | G199: 0 | H199: 57565.31 | I199: 263.04 | J199: 0 | K199: 191.79 | L199: 0 | M199: 0 | P199: 57565.31 | Q199: 454.83 | R199: 66482.11 | S199: 454.83
A200: 2025 | B200: GrandBridge Energy Inc. | C200: Street Lighting Connections | D200: Street Lighting-Energy+ | E200: GrandBridge Energy Inc._Energy+_Street Lighting Service Classification | F200: 777997 | G200: 2166.45 | H200: 457858.07 | I200: 1275.12 | J200: 4824437.45 | K200: 13436.28 | L200: 0 | M200: 0 | P200: 5282295.52 | Q200: 14711.4 | R200: 6060292.52 | S200: 16877.85
A201: 2025 | B201: GrandBridge Energy Inc. | C201: Street Lighting Connections | D201: Street Lighting-Kitchener-Brantford | E201: GrandBridge Energy Inc._Kitchener-Brantford_Street Lighting Service Classification | F201: 0 | G201: 0 | H201: 0 | I201: 0 | J201: 3994511.59 | K201: 11140.31 | L201: 0 | M201: 0 | P201: 3994511.59 | Q201: 11140.31 | R201: 3994511.59 | S201: 11140.31
A202: 2025 | B202: GrandBridge Energy Inc. | C202: Unmetered Scattered Load Connections | D202: Unmetered Scattered Load-Brantford | E202: GrandBridge Energy Inc._Brantford_Unmetered Scattered Load Service Classification | F202: 0 | G202: 0 | H202: 1541197 | I202: 0 | J202: 0 | K202: 0 | L202: 0 | M202: 0 | P202: 1541197 | Q202: 0 | R202: 1541197 | S202: 0
... 288 more rows

Sheet hidden1 (hidden)
A1: =IF('DELETE 3. Rate Classes'!L17=1, 'DELETE 3. Rate Classes'!#REF!, "") ->  | B1: 1
A2: =IF('DELETE 3. Rate Classes'!L18=1, 'DELETE 3. Rate Classes'!#REF!, "") ->  | B2: 2
A3: =IF('DELETE 3. Rate Classes'!L19=1, 'DELETE 3. Rate Classes'!#REF!, "") ->  | B3: 3
A4: =IF('DELETE 3. Rate Classes'!L20=1, 'DELETE 3. Rate Classes'!#REF!, "") ->  | B4: 4
A5: =IF('DELETE 3. Rate Classes'!L21=1, 'DELETE 3. Rate Classes'!#REF!, "") ->  | B5: 5
A6: =IF('DELETE 3. Rate Classes'!L22=1, 'DELETE 3. Rate Classes'!#REF!, "") ->  | B6: 6
A7: =IF('DELETE 3. Rate Classes'!L23=1, 'DELETE 3. Rate Classes'!#REF!, "") ->  | B7: 7
A8: =IF('DELETE 3. Rate Classes'!L24=1, 'DELETE 3. Rate Classes'!#REF!, "") ->  | B8: 8
A9: =IF('DELETE 3. Rate Classes'!L25=1, 'DELETE 3. Rate Classes'!#REF!, "") ->  | B9: 9
A10: =IF('DELETE 3. Rate Classes'!L26=1, 'DELETE 3. Rate Classes'!#REF!, "") ->  | B10: 10
A11: =IF('DELETE 3. Rate Classes'!L27=1, 'DELETE 3. Rate Classes'!#REF!, "") ->  | B11: 11
A12: =IF('DELETE 3. Rate Classes'!L28=1, 'DELETE 3. Rate Classes'!#REF!, "") ->  | B12: 12
A13: =IF('DELETE 3. Rate Classes'!L29=1, 'DELETE 3. Rate Classes'!#REF!, "") ->  | B13: 13
A14: =IF('DELETE 3. Rate Classes'!L30=1, 'DELETE 3. Rate Classes'!#REF!, "") ->  | B14: 14
A15: =IF('DELETE 3. Rate Classes'!L31=1, 'DELETE 3. Rate Classes'!#REF!, "") ->  | B15: 15
A16: =IF('DELETE 3. Rate Classes'!L32=1, 'DELETE 3. Rate Classes'!#REF!, "") ->  | B16: 16
A17: =IF('DELETE 3. Rate Classes'!L33=1, 'DELETE 3. Rate Classes'!#REF!, "") ->  | B17: 17
A18: =IF('DELETE 3. Rate Classes'!L34=1, 'DELETE 3. Rate Classes'!#REF!, "") ->  | B18: 18
A19: =IF('DELETE 3. Rate Classes'!L35=1, 'DELETE 3. Rate Classes'!#REF!, "") ->  | B19: 19
A20: =IF('DELETE 3. Rate Classes'!L36=1, 'DELETE 3. Rate Classes'!#REF!, "") ->  | B20: 20
A21: =IF('DELETE 3. Rate Classes'!L37=1, 'DELETE 3. Rate Classes'!#REF!, "") ->  | B21: 21
A22: =IF('DELETE 3. Rate Classes'!L38=1, 'DELETE 3. Rate Classes'!#REF!, "") ->  | B22: 22
